Body Name,Body,Service Label,Service Code,CIPFA Detailed Expenditure Type,CIPFA Detailed Expenditure Code,Date,Transaction Number,Net Amount,Supplier Name,,,,,,,,,,,Sep
Nottinghamshire County Council,1111/1001,Surplus or Deficit from Trading Undertak,TRADING,Premises Related,BJA,07/09/2012,06-10001,573.56,Biffa Waste Services Ltd,,,,,,,,,,,
Nottinghamshire County Council,1111/1001,Surplus or Deficit from Trading Undertak,TRADING,Premises Related,BJA,19/09/2012,06-10001,716.95,Biffa Waste Services Ltd,,,,,,,,,,,
Nottinghamshire County Council,1111/1001,Surplus or Deficit from Trading Undertak,TRADING,Supplies & Services,DDA,11/09/2012,06-10001,888,Hamelin Paperbrands Ltd,,,,,,,,,,,
Nottinghamshire County Council,1111/1001,Surplus or Deficit from Trading Undertak,TRADING,Supplies & Services,DDA,12/09/2012,06-10001,1198.95,Hamelin Paperbrands Ltd,,,,,,,,,,,
Nottinghamshire County Council,1111/1001,Surplus or Deficit from Trading Undertak,TRADING,Supplies & Services,DDA,12/09/2012,06-10001,2577.51,Hamelin Paperbrands Ltd,,,,,,,,,,,
Nottinghamshire County Council,1111/1001,Surplus or Deficit from Trading Undertak,TRADING,Supplies & Services,DDA,18/09/2012,06-10001,1019.07,Hamelin Paperbrands Ltd,,,,,,,,,,,
Nottinghamshire County Council,1111/1001,Surplus or Deficit from Trading Undertak,TRADING,Supplies & Services,DDA,18/09/2012,06-10001,1780.48,Hamelin Paperbrands Ltd,,,,,,,,,,,
Nottinghamshire County Council,1111/1001,Surplus or Deficit from Trading Undertak,TRADING,Supplies & Services,DDA,24/09/2012,06-10001,826.8,Hamelin Paperbrands Ltd,,,,,,,,,,,
Nottinghamshire County Council,1111/1001,Surplus or Deficit from Trading Undertak,TRADING,Supplies & Services,DDA,12/09/2012,06-10001,536.88,Grosvenor House Papers Ltd,,,,,,,,,,,
Nottinghamshire County Council,1111/1001,Surplus or Deficit from Trading Undertak,TRADING,Supplies & Services,DDA,12/09/2012,06-10001,747.2,Grosvenor House Papers Ltd,,,,,,,,,,,
Nottinghamshire County Council,1111/1001,Surplus or Deficit from Trading Undertak,TRADING,Supplies & Services,DDA,12/09/2012,06-10001,590.4,Heritage Envelopes Ltd,,,,,,,,,,,
Nottinghamshire County Council,1111/1001,Surplus or Deficit from Trading Undertak,TRADING,Supplies & Services,DDA,24/09/2012,06-10001,656.88,Heritage Envelopes Ltd,,,,,,,,,,,
Nottinghamshire County Council,1111/1001,Surplus or Deficit from Trading Undertak,TRADING,Supplies & Services,DDA,18/09/2012,06-10001,1737.12,Kimberley Clark European Services Ltd,,,,,,,,,,,
Nottinghamshire County Council,1111/1001,Surplus or Deficit from Trading Undertak,TRADING,Supplies & Services,DDA,18/09/2012,06-10001,556.2,Kimberley Clark European Services Ltd,,,,,,,,,,,
Nottinghamshire County Council,1111/1001,Surplus or Deficit from Trading Undertak,TRADING,Supplies & Services,DDA,24/09/2012,06-10001,1691.76,Kimberley Clark European Services Ltd,,,,,,,,,,,
Nottinghamshire County Council,1111/1001,Surplus or Deficit from Trading Undertak,TRADING,Supplies & Services,DDA,04/09/2012,06-10001,1302,Talk Paper,,,,,,,,,,,
Nottinghamshire County Council,1111/1001,Surplus or Deficit from Trading Undertak,TRADING,Supplies & Services,DDA,06/09/2012,06-10001,2787.67,R.H.Ritchings Ltd,,,,,,,,,,,
Nottinghamshire County Council,1111/1001,Surplus or Deficit from Trading Undertak,TRADING,Supplies & Services,DDA,11/09/2012,06-10001,2709.1,R.H.Ritchings Ltd,,,,,,,,,,,
Nottinghamshire County Council,1111/1001,Surplus or Deficit from Trading Undertak,TRADING,Supplies & Services,DDA,12/09/2012,06-10001,1061.12,Allen Glenold Ltd,,,,,,,,,,,
Nottinghamshire County Council,1111/1001,Surplus or Deficit from Trading Undertak,TRADING,Supplies & Services,DDA,12/09/2012,06-10001,1616.99,Allen Glenold Ltd,,,,,,,,,,,
Nottinghamshire County Council,1111/1001,Surplus or Deficit from Trading Undertak,TRADING,Supplies & Services,DDA,11/09/2012,06-10001,7077.04,Georgia-Pacific Gb Ltd,,,,,,,,,,,
Nottinghamshire County Council,1111/1001,Surplus or Deficit from Trading Undertak,TRADING,Supplies & Services,DDA,14/09/2012,06-10001,3930.34,Georgia-Pacific Gb Ltd,,,,,,,,,,,
Nottinghamshire County Council,1111/1001,Surplus or Deficit from Trading Undertak,TRADING,Supplies & Services,DDA,24/09/2012,06-10001,765,Hardy & Hanson Ltd,,,,,,,,,,,
Nottinghamshire County Council,1111/1001,Surplus or Deficit from Trading Undertak,TRADING,Supplies & Services,DDA,24/09/2012,06-10001,507.9,Plastoreg Smidt Gmbh,,,,,,,,,,,
Nottinghamshire County Council,1111/1001,Surplus or Deficit from Trading Undertak,TRADING,Supplies & Services,DDA,24/09/2012,06-10001,543.6,Plastoreg Smidt Gmbh,,,,,,,,,,,
Nottinghamshire County Council,1111/1001,Surplus or Deficit from Trading Undertak,TRADING,Supplies & Services,DDA,18/09/2012,06-10001,816.65,3M (United Kingdom) Plc,,,,,,,,,,,
Nottinghamshire County Council,1111/1001,Surplus or Deficit from Trading Undertak,TRADING,Supplies & Services,DDA,24/09/2012,06-10001,507.2,3M (United Kingdom) Plc,,,,,,,,,,,
Nottinghamshire County Council,1111/1001,Surplus or Deficit from Trading Undertak,TRADING,Supplies & Services,DDA,12/09/2012,06-10001,932,Newell Rubbermaid,,,,,,,,,,,
Nottinghamshire County Council,1111/1001,Surplus or Deficit from Trading Undertak,TRADING,Supplies & Services,DDA,12/09/2012,06-10001,813.6,Newell Rubbermaid,,,,,,,,,,,
Nottinghamshire County Council,1111/1001,Surplus or Deficit from Trading Undertak,TRADING,Supplies & Services,DDA,12/09/2012,06-10001,1354,Newell Rubbermaid,,,,,,,,,,,
Nottinghamshire County Council,1111/1001,Surplus or Deficit from Trading Undertak,TRADING,Supplies & Services,DDA,04/09/2012,06-10001,502.13,Acco-Rexel Ltd,,,,,,,,,,,
Nottinghamshire County Council,1111/1001,Surplus or Deficit from Trading Undertak,TRADING,Supplies & Services,DDA,04/09/2012,06-10001,580,Acco-Rexel Ltd,,,,,,,,,,,
Nottinghamshire County Council,1111/1001,Surplus or Deficit from Trading Undertak,TRADING,Supplies & Services,DDA,12/09/2012,06-10001,789.02,Acco-Rexel Ltd,,,,,,,,,,,
Nottinghamshire County Council,1111/1001,Surplus or Deficit from Trading Undertak,TRADING,Supplies & Services,DDA,12/09/2012,06-10001,688,Flip File Ltd,,,,,,,,,,,
Nottinghamshire County Council,1111/1001,Surplus or Deficit from Trading Undertak,TRADING,Supplies & Services,DDA,11/09/2012,06-10001,505.66,Henkel Loctite Adhesives Ltd,,,,,,,,,,,
Nottinghamshire County Council,1111/1001,Surplus or Deficit from Trading Undertak,TRADING,Supplies & Services,DDA,11/09/2012,06-10001,3320,Henkel Loctite Adhesives Ltd,,,,,,,,,,,
Nottinghamshire County Council,1111/1001,Surplus or Deficit from Trading Undertak,TRADING,Supplies & Services,DDA,06/09/2012,06-10001,1546.5,Staedtler (Uk) Ltd,,,,,,,,,,,
Nottinghamshire County Council,1111/1001,Surplus or Deficit from Trading Undertak,TRADING,Supplies & Services,DDA,06/09/2012,06-10001,934.8,Staedtler (Uk) Ltd,,,,,,,,,,,
Nottinghamshire County Council,1111/1001,Surplus or Deficit from Trading Undertak,TRADING,Supplies & Services,DDA,11/09/2012,06-10001,1031,Staedtler (Uk) Ltd,,,,,,,,,,,
Nottinghamshire County Council,1111/1001,Surplus or Deficit from Trading Undertak,TRADING,Supplies & Services,DDA,24/09/2012,06-10001,508.88,Edding Uk Ltd,,,,,,,,,,,
Nottinghamshire County Council,1111/1001,Surplus or Deficit from Trading Undertak,TRADING,Supplies & Services,DDA,12/09/2012,06-10001,870.3,Avery Dennison Office Products Uk Ltd,,,,,,,,,,,
Nottinghamshire County Council,1111/1001,Surplus or Deficit from Trading Undertak,TRADING,Supplies & Services,DDA,04/09/2012,06-10001,581.5,Office Depot Uk Ltd,,,,,,,,,,,
Nottinghamshire County Council,1111/1001,Surplus or Deficit from Trading Undertak,TRADING,Supplies & Services,DDA,24/09/2012,06-10001,936,Office Depot Uk Ltd,,,,,,,,,,,
Nottinghamshire County Council,1111/1001,Surplus or Deficit from Trading Undertak,TRADING,Supplies & Services,DAA,04/09/2012,06-10001,513.16,Shermond,,,,,,,,,,,
Nottinghamshire County Council,1111/1001,Surplus or Deficit from Trading Undertak,TRADING,Supplies & Services,DAA,24/09/2012,06-10001,2264.01,Shermond,,,,,,,,,,,
Nottinghamshire County Council,1111/1001,Surplus or Deficit from Trading Undertak,TRADING,Supplies & Services,DAA,06/09/2012,06-10001,637.84,Stuff-Uk-Net,,,,,,,,,,,
Nottinghamshire County Council,1111/1001,Surplus or Deficit from Trading Undertak,TRADING,Supplies & Services,DAA,14/09/2012,06-10001,531.78,Vivid Laminating Technologies Ltd,,,,,,,,,,,
Nottinghamshire County Council,1111/1001,Surplus or Deficit from Trading Undertak,TRADING,Supplies & Services,DAA,11/09/2012,06-10001,665.43,Qc Supplies Ltd,,,,,,,,,,,
Nottinghamshire County Council,1111/1001,Surplus or Deficit from Trading Undertak,TRADING,Supplies & Services,DAA,12/09/2012,06-10001,527.38,Qc Supplies Ltd,,,,,,,,,,,
Nottinghamshire County Council,1111/1001,Surplus or Deficit from Trading Undertak,TRADING,Supplies & Services,DAA,14/09/2012,06-10001,533.44,Qc Supplies Ltd,,,,,,,,,,,
Nottinghamshire County Council,1111/1001,Surplus or Deficit from Trading Undertak,TRADING,Supplies & Services,DAA,26/09/2012,06-10001,793.45,Office Xpress,,,,,,,,,,,
Nottinghamshire County Council,1111/1001,Surplus or Deficit from Trading Undertak,TRADING,Supplies & Services,DAA,24/09/2012,06-10001,1838.25,Coomber Electronic Equipment Ltd.,,,,,,,,,,,
Nottinghamshire County Council,1111/1001,Surplus or Deficit from Trading Undertak,TRADING,Premises Related,BAA,04/09/2012,06-10001,1480.5,Flexiform Business Furniture,,,,,,,,,,,
Nottinghamshire County Council,1111/1001,Surplus or Deficit from Trading Undertak,TRADING,Premises Related,BJA,11/09/2012,06-10001,504.2,Freudenberg Household Products Lp,,,,,,,,,,,
Nottinghamshire County Council,1111/1001,Surplus or Deficit from Trading Undertak,TRADING,Premises Related,BJA,14/09/2012,06-10001,1469.39,Freudenberg Household Products Lp,,,,,,,,,,,
Nottinghamshire County Council,1111/1001,Surplus or Deficit from Trading Undertak,TRADING,Premises Related,BJA,24/09/2012,06-10001,616.06,Freudenberg Household Products Lp,,,,,,,,,,,
Nottinghamshire County Council,1111/1001,Surplus or Deficit from Trading Undertak,TRADING,Premises Related,BJA,12/09/2012,06-10001,3812.25,Polystar Plastics Ltd,,,,,,,,,,,
Nottinghamshire County Council,1111/1001,Surplus or Deficit from Trading Undertak,TRADING,Premises Related,BJA,14/09/2012,06-10001,974.4,Polystar Plastics Ltd,,,,,,,,,,,
Nottinghamshire County Council,1111/1001,Surplus or Deficit from Trading Undertak,TRADING,Premises Related,BJA,24/09/2012,06-10001,504,Polystar Plastics Ltd,,,,,,,,,,,
Nottinghamshire County Council,1111/1001,Surplus or Deficit from Trading Undertak,TRADING,Premises Related,BJA,12/09/2012,06-10001,869.12,Macfarlane Group (Uk) Ltd,,,,,,,,,,,
Nottinghamshire County Council,1111/1001,Surplus or Deficit from Trading Undertak,TRADING,Premises Related,BJA,04/09/2012,06-10001,685.06,Ecover (Uk) Ltd,,,,,,,,,,,
Nottinghamshire County Council,1111/1001,Surplus or Deficit from Trading Undertak,TRADING,Premises Related,BJA,04/09/2012,06-10001,735.9,Bunzl Cleaning & Hygiene Supplies,,,,,,,,,,,
Nottinghamshire County Council,1111/1001,Surplus or Deficit from Trading Undertak,TRADING,Premises Related,BJA,12/09/2012,06-10001,657.28,Bunzl Cleaning & Hygiene Supplies,,,,,,,,,,,
Nottinghamshire County Council,1111/1001,Surplus or Deficit from Trading Undertak,TRADING,Premises Related,BJA,12/09/2012,06-10001,1319.2,Bunzl Cleaning & Hygiene Supplies,,,,,,,,,,,
Nottinghamshire County Council,1111/1001,Surplus or Deficit from Trading Undertak,TRADING,Premises Related,BJA,12/09/2012,06-10001,1033,Bunzl Cleaning & Hygiene Supplies,,,,,,,,,,,
Nottinghamshire County Council,1111/1001,Surplus or Deficit from Trading Undertak,TRADING,Premises Related,BJA,24/09/2012,06-10001,1778,Bunzl Cleaning & Hygiene Supplies,,,,,,,,,,,
Nottinghamshire County Council,1111/1001,Surplus or Deficit from Trading Undertak,TRADING,Premises Related,BJA,14/09/2012,06-10001,874.69,Midland Wiper Manufacturing Co Ltd,,,,,,,,,,,
Nottinghamshire County Council,1111/1001,Surplus or Deficit from Trading Undertak,TRADING,Premises Related,BJA,11/09/2012,06-10001,665.81,Evans Vanodine International Ltd,,,,,,,,,,,
Nottinghamshire County Council,1111/1001,Surplus or Deficit from Trading Undertak,TRADING,Premises Related,BJA,12/09/2012,06-10001,1162.47,Johnson Diversey,,,,,,,,,,,
Nottinghamshire County Council,1111/1001,Surplus or Deficit from Trading Undertak,TRADING,Premises Related,BJA,14/09/2012,06-10001,625.77,Johnson Diversey,,,,,,,,,,,
Nottinghamshire County Council,1111/1001,Surplus or Deficit from Trading Undertak,TRADING,Premises Related,BJA,14/09/2012,06-10001,1144.8,Premiere Products,,,,,,,,,,,
Nottinghamshire County Council,1111/1001,Surplus or Deficit from Trading Undertak,TRADING,Premises Related,BJA,14/09/2012,06-10001,2598.16,Premiere Products,,,,,,,,,,,
Nottinghamshire County Council,1111/1001,Surplus or Deficit from Trading Undertak,TRADING,Premises Related,BJA,14/09/2012,06-10001,1427.9,Premiere Products,,,,,,,,,,,
Nottinghamshire County Council,1111/1001,Surplus or Deficit from Trading Undertak,TRADING,Premises Related,BJA,24/09/2012,06-10001,1214.64,Premiere Products,,,,,,,,,,,
Nottinghamshire County Council,1111/1001,Surplus or Deficit from Trading Undertak,TRADING,Premises Related,BJA,24/09/2012,06-10001,803.39,Premiere Products,,,,,,,,,,,
Nottinghamshire County Council,1111/1001,Surplus or Deficit from Trading Undertak,TRADING,Premises Related,BJA,24/09/2012,06-10001,2088.5,Premiere Products,,,,,,,,,,,
Nottinghamshire County Council,1111/1001,Surplus or Deficit from Trading Undertak,TRADING,Premises Related,BJA,11/09/2012,06-10001,702.9,Denis Rawlins Ltd,,,,,,,,,,,
Nottinghamshire County Council,1111/1001,Surplus or Deficit from Trading Undertak,TRADING,Premises Related,BJA,18/09/2012,06-10001,837,R Scott & Sons Ltd,,,,,,,,,,,
Nottinghamshire County Council,1111/1001,Surplus or Deficit from Trading Undertak,TRADING,Premises Related,BJA,24/09/2012,06-10001,1572.6,R Scott & Sons Ltd,,,,,,,,,,,
Nottinghamshire County Council,1111/1001,Surplus or Deficit from Trading Undertak,TRADING,Premises Related,BJA,24/09/2012,06-10001,542.16,Wilson Electrics,,,,,,,,,,,
Nottinghamshire County Council,1111/1001,Surplus or Deficit from Trading Undertak,TRADING,Supplies & Services,DAA,12/09/2012,06-10001,673,W V Howe (Hardware) Ltd,,,,,,,,,,,
Nottinghamshire County Council,1111/1001,Surplus or Deficit from Trading Undertak,TRADING,Supplies & Services,DAA,12/09/2012,06-10001,537.5,Hamilton & Pollack,,,,,,,,,,,
Nottinghamshire County Council,1111/1001,Surplus or Deficit from Trading Undertak,TRADING,Supplies & Services,DAA,12/09/2012,06-10001,1612.5,Hamilton & Pollack,,,,,,,,,,,
Nottinghamshire County Council,1111/1001,Surplus or Deficit from Trading Undertak,TRADING,Supplies & Services,DAA,12/09/2012,06-10001,1720,Hamilton & Pollack,,,,,,,,,,,
Nottinghamshire County Council,1111/1001,Surplus or Deficit from Trading Undertak,TRADING,Supplies & Services,DAA,04/09/2012,06-10001,717.26,Edwards Sports,,,,,,,,,,,
Nottinghamshire County Council,1111/1001,Surplus or Deficit from Trading Undertak,TRADING,Supplies & Services,DAA,26/09/2012,06-10001,532.81,Ransome Sporting Goods Group Ltd,,,,,,,,,,,
Nottinghamshire County Council,1111/1001,Surplus or Deficit from Trading Undertak,TRADING,Supplies & Services,DAA,26/09/2012,06-10001,1048.12,Ransome Sporting Goods Group Ltd,,,,,,,,,,,
Nottinghamshire County Council,1111/1001,Surplus or Deficit from Trading Undertak,TRADING,Supplies & Services,DAA,26/09/2012,06-10001,532.81,Ransome Sporting Goods Group Ltd,,,,,,,,,,,
Nottinghamshire County Council,1111/1001,Surplus or Deficit from Trading Undertak,TRADING,Supplies & Services,DAA,19/09/2012,06-10001,1252.5,Sebel Furniture Ltd,,,,,,,,,,,
Nottinghamshire County Council,1111/1001,Surplus or Deficit from Trading Undertak,TRADING,Supplies & Services,DAA,19/09/2012,06-10001,1040,Sebel Furniture Ltd,,,,,,,,,,,
Nottinghamshire County Council,1111/1001,Surplus or Deficit from Trading Undertak,TRADING,Supplies & Services,DAA,06/09/2012,06-10001,1189.6,Office Innovations,,,,,,,,,,,
Nottinghamshire County Council,1111/1001,Surplus or Deficit from Trading Undertak,TRADING,Supplies & Services,DAA,24/09/2012,06-10001,1120,Office Innovations,,,,,,,,,,,
Nottinghamshire County Council,1111/1001,Surplus or Deficit from Trading Undertak,TRADING,Supplies & Services,DAA,06/09/2012,06-10001,613.88,Advanced Moulds Ltd,,,,,,,,,,,
Nottinghamshire County Council,1111/1001,Surplus or Deficit from Trading Undertak,TRADING,Supplies & Services,DAA,06/09/2012,06-10001,1319.7,Kit For Kids Ltd,,,,,,,,,,,
Nottinghamshire County Council,1111/1001,Surplus or Deficit from Trading Undertak,TRADING,Supplies & Services,DAA,18/09/2012,06-10001,1950,Mardel Office Interiors,,,,,,,,,,,
Nottinghamshire County Council,1111/1001,Surplus or Deficit from Trading Undertak,TRADING,Supplies & Services,DAA,24/09/2012,06-10001,507,Mardel Office Interiors,,,,,,,,,,,
Nottinghamshire County Council,1111/1001,Surplus or Deficit from Trading Undertak,TRADING,Supplies & Services,DAA,04/09/2012,06-10001,2469.35,Hille Education Products Ltd,,,,,,,,,,,
Nottinghamshire County Council,1111/1001,Surplus or Deficit from Trading Undertak,TRADING,Supplies & Services,DAA,04/09/2012,06-10001,1129.31,Hille Education Products Ltd,,,,,,,,,,,
Nottinghamshire County Council,1111/1001,Surplus or Deficit from Trading Undertak,TRADING,Supplies & Services,DAA,11/09/2012,06-10001,2233.2,Hille Education Products Ltd,,,,,,,,,,,
Nottinghamshire County Council,1111/1001,Surplus or Deficit from Trading Undertak,TRADING,Supplies & Services,DAA,11/09/2012,06-10001,897.75,Hille Education Products Ltd,,,,,,,,,,,
Nottinghamshire County Council,1111/1001,Surplus or Deficit from Trading Undertak,TRADING,Supplies & Services,DAA,18/09/2012,06-10001,761.8,Hille Education Products Ltd,,,,,,,,,,,
Nottinghamshire County Council,1111/1001,Surplus or Deficit from Trading Undertak,TRADING,Supplies & Services,DAA,19/09/2012,06-10001,1635,Hille Education Products Ltd,,,,,,,,,,,
Nottinghamshire County Council,1111/1001,Surplus or Deficit from Trading Undertak,TRADING,Supplies & Services,DAA,04/09/2012,06-10001,805.38,R2 Solutions Ltd,,,,,,,,,,,
Nottinghamshire County Council,1111/1001,Surplus or Deficit from Trading Undertak,TRADING,Supplies & Services,DAA,04/09/2012,06-10001,1037.79,R2 Solutions Ltd,,,,,,,,,,,
Nottinghamshire County Council,1111/1001,Surplus or Deficit from Trading Undertak,TRADING,Supplies & Services,DAA,04/09/2012,06-10001,1037.79,R2 Solutions Ltd,,,,,,,,,,,
Nottinghamshire County Council,1111/1001,Surplus or Deficit from Trading Undertak,TRADING,Supplies & Services,DAA,18/09/2012,06-10001,998.16,R2 Solutions Ltd,,,,,,,,,,,
Nottinghamshire County Council,1111/1001,Surplus or Deficit from Trading Undertak,TRADING,Supplies & Services,DAA,19/09/2012,06-10001,959.61,R2 Solutions Ltd,,,,,,,,,,,
Nottinghamshire County Council,1111/1001,Surplus or Deficit from Trading Undertak,TRADING,Supplies & Services,DAA,06/09/2012,06-10001,978.4,Lawtons Ltd,,,,,,,,,,,
Nottinghamshire County Council,1111/1001,Surplus or Deficit from Trading Undertak,TRADING,Supplies & Services,DAA,11/09/2012,06-10001,1501.2,Gopak Ltd,,,,,,,,,,,
Nottinghamshire County Council,1111/1001,Surplus or Deficit from Trading Undertak,TRADING,Supplies & Services,DAA,26/09/2012,06-10001,520.13,Gopak Ltd,,,,,,,,,,,
Nottinghamshire County Council,1111/1001,Surplus or Deficit from Trading Undertak,TRADING,Supplies & Services,DAA,12/09/2012,06-10001,666.96,Gratnells Ltd,,,,,,,,,,,
Nottinghamshire County Council,1111/1001,Surplus or Deficit from Trading Undertak,TRADING,Supplies & Services,DAA,06/09/2012,06-10001,505.2,Hille Seating Ltd,,,,,,,,,,,
Nottinghamshire County Council,1111/1001,Surplus or Deficit from Trading Undertak,TRADING,Supplies & Services,DAA,11/09/2012,06-10001,540.15,Hille Seating Ltd,,,,,,,,,,,
Nottinghamshire County Council,1111/1001,Surplus or Deficit from Trading Undertak,TRADING,Supplies & Services,DAA,11/09/2012,06-10001,997.8,Hille Seating Ltd,,,,,,,,,,,
Nottinghamshire County Council,1111/1001,Surplus or Deficit from Trading Undertak,TRADING,Supplies & Services,DAA,19/09/2012,06-10001,801,Hille Seating Ltd,,,,,,,,,,,
Nottinghamshire County Council,1111/1001,Surplus or Deficit from Trading Undertak,TRADING,Supplies & Services,DAA,24/09/2012,06-10001,648.18,Hille Seating Ltd,,,,,,,,,,,
Nottinghamshire County Council,1111/1001,Surplus or Deficit from Trading Undertak,TRADING,Supplies & Services,DAA,26/09/2012,06-10001,609.92,Monarch Acoustics Ltd,,,,,,,,,,,
Nottinghamshire County Council,1111/1001,Surplus or Deficit from Trading Undertak,TRADING,Supplies & Services,DAA,26/09/2012,06-10001,679.5,Efm (Chesterfield) Ltd,,,,,,,,,,,
Nottinghamshire County Council,1111/1001,Surplus or Deficit from Trading Undertak,TRADING,Supplies & Services,DAA,06/09/2012,06-10001,635.15,G&B Office Services Group Ltd,,,,,,,,,,,
Nottinghamshire County Council,1111/1001,Surplus or Deficit from Trading Undertak,TRADING,Supplies & Services,DAA,19/09/2012,06-10001,1406.4,Spaceright Europe Ltd,,,,,,,,,,,
Nottinghamshire County Council,1111/1001,Surplus or Deficit from Trading Undertak,TRADING,Supplies & Services,DAA,19/09/2012,06-10001,880,Spaceright Europe Ltd,,,,,,,,,,,
Nottinghamshire County Council,1111/1001,Surplus or Deficit from Trading Undertak,TRADING,Supplies & Services,DAA,24/09/2012,06-10001,516,Spaceright Europe Ltd,,,,,,,,,,,
Nottinghamshire County Council,1111/1001,Surplus or Deficit from Trading Undertak,TRADING,Supplies & Services,DAA,06/09/2012,06-10001,927.84,Monarch Computer Furniture,,,,,,,,,,,
Nottinghamshire County Council,1111/1001,Surplus or Deficit from Trading Undertak,TRADING,Supplies & Services,DAA,06/09/2012,06-10001,1618.04,Monarch Computer Furniture,,,,,,,,,,,
Nottinghamshire County Council,1111/1001,Surplus or Deficit from Trading Undertak,TRADING,Supplies & Services,DAA,06/09/2012,06-10001,741.12,Monarch Computer Furniture,,,,,,,,,,,
Nottinghamshire County Council,1111/1001,Surplus or Deficit from Trading Undertak,TRADING,Supplies & Services,DAA,19/09/2012,06-10001,556,Monarch Computer Furniture,,,,,,,,,,,
Nottinghamshire County Council,1111/1001,Surplus or Deficit from Trading Undertak,TRADING,Supplies & Services,DAA,19/09/2012,06-10001,650.66,Monarch Computer Furniture,,,,,,,,,,,
Nottinghamshire County Council,1111/1001,Surplus or Deficit from Trading Undertak,TRADING,Supplies & Services,DAA,19/09/2012,06-10001,658.22,Monarch Computer Furniture,,,,,,,,,,,
Nottinghamshire County Council,1111/1001,Surplus or Deficit from Trading Undertak,TRADING,Supplies & Services,DAA,24/09/2012,06-10001,595.84,Monarch Computer Furniture,,,,,,,,,,,
Nottinghamshire County Council,1111/1001,Surplus or Deficit from Trading Undertak,TRADING,Supplies & Services,DAA,26/09/2012,06-10001,987.47,Monarch Computer Furniture,,,,,,,,,,,
Nottinghamshire County Council,1111/1001,Surplus or Deficit from Trading Undertak,TRADING,Supplies & Services,DAA,26/09/2012,06-10001,597.39,Monarch Computer Furniture,,,,,,,,,,,
Nottinghamshire County Council,1111/1001,Surplus or Deficit from Trading Undertak,TRADING,Supplies & Services,DAA,19/09/2012,06-10001,917.28,Metroplan Limited,,,,,,,,,,,
Nottinghamshire County Council,1111/1001,Surplus or Deficit from Trading Undertak,TRADING,Supplies & Services,DAA,11/09/2012,06-10001,662.4,William Sinclair Horticulture Ltd,,,,,,,,,,,
Nottinghamshire County Council,1111/1001,Surplus or Deficit from Trading Undertak,TRADING,Supplies & Services,DAA,24/09/2012,06-10001,662.4,William Sinclair Horticulture Ltd,,,,,,,,,,,
Nottinghamshire County Council,1111/1001,Surplus or Deficit from Trading Undertak,TRADING,Supplies & Services,DAA,12/09/2012,06-10001,670.47,Commotion Technology Supplies,,,,,,,,,,,
Nottinghamshire County Council,1111/1001,Surplus or Deficit from Trading Undertak,TRADING,Supplies & Services,DDA,04/09/2012,06-10001,543,Major Brushes Ltd,,,,,,,,,,,
Nottinghamshire County Council,1111/1001,Surplus or Deficit from Trading Undertak,TRADING,Supplies & Services,DDA,12/09/2012,06-10001,525.3,Filalyra Gb Ltd,,,,,,,,,,,
Nottinghamshire County Council,1111/1001,Surplus or Deficit from Trading Undertak,TRADING,Supplies & Services,DDA,18/09/2012,06-10001,839,Brian Clegg (Educational Products) Ltd,,,,,,,,,,,
Nottinghamshire County Council,1111/1001,Surplus or Deficit from Trading Undertak,TRADING,Supplies & Services,DDA,18/09/2012,06-10001,550,Brian Clegg (Educational Products) Ltd,,,,,,,,,,,
Nottinghamshire County Council,1111/1001,Surplus or Deficit from Trading Undertak,TRADING,Supplies & Services,DDA,18/09/2012,06-10001,967.65,Brian Clegg (Educational Products) Ltd,,,,,,,,,,,
Nottinghamshire County Council,1111/1001,Surplus or Deficit from Trading Undertak,TRADING,Supplies & Services,DDA,12/09/2012,06-10001,632.5,Newclay Products Ltd,,,,,,,,,,,
Nottinghamshire County Council,1111/1001,Surplus or Deficit from Trading Undertak,TRADING,Supplies & Services,DDA,19/09/2012,06-10001,840.15,Newclay Products Ltd,,,,,,,,,,,
Nottinghamshire County Council,1111/1001,Surplus or Deficit from Trading Undertak,TRADING,Supplies & Services,DDA,11/09/2012,06-10001,814.16,Slater Harrison & Co Ltd,,,,,,,,,,,
Nottinghamshire County Council,1111/1001,Surplus or Deficit from Trading Undertak,TRADING,Supplies & Services,DDA,11/09/2012,06-10001,658.88,Slater Harrison & Co Ltd,,,,,,,,,,,
Nottinghamshire County Council,1111/1001,Surplus or Deficit from Trading Undertak,TRADING,Supplies & Services,DDA,11/09/2012,06-10001,908.5,Slater Harrison & Co Ltd,,,,,,,,,,,
Nottinghamshire County Council,1111/1001,Surplus or Deficit from Trading Undertak,TRADING,Supplies & Services,DDA,11/09/2012,06-10001,692,Slater Harrison & Co Ltd,,,,,,,,,,,
Nottinghamshire County Council,1111/1001,Surplus or Deficit from Trading Undertak,TRADING,Supplies & Services,DDA,11/09/2012,06-10001,696,Slater Harrison & Co Ltd,,,,,,,,,,,
Nottinghamshire County Council,1111/1001,Surplus or Deficit from Trading Undertak,TRADING,Supplies & Services,DDA,06/09/2012,06-10001,1167.63,Creativity International Ltd,,,,,,,,,,,
Nottinghamshire County Council,1111/1001,Surplus or Deficit from Trading Undertak,TRADING,Supplies & Services,DDA,11/09/2012,06-10001,844.8,Creativity International Ltd,,,,,,,,,,,
Nottinghamshire County Council,1111/1001,Surplus or Deficit from Trading Undertak,TRADING,Supplies & Services,DDA,11/09/2012,06-10001,578.85,Creativity International Ltd,,,,,,,,,,,
Nottinghamshire County Council,1111/1001,Surplus or Deficit from Trading Undertak,TRADING,Supplies & Services,DDA,11/09/2012,06-10001,746.44,Creativity International Ltd,,,,,,,,,,,
Nottinghamshire County Council,1111/1001,Surplus or Deficit from Trading Undertak,TRADING,Supplies & Services,DDA,14/09/2012,06-10001,534.8,Bright Ideas Marketing Ltd,,,,,,,,,,,
Nottinghamshire County Council,1111/1001,Surplus or Deficit from Trading Undertak,TRADING,Employee Related,AAA,27/09/2012,06-10001,759.68,Frontline Recruitment Ltd,,,,,,,,,,,
Nottinghamshire County Council,1111/1001,Surplus or Deficit from Trading Undertak,TRADING,Employee Related,AAA,27/09/2012,06-10001,779.55,Frontline Recruitment Ltd,,,,,,,,,,,
Nottinghamshire County Council,1111/1001,Children and Young People,CYP,Employee Related,ABA,06/09/2012,06-16084,864.8,Nottm & Notts Futures Ltd,,,,,,,,,,,
Nottinghamshire County Council,1111/1001,Children and Young People,CYP,Employee Related,ABA,17/09/2012,06-16301,950,Positive Options Ltd,,,,,,,,,,,
Nottinghamshire County Council,1111/1001,Children and Young People,CYP,Premises Related,BAA,10/09/2012,06-10683,976,Midland Roofing Services (Derby) Lt,,,,,,,,,,,
Nottinghamshire County Council,1111/1001,Children and Young People,CYP,Premises Related,BCA,06/09/2012,06-16141,2079.9,Emo Oil Ltd,,,,,,,,,,,
Nottinghamshire County Council,1111/1001,Children and Young People,CYP,Premises Related,BCA,20/09/2012,06-15141,573.43,Sutton Centre Community Centre,,,,,,,,,,,
Nottinghamshire County Council,1111/1001,Children and Young People,CYP,Premises Related,BDA,03/09/2012,06-16073,1060,Sodexo Limited,,,,,,,,,,,
Nottinghamshire County Council,1111/1001,Children and Young People,CYP,Premises Related,BDA,11/09/2012,06-10005,8550,Cbre Ltd,,,,,,,,,,,
Nottinghamshire County Council,1111/1001,Children and Young People,CYP,Premises Related,BDA,11/09/2012,06-13737,1020.57,Cedar Housing Nottingham,,,,,,,,,,,
Nottinghamshire County Council,1111/1001,Children and Young People,CYP,Premises Related,BDA,11/09/2012,06-13738,1965,Cedar Housing Nottingham,,,,,,,,,,,
Nottinghamshire County Council,1111/1001,Children and Young People,CYP,Premises Related,BDA,11/09/2012,06-13785,9926,Making It! Enterprises Ltd,,,,,,,,,,,
Nottinghamshire County Council,1111/1001,Children and Young People,CYP,Premises Related,BDA,14/09/2012,06-16262,1080.5,Welbeck Estates Company Ltd,,,,,,,,,,,
Nottinghamshire County Council,1111/1001,Children and Young People,CYP,Premises Related,BDA,19/09/2012,06-16366,863.06,Everyday Champions Conferencing Ltd,,,,,,,,,,,
Nottinghamshire County Council,1111/1001,Children and Young People,CYP,Premises Related,BDA,21/09/2012,06-15028,15700,Sherwood Forest Hosp Nhs Trust,,,,,,,,,,,
Nottinghamshire County Council,1111/1001,Children and Young People,CYP,Premises Related,BFA,04/09/2012,06-10265,1925.3,Severn Trent Water Ltd,,,,,,,,,,,
Nottinghamshire County Council,1111/1001,Children and Young People,CYP,Premises Related,BFA,17/09/2012,06-14382,7315.7,Severn Trent Water Ltd,,,,,,,,,,,
Nottinghamshire County Council,1111/1001,Children and Young People,CYP,Premises Related,BFA,17/09/2012,06-14392,525.48,Severn Trent Water Ltd,,,,,,,,,,,
Nottinghamshire County Council,1111/1001,Children and Young People,CYP,Premises Related,BFA,18/09/2012,06-14396,2635.77,Severn Trent Water Ltd,,,,,,,,,,,
Nottinghamshire County Council,1111/1001,Children and Young People,CYP,Premises Related,BFA,19/09/2012,06-15038,1892.92,Severn Trent Water Ltd,,,,,,,,,,,
Nottinghamshire County Council,1111/1001,Children and Young People,CYP,Premises Related,BFA,20/09/2012,06-15141,146.1,Sutton Centre Community Centre,,,,,,,,,,,
Nottinghamshire County Council,1111/1001,Children and Young People,CYP,Premises Related,BFA,21/09/2012,06-14395,1453.17,Severn Trent Water Ltd,,,,,,,,,,,
Nottinghamshire County Council,1111/1001,Children and Young People,CYP,Premises Related,BFA,25/09/2012,06-10436,1017.67,Severn Trent Searches Ltd,,,,,,,,,,,
Nottinghamshire County Council,1111/1001,Children and Young People,CYP,Premises Related,BFA,28/09/2012,06-15237,422.47,Adsm Ltd,,,,,,,,,,,
Nottinghamshire County Council,1111/1001,Children and Young People,CYP,Premises Related,BJA,18/09/2012,06-14963,1577.6,Making It! Enterprises Ltd,,,,,,,,,,,
Nottinghamshire County Council,1111/1001,Children and Young People,CYP,Transport Related,CAA,17/09/2012,06-16300,11815,Midlands Co Operative Society Ltd,,,,,,,,,,,
Nottinghamshire County Council,1111/1001,Children and Young People,CYP,Transport Related,CCA,11/09/2012,06-12048,900,Cabline Uk Ltd,,,,,,,,,,,
Nottinghamshire County Council,1111/1001,Children and Young People,CYP,Transport Related,CCA,11/09/2012,06-12049,840,Cabline Uk Ltd,,,,,,,,,,,
Nottinghamshire County Council,1111/1001,Children and Young People,CYP,Transport Related,CCA,11/09/2012,06-12050,900,Cabline Uk Ltd,,,,,,,,,,,
Nottinghamshire County Council,1111/1001,Children and Young People,CYP,Transport Related,CCA,11/09/2012,06-12051,1200,Cabline Uk Ltd,,,,,,,,,,,
Nottinghamshire County Council,1111/1001,Children and Young People,CYP,Transport Related,CCA,12/09/2012,06-13831,2329.25,BN Gibson Ltd,,,,,,,,,,,
Nottinghamshire County Council,1111/1001,Children and Young People,CYP,Transport Related,CCA,14/09/2012,06-14174,940,Sprays Transport Ltd,,,,,,,,,,,
Nottinghamshire County Council,1111/1001,Children and Young People,CYP,Transport Related,CCA,25/09/2012,06-15618,147.22,Premiere Travel Ltd,,,,,,,,,,,
Nottinghamshire County Council,1111/1001,Children and Young People,CYP,Transport Related,CCA,25/09/2012,06-15619,883.36,Premiere Travel Ltd,,,,,,,,,,,
Nottinghamshire County Council,1111/1001,Children and Young People,CYP,Transport Related,CCA,25/09/2012,06-15624,883.36,Premiere Travel Ltd,,,,,,,,,,,
Nottinghamshire County Council,1111/1001,Children and Young People,CYP,Transport Related,CCA,25/09/2012,06-15629,883.36,Premiere Travel Ltd,,,,,,,,,,,
Nottinghamshire County Council,1111/1001,Children and Young People,CYP,Transport Related,CEA,18/09/2012,06-14963,450,Making It! Enterprises Ltd,,,,,,,,,,,
Nottinghamshire County Council,1111/1001,Children and Young People,CYP,Supplies & Services,DAA,05/09/2012,06-16097,4525,Location Audio,,,,,,,,,,,
Nottinghamshire County Council,1111/1001,Children and Young People,CYP,Supplies & Services,DAA,06/09/2012,06-10437,700.2,Wesco,,,,,,,,,,,
Nottinghamshire County Council,1111/1001,Children and Young People,CYP,Supplies & Services,DAA,07/09/2012,06-10030,28210,Broxtowe Borough Council,,,,,,,,,,,
Nottinghamshire County Council,1111/1001,Children and Young People,CYP,Supplies & Services,DAA,07/09/2012,06-10438,700000,Ashfield Academy,,,,,,,,,,,
Nottinghamshire County Council,1111/1001,Children and Young People,CYP,Supplies & Services,DAA,11/09/2012,06-13772,1448.38,Renaissance Learning UK Ltd,,,,,,,,,,,
Nottinghamshire County Council,1111/1001,Children and Young People,CYP,Supplies & Services,DAA,11/09/2012,06-13774,550,Bendcrete Climbing Walls Ltd,,,,,,,,,,,
Nottinghamshire County Council,1111/1001,Children and Young People,CYP,Supplies & Services,DAA,14/09/2012,06-13880,99,Broxtowe Borough Council,,,,,,,,,,,
Nottinghamshire County Council,1111/1001,Children and Young People,CYP,Supplies & Services,DAA,17/09/2012,06-14376,900,Bolsover District Council,,,,,,,,,,,
Nottinghamshire County Council,1111/1001,Children and Young People,CYP,Supplies & Services,DAA,18/09/2012,06-14973,594,Nottm & Notts Futures Ltd,,,,,,,,,,,
Nottinghamshire County Council,1111/1001,Children and Young People,CYP,Supplies & Services,DAA,19/09/2012,06-16089,2660,Omega Music (UK) Ltd,,,,,,,,,,,
Nottinghamshire County Council,1111/1001,Children and Young People,CYP,Supplies & Services,DAA,19/09/2012,06-16381,532,Office Innovations,,,,,,,,,,,
Nottinghamshire County Council,1111/1001,Children and Young People,CYP,Supplies & Services,DAA,20/09/2012,06-15120,3177,Ashfield District Council,,,,,,,,,,,
Nottinghamshire County Council,1111/1001,Children and Young People,CYP,Supplies & Services,DAA,21/09/2012,06-14967,46053.46,Transform Schools,,,,,,,,,,,
Nottinghamshire County Council,1111/1001,Children and Young People,CYP,Supplies & Services,DAA,21/09/2012,06-14968,4820.28,Transform Schools,,,,,,,,,,,
Nottinghamshire County Council,1111/1001,Children and Young People,CYP,Supplies & Services,DAA,21/09/2012,06-14969,47615.02,Transform Schools,,,,,,,,,,,
Nottinghamshire County Council,1111/1001,Children and Young People,CYP,Supplies & Services,DAA,21/09/2012,06-14970,16254.48,Transform Schools,,,,,,,,,,,
Nottinghamshire County Council,1111/1001,Children and Young People,CYP,Supplies & Services,DAA,21/09/2012,06-14995,1483672.95,Transform Schools,,,,,,,,,,,
Nottinghamshire County Council,1111/1001,Children and Young People,CYP,Supplies & Services,DAA,25/09/2012,06-15484,2130,John Godber Centre,,,,,,,,,,,
Nottinghamshire County Council,1111/1001,Children and Young People,CYP,Supplies & Services,DAA,25/09/2012,06-15485,1906,John Godber Centre,,,,,,,,,,,
Nottinghamshire County Council,1111/1001,Children and Young People,CYP,Supplies & Services,DAA,27/09/2012,06-14966,17130.2,East Leake Schools Ltd,,,,,,,,,,,
Nottinghamshire County Council,1111/1001,Children and Young People,CYP,Supplies & Services,DAA,27/09/2012,06-15369,223786.54,East Leake Schools Ltd,,,,,,,,,,,
Nottinghamshire County Council,1111/1001,Children and Young People,CYP,Supplies & Services,DAA,28/09/2012,06-16108,625,Big Bounce,,,,,,,,,,,
Nottinghamshire County Council,1111/1001,Children and Young People,CYP,Supplies & Services,DAA,28/09/2012,06-16155,2384.25,Alastair Hanson Ltd T/A Hanson Musi,,,,,,,,,,,
Nottinghamshire County Council,1111/1001,Children and Young People,CYP,Supplies & Services,DBA,10/09/2012,06-10618,31.87,Brake Bros Ltd,,,,,,,,,,,
Nottinghamshire County Council,1111/1001,Children and Young People,CYP,Supplies & Services,DBA,10/09/2012,06-10619,896.46,Brake Bros Ltd,,,,,,,,,,,
Nottinghamshire County Council,1111/1001,Children and Young People,CYP,Supplies & Services,DBA,10/09/2012,06-10621,466.22,Brake Bros Ltd,,,,,,,,,,,
Nottinghamshire County Council,1111/1001,Children and Young People,CYP,Supplies & Services,DBA,10/09/2012,06-10622,148.9,Brake Bros Ltd,,,,,,,,,,,
Nottinghamshire County Council,1111/1001,Children and Young People,CYP,Supplies & Services,DBA,10/09/2012,06-10623,839.19,Brake Bros Ltd,,,,,,,,,,,
Nottinghamshire County Council,1111/1001,Children and Young People,CYP,Supplies & Services,DBA,10/09/2012,06-10625,47.51,Brake Bros Ltd,,,,,,,,,,,
Nottinghamshire County Council,1111/1001,Children and Young People,CYP,Supplies & Services,DBA,11/09/2012,06-10698,313.16,Hallam Country Fresh Foods Ltd,,,,,,,,,,,
Nottinghamshire County Council,1111/1001,Children and Young People,CYP,Supplies & Services,DBA,11/09/2012,06-13795,28.36,Brake Bros Ltd,,,,,,,,,,,
Nottinghamshire County Council,1111/1001,Children and Young People,CYP,Supplies & Services,DBA,11/09/2012,06-13797,428.65,Hallam Country Fresh Foods Ltd,,,,,,,,,,,
Nottinghamshire County Council,1111/1001,Children and Young People,CYP,Supplies & Services,DBA,12/09/2012,06-13828,126.4,M Maloney Country Butchers & B Ltd,,,,,,,,,,,
Nottinghamshire County Council,1111/1001,Children and Young People,CYP,Supplies & Services,DBA,18/09/2012,06-14965,450.79,Hallam Country Fresh Foods Ltd,,,,,,,,,,,
Nottinghamshire County Council,1111/1001,Children and Young People,CYP,Supplies & Services,DBA,20/09/2012,06-15068,148.97,Brake Bros Ltd,,,,,,,,,,,
Nottinghamshire County Council,1111/1001,Children and Young People,CYP,Supplies & Services,DBA,20/09/2012,06-15069,212.11,Brake Bros Ltd,,,,,,,,,,,
Nottinghamshire County Council,1111/1001,Children and Young People,CYP,Supplies & Services,DBA,20/09/2012,06-15070,350.86,Brake Bros Ltd,,,,,,,,,,,
Nottinghamshire County Council,1111/1001,Children and Young People,CYP,Supplies & Services,DBA,20/09/2012,06-15071,194.72,Arnold Dairies Ltd,,,,,,,,,,,
Nottinghamshire County Council,1111/1001,Children and Young People,CYP,Supplies & Services,DBA,20/09/2012,06-15072,218.03,Arnold Dairies Ltd,,,,,,,,,,,
Nottinghamshire County Council,1111/1001,Children and Young People,CYP,Supplies & Services,DBA,20/09/2012,06-15073,174.46,Arnold Dairies Ltd,,,,,,,,,,,
Nottinghamshire County Council,1111/1001,Children and Young People,CYP,Supplies & Services,DBA,20/09/2012,06-15074,333.34,M Maloney Country Butchers & B Ltd,,,,,,,,,,,
Nottinghamshire County Council,1111/1001,Children and Young People,CYP,Supplies & Services,DBA,20/09/2012,06-15075,366.05,M Maloney Country Butchers & B Ltd,,,,,,,,,,,
Nottinghamshire County Council,1111/1001,Children and Young People,CYP,Supplies & Services,DBA,20/09/2012,06-15076,226.49,M Maloney Country Butchers & B Ltd,,,,,,,,,,,
Nottinghamshire County Council,1111/1001,Children and Young People,CYP,Supplies & Services,DBA,21/09/2012,06-15340,137.85,Brake Bros Ltd,,,,,,,,,,,
Nottinghamshire County Council,1111/1001,Children and Young People,CYP,Supplies & Services,DBA,25/09/2012,06-15482,400.27,Hallam Country Fresh Foods Ltd,,,,,,,,,,,
Nottinghamshire County Council,1111/1001,Children and Young People,CYP,Supplies & Services,DBA,25/09/2012,06-15679,540.45,Brake Bros Ltd,,,,,,,,,,,
Nottinghamshire County Council,1111/1001,Children and Young People,CYP,Supplies & Services,DBA,25/09/2012,06-15680,909.74,Brake Bros Ltd,,,,,,,,,,,
Nottinghamshire County Council,1111/1001,Children and Young People,CYP,Supplies & Services,DBA,25/09/2012,06-15686,171.39,Arnold Dairies Ltd,,,,,,,,,,,
Nottinghamshire County Council,1111/1001,Children and Young People,CYP,Supplies & Services,DBA,25/09/2012,06-15687,1018.16,Brake Bros Ltd,,,,,,,,,,,
Nottinghamshire County Council,1111/1001,Children and Young People,CYP,Supplies & Services,DDA,11/09/2012,06-13779,911.22,Konica Minolta,,,,,,,,,,,
Nottinghamshire County Council,1111/1001,Children and Young People,CYP,Supplies & Services,DDA,17/09/2012,06-14374,764.41,Konica Minolta,,,,,,,,,,,
Nottinghamshire County Council,1111/1001,Children and Young People,CYP,Supplies & Services,DEA,07/09/2012,06-10608,6553,Serlby Park Academy,,,,,,,,,,,
Nottinghamshire County Council,1111/1001,Children and Young People,CYP,Supplies & Services,DEA,12/09/2012,06-13810,1120,Winners After School Club Ltd,,,,,,,,,,,
Nottinghamshire County Council,1111/1001,Children and Young People,CYP,Supplies & Services,DEA,12/09/2012,06-13824,509.58,Cherubs Day Nursery,,,,,,,,,,,
Nottinghamshire County Council,1111/1001,Children and Young People,CYP,Supplies & Services,DEA,12/09/2012,06-13889,500,Wishing Well Day Nursery,,,,,,,,,,,
Nottinghamshire County Council,1111/1001,Children and Young People,CYP,Supplies & Services,DEA,12/09/2012,06-13890,595.4,Ordsall Primary School,,,,,,,,,,,
Nottinghamshire County Council,1111/1001,Children and Young People,CYP,Supplies & Services,DEA,18/09/2012,06-14928,2588.6,Ocr,,,,,,,,,,,
Nottinghamshire County Council,1111/1001,Children and Young People,CYP,Supplies & Services,DEA,18/09/2012,06-14941,610,Together Trust,,,,,,,,,,,
Nottinghamshire County Council,1111/1001,Children and Young People,CYP,Supplies & Services,DEA,18/09/2012,06-16299,900,J Eccles,,,,,,,,,,,
Nottinghamshire County Council,1111/1001,Children and Young People,CYP,Supplies & Services,DEA,18/09/2012,06-16320,840,D Pietras,,,,,,,,,,,
Nottinghamshire County Council,1111/1001,Children and Young People,CYP,Supplies & Services,DEA,21/09/2012,06-13825,550,Longdale Nursery School,,,,,,,,,,,
Nottinghamshire County Council,1111/1001,Children and Young People,CYP,Supplies & Services,DEA,21/09/2012,06-13826,616,Longdale Nursery School,,,,,,,,,,,
Nottinghamshire County Council,1111/1001,Children and Young People,CYP,Supplies & Services,DEA,28/09/2012,06-14383,1209.5,Pre School Learning Alliance,,,,,,,,,,,
Nottinghamshire County Council,1111/1001,Children and Young People,CYP,Supplies & Services,DEA,28/09/2012,06-16329,825,Chris Few Consultancy Ltd,,,,,,,,,,,
Nottinghamshire County Council,1111/1001,Children and Young People,CYP,Supplies & Services,DFA,12/09/2012,06-13827,545,Teachers 2 Parents Ltd,,,,,,,,,,,
Nottinghamshire County Council,1111/1001,Children and Young People,CYP,Supplies & Services,DFA,17/09/2012,06-14377,3441.17,Viglen Ltd,,,,,,,,,,,
Nottinghamshire County Council,1111/1001,Children and Young People,CYP,Supplies & Services,DFA,17/09/2012,06-14379,529.1,Lantec Services Ltd,,,,,,,,,,,
Nottinghamshire County Council,1111/1001,Children and Young People,CYP,Supplies & Services,DFA,17/09/2012,06-14401,695.48,British Telecommunications Plc,,,,,,,,,,,
Nottinghamshire County Council,1111/1001,Children and Young People,CYP,Supplies & Services,DFA,18/09/2012,06-14963,556.57,Making It! Enterprises Ltd,,,,,,,,,,,
Nottinghamshire County Council,1111/1001,Children and Young People,CYP,Supplies & Services,DFA,19/09/2012,06-16364,1703.18,Leasing Payments Only Neopost Fin L,,,,,,,,,,,
Nottinghamshire County Council,1111/1001,Children and Young People,CYP,Supplies & Services,DGA,20/09/2012,06-15087,1046.7,Capstone Foster Care Ltd,,,,,,,,,,,
Nottinghamshire County Council,1111/1001,Children and Young People,CYP,Supplies & Services,DHA,24/09/2012,06-13796,2636.17,Bassetlaw Primary Care Trust,,,,,,,,,,,
Nottinghamshire County Council,1111/1001,Children and Young People,CYP,Supplies & Services,DKA,03/09/2012,06-10019,2200,Horizon Social Housing Ltd,,,,,,,,,,,
Nottinghamshire County Council,1111/1001,Children and Young People,CYP,Supplies & Services,DKA,05/09/2012,06-10329,2200,Horizon Social Housing Ltd,,,,,,,,,,,
Nottinghamshire County Council,1111/1001,Children and Young People,CYP,Supplies & Services,DKA,05/09/2012,06-10330,1500,Horizon Social Housing Ltd,,,,,,,,,,,
Nottinghamshire County Council,1111/1001,Children and Young People,CYP,Supplies & Services,DKA,06/09/2012,06-10549,1050,Wyn Training & Consultancy Ltd,,,,,,,,,,,
Nottinghamshire County Council,1111/1001,Children and Young People,CYP,Supplies & Services,DKA,07/09/2012,06-10586,6250,Outwood Academy Portland,,,,,,,,,,,
Nottinghamshire County Council,1111/1001,Children and Young People,CYP,Supplies & Services,DKA,07/09/2012,06-10591,760,Beaumond Cross Hotel,,,,,,,,,,,
Nottinghamshire County Council,1111/1001,Children and Young People,CYP,Supplies & Services,DKA,07/09/2012,06-10609,3125,Retford Oaks Academy,,,,,,,,,,,
Nottinghamshire County Council,1111/1001,Children and Young People,CYP,Supplies & Services,DKA,07/09/2012,06-10610,2875,The Elizabethan Academy,,,,,,,,,,,
Nottinghamshire County Council,1111/1001,Children and Young People,CYP,Supplies & Services,DKA,10/09/2012,06-10679,25985,Edwalton Primary School,,,,,,,,,,,
Nottinghamshire County Council,1111/1001,Children and Young People,CYP,Supplies & Services,DKA,13/09/2012,06-14151,845,First Class Tailored Solutions Ltd,,,,,,,,,,,
Nottinghamshire County Council,1111/1001,Children and Young People,CYP,Supplies & Services,DKA,13/09/2012,06-14152,525,First Class Tailored Solutions Ltd,,,,,,,,,,,
Nottinghamshire County Council,1111/1001,Children and Young People,CYP,Supplies & Services,DKA,14/09/2012,06-10598,6531,Outwood Academy Portland,,,,,,,,,,,
Nottinghamshire County Council,1111/1001,Children and Young People,CYP,Supplies & Services,DKA,14/09/2012,06-14290,1527.5,Adoptionplus Ltd,,,,,,,,,,,
Nottinghamshire County Council,1111/1001,Children and Young People,CYP,Supplies & Services,DKA,14/09/2012,06-14301,6202.44,Ashfield Academy,,,,,,,,,,,
Nottinghamshire County Council,1111/1001,Children and Young People,CYP,Supplies & Services,DKA,17/09/2012,06-14352,1100,Horizon Social Housing Ltd,,,,,,,,,,,
Nottinghamshire County Council,1111/1001,Children and Young People,CYP,Supplies & Services,DKA,17/09/2012,06-14372,11404,Python Hill Primary School,,,,,,,,,,,
Nottinghamshire County Council,1111/1001,Children and Young People,CYP,Supplies & Services,DKA,17/09/2012,06-14373,7824.96,Langold Dyscarr Community School,,,,,,,,,,,
Nottinghamshire County Council,1111/1001,Children and Young People,CYP,Supplies & Services,DKA,17/09/2012,06-14384,1500,Horizon Social Housing Ltd,,,,,,,,,,,
Nottinghamshire County Council,1111/1001,Children and Young People,CYP,Supplies & Services,DKA,17/09/2012,06-16317,1500,Horizon Social Housing Ltd,,,,,,,,,,,
Nottinghamshire County Council,1111/1001,Children and Young People,CYP,Supplies & Services,DKA,18/09/2012,06-14942,4263.1,K Hooper,,,,,,,,,,,
Nottinghamshire County Council,1111/1001,Children and Young People,CYP,Supplies & Services,DKA,18/09/2012,06-14957,2654.28,Scope,,,,,,,,,,,
Nottinghamshire County Council,1111/1001,Children and Young People,CYP,Supplies & Services,DKA,19/09/2012,06-15026,1300,Pickerings,,,,,,,,,,,
Nottinghamshire County Council,1111/1001,Children and Young People,CYP,Supplies & Services,DKA,19/09/2012,06-15039,707.1,Carefirst Services,,,,,,,,,,,
Nottinghamshire County Council,1111/1001,Children and Young People,CYP,Supplies & Services,DKA,19/09/2012,06-16383,5700,Kingsforth Security Fencing Limited,,,,,,,,,,,
Nottinghamshire County Council,1111/1001,Children and Young People,CYP,Supplies & Services,DKA,21/09/2012,06-10359,1326,Solutions In Mind,,,,,,,,,,,
Nottinghamshire County Council,1111/1001,Children and Young People,CYP,Supplies & Services,DKA,21/09/2012,06-15318,879.16,Framework Housing Association,,,,,,,,,,,
Nottinghamshire County Council,1111/1001,Children and Young People,CYP,Supplies & Services,DKA,21/09/2012,06-15319,766.67,Midland Hotel,,,,,,,,,,,
Nottinghamshire County Council,1111/1001,Children and Young People,CYP,Supplies & Services,DKA,25/09/2012,06-15677,1102.08,Midland Hotel,,,,,,,,,,,
Nottinghamshire County Council,1111/1001,Children and Young People,CYP,Supplies & Services,DKA,26/09/2012,06-15740,724.6,Fountaindale Special School,,,,,,,,,,,
Nottinghamshire County Council,1111/1001,Children and Young People,CYP,Supplies & Services,DKA,26/09/2012,06-15818,1500,Horizon Social Housing Ltd,,,,,,,,,,,
Nottinghamshire County Council,1111/1001,Children and Young People,CYP,Supplies & Services,DKA,26/09/2012,06-15819,1550,Carefirst Services,,,,,,,,,,,
Nottinghamshire County Council,1111/1001,Children and Young People,CYP,Supplies & Services,DKA,26/09/2012,06-16382,1712.5,Kingsforth Security Fencing Limited,,,,,,,,,,,
Nottinghamshire County Council,1111/1001,Children and Young People,CYP,Supplies & Services,DKA,27/09/2012,06-15828,1550,Carefirst Services,,,,,,,,,,,
Nottinghamshire County Council,1111/1001,Children and Young People,CYP,Supplies & Services,DKA,28/09/2012,06-15990,21020,Joseph Whittaker Academy,,,,,,,,,,,
Nottinghamshire County Council,1111/1001,Children and Young People,CYP,Third Party Payments,EBA,17/09/2012,06-16237,19485.58,S Yorks Victim Offender Mediation S,,,,,,,,,,,
Nottinghamshire County Council,1111/1001,Children and Young People,CYP,Third Party Payments,ECA,13/09/2012,06-14045,14850,Nottinghamshire Healthcare NHS Trus,,,,,,,,,,,
Nottinghamshire County Council,1111/1001,Children and Young People,CYP,Third Party Payments,ECA,28/09/2012,06-14371,302150.61,Nottinghamshire Healthcare Nhs,,,,,,,,,,,
Nottinghamshire County Council,1111/1001,Children and Young People,CYP,Third Party Payments,EDA,25/09/2012,06-15687,148.24,Brake Bros Ltd,,,,,,,,,,,
Nottinghamshire County Council,1111/1001,Children and Young People,CYP,Third Party Payments,EEA,18/09/2012,06-14943,21625,Family Action,,,,,,,,,,,
Nottinghamshire County Council,1111/1001,Children and Young People,CYP,Third Party Payments,EFA,07/09/2012,06-16142,1279.36,Real Education Ltd,,,,,,,,,,,
Nottinghamshire County Council,1111/1001,Children and Young People,CYP,Third Party Payments,EFA,07/09/2012,06-16143,970.3,Real Education Ltd,,,,,,,,,,,
Nottinghamshire County Council,1111/1001,Children and Young People,CYP,Third Party Payments,EFA,07/09/2012,06-16156,1974.24,Real Education Ltd,,,,,,,,,,,
Nottinghamshire County Council,1111/1001,Children and Young People,CYP,Third Party Payments,EFA,07/09/2012,06-16160,1889.46,Real Education Ltd,,,,,,,,,,,
Nottinghamshire County Council,1111/1001,Children and Young People,CYP,Third Party Payments,EFA,12/09/2012,06-13894,610.66,Mencap Accounts Region 2,,,,,,,,,,,
Nottinghamshire County Council,1111/1001,Children and Young People,CYP,Third Party Payments,EFA,12/09/2012,06-16214,1514.64,Real Education Ltd,,,,,,,,,,,
Nottinghamshire County Council,1111/1001,Children and Young People,CYP,Third Party Payments,EFA,12/09/2012,06-16215,815.98,Real Education Ltd,,,,,,,,,,,
Nottinghamshire County Council,1111/1001,Children and Young People,CYP,Third Party Payments,EFA,12/09/2012,06-16216,1157.7,Real Education Ltd,,,,,,,,,,,
Nottinghamshire County Council,1111/1001,Children and Young People,CYP,Third Party Payments,EFA,12/09/2012,06-16218,2067,Real Education Ltd,,,,,,,,,,,
Nottinghamshire County Council,1111/1001,Children and Young People,CYP,Third Party Payments,EFA,12/09/2012,06-16219,3779.67,Real Education Ltd,,,,,,,,,,,
Nottinghamshire County Council,1111/1001,Children and Young People,CYP,Third Party Payments,EFA,12/09/2012,06-16220,705,Real Education Ltd,,,,,,,,,,,
Nottinghamshire County Council,1111/1001,Children and Young People,CYP,Third Party Payments,EFA,12/09/2012,06-16221,1479.2,Real Education Ltd,,,,,,,,,,,
Nottinghamshire County Council,1111/1001,Children and Young People,CYP,Third Party Payments,EFA,12/09/2012,06-16222,1306.7,Real Education Ltd,,,,,,,,,,,
Nottinghamshire County Council,1111/1001,Children and Young People,CYP,Third Party Payments,EFA,12/09/2012,06-16223,1421.4,Real Education Ltd,,,,,,,,,,,
Nottinghamshire County Council,1111/1001,Children and Young People,CYP,Third Party Payments,EFA,12/09/2012,06-16224,1045.42,Real Education Ltd,,,,,,,,,,,
Nottinghamshire County Council,1111/1001,Children and Young People,CYP,Third Party Payments,EFA,12/09/2012,06-16225,2065.3,Real Education Ltd,,,,,,,,,,,
Nottinghamshire County Council,1111/1001,Children and Young People,CYP,Third Party Payments,EFA,12/09/2012,06-16226,1125,Real Education Ltd,,,,,,,,,,,
Nottinghamshire County Council,1111/1001,Children and Young People,CYP,Third Party Payments,EFA,12/09/2012,06-16227,901.23,Real Education Ltd,,,,,,,,,,,
Nottinghamshire County Council,1111/1001,Children and Young People,CYP,Third Party Payments,EFA,14/09/2012,06-14299,12823.14,Doncaster Deaf Trust,,,,,,,,,,,
Nottinghamshire County Council,1111/1001,Children and Young People,CYP,Third Party Payments,EFA,14/09/2012,06-14300,24333.33,Kisimul School,,,,,,,,,,,
Nottinghamshire County Council,1111/1001,Children and Young People,CYP,Third Party Payments,EFA,18/09/2012,06-16321,2236.09,Real Education Ltd,,,,,,,,,,,
Nottinghamshire County Council,1111/1001,Children and Young People,CYP,Third Party Payments,EFA,19/09/2012,06-15032,1650,Venture For Life Ltd,,,,,,,,,,,
Nottinghamshire County Council,1111/1001,Children and Young People,CYP,Third Party Payments,EFA,19/09/2012,06-15033,4043.25,A4e Ltd,,,,,,,,,,,
Nottinghamshire County Council,1111/1001,Children and Young People,CYP,Third Party Payments,EFA,19/09/2012,06-15034,1294.5,A4e Ltd,,,,,,,,,,,
Nottinghamshire County Council,1111/1001,Children and Young People,CYP,Third Party Payments,EFA,19/09/2012,06-16375,1560,Education & Youth Services Ltd,,,,,,,,,,,
Nottinghamshire County Council,1111/1001,Children and Young People,CYP,Third Party Payments,EFA,19/09/2012,06-16396,2176.17,Real Education Ltd,,,,,,,,,,,
Nottinghamshire County Council,1111/1001,Children and Young People,CYP,Third Party Payments,EFA,26/09/2012,06-15741,1169,Venture For Life Ltd,,,,,,,,,,,
Nottinghamshire County Council,1111/1001,Children and Young People,CYP,Third Party Payments,EFA,28/09/2012,06-14346,2463,A4e Ltd,,,,,,,,,,,
Nottinghamshire County Council,1111/1001,Children and Young People,CYP,Third Party Payments,EGA,04/09/2012,06-10249,60000,Hesley Group Ltd,,,,,,,,,,,
Nottinghamshire County Council,1111/1001,Children and Young People,CYP,Third Party Payments,EGA,04/09/2012,06-16083,565.5,L Hill,,,,,,,,,,,
Nottinghamshire County Council,1111/1001,Children and Young People,CYP,Third Party Payments,EGA,05/09/2012,06-10337,51428.57,Hesley Group Ltd,,,,,,,,,,,
Nottinghamshire County Council,1111/1001,Children and Young People,CYP,Third Party Payments,EGA,10/09/2012,06-10628,6265.74,Nottinghamshire Healthcare NHS Trus,,,,,,,,,,,
Nottinghamshire County Council,1111/1001,Children and Young People,CYP,Third Party Payments,EGA,10/09/2012,06-10629,9088.72,Busy Bees Playgroup,,,,,,,,,,,
Nottinghamshire County Council,1111/1001,Children and Young People,CYP,Third Party Payments,EGA,10/09/2012,06-10630,1253.93,Alphabet House Day Nursery,,,,,,,,,,,
Nottinghamshire County Council,1111/1001,Children and Young People,CYP,Third Party Payments,EGA,10/09/2012,06-16176,1500,Horizon Social Housing Ltd,,,,,,,,,,,
Nottinghamshire County Council,1111/1001,Children and Young People,CYP,Third Party Payments,EGA,11/09/2012,06-16189,3410,Fostering People Ltd,,,,,,,,,,,
Nottinghamshire County Council,1111/1001,Children and Young People,CYP,Third Party Payments,EGA,12/09/2012,06-13808,14519.78,Busy Bees (Daybrook),,,,,,,,,,,
Nottinghamshire County Council,1111/1001,Children and Young People,CYP,Third Party Payments,EGA,13/09/2012,06-16247,1305.5,At Your Service Care Ltd,,,,,,,,,,,
Nottinghamshire County Council,1111/1001,Children and Young People,CYP,Third Party Payments,EGA,14/09/2012,06-14061,645.8,Beeston Nursery,,,,,,,,,,,
Nottinghamshire County Council,1111/1001,Children and Young People,CYP,Third Party Payments,EGA,14/09/2012,06-14211,1755,Broadwood Educational Services Ltd,,,,,,,,,,,
Nottinghamshire County Council,1111/1001,Children and Young People,CYP,Third Party Payments,EGA,14/09/2012,06-14212,11071.34,Broadwood Educational Services Ltd,,,,,,,,,,,
Nottinghamshire County Council,1111/1001,Children and Young People,CYP,Third Party Payments,EGA,14/09/2012,06-14214,15942.86,Turnaround,,,,,,,,,,,
Nottinghamshire County Council,1111/1001,Children and Young People,CYP,Third Party Payments,EGA,14/09/2012,06-14216,12000,Blue Mountain Homes Ltd,,,,,,,,,,,
Nottinghamshire County Council,1111/1001,Children and Young People,CYP,Third Party Payments,EGA,14/09/2012,06-14218,14000,Blue Mountain Homes Ltd,,,,,,,,,,,
Nottinghamshire County Council,1111/1001,Children and Young People,CYP,Third Party Payments,EGA,14/09/2012,06-14219,6461.33,Newark Emmaus Trust,,,,,,,,,,,
Nottinghamshire County Council,1111/1001,Children and Young People,CYP,Third Party Payments,EGA,14/09/2012,06-14221,5876.85,Newark Emmaus Trust,,,,,,,,,,,
Nottinghamshire County Council,1111/1001,Children and Young People,CYP,Third Party Payments,EGA,14/09/2012,06-14222,700,Support 4 Futures,,,,,,,,,,,
Nottinghamshire County Council,1111/1001,Children and Young People,CYP,Third Party Payments,EGA,14/09/2012,06-14224,700,Support 4 Futures,,,,,,,,,,,
Nottinghamshire County Council,1111/1001,Children and Young People,CYP,Third Party Payments,EGA,14/09/2012,06-14227,3573.99,Anglia Fostering Agency,,,,,,,,,,,
Nottinghamshire County Council,1111/1001,Children and Young People,CYP,Third Party Payments,EGA,14/09/2012,06-14229,3478.2,Anglia Fostering Agency,,,,,,,,,,,
Nottinghamshire County Council,1111/1001,Children and Young People,CYP,Third Party Payments,EGA,14/09/2012,06-14231,6903.08,Anglia Fostering Agency,,,,,,,,,,,
Nottinghamshire County Council,1111/1001,Children and Young People,CYP,Third Party Payments,EGA,14/09/2012,06-14233,14672.88,I Can Services Ltd,,,,,,,,,,,
Nottinghamshire County Council,1111/1001,Children and Young People,CYP,Third Party Payments,EGA,14/09/2012,06-14234,13740.13,Scope,,,,,,,,,,,
Nottinghamshire County Council,1111/1001,Children and Young People,CYP,Third Party Payments,EGA,14/09/2012,06-14235,13444,Fairview Only Total Care Matters Lt,,,,,,,,,,,
Nottinghamshire County Council,1111/1001,Children and Young People,CYP,Third Party Payments,EGA,14/09/2012,06-14236,2596.4,Support 4 Futures,,,,,,,,,,,
Nottinghamshire County Council,1111/1001,Children and Young People,CYP,Third Party Payments,EGA,14/09/2012,06-14237,2596.4,Support 4 Futures,,,,,,,,,,,
Nottinghamshire County Council,1111/1001,Children and Young People,CYP,Third Party Payments,EGA,14/09/2012,06-14238,3680.32,Archway Care Ltd,,,,,,,,,,,
Nottinghamshire County Council,1111/1001,Children and Young People,CYP,Third Party Payments,EGA,14/09/2012,06-14239,3538.34,Parallel Parents,,,,,,,,,,,
Nottinghamshire County Council,1111/1001,Children and Young People,CYP,Third Party Payments,EGA,14/09/2012,06-14243,5541.9,Arnold View Pre-School,,,,,,,,,,,
Nottinghamshire County Council,1111/1001,Children and Young People,CYP,Third Party Payments,EGA,14/09/2012,06-14244,11637.99,Alphabet House Day Nursery Worksop,,,,,,,,,,,
Nottinghamshire County Council,1111/1001,Children and Young People,CYP,Third Party Payments,EGA,14/09/2012,06-14246,8682.31,Railway Children Playgroup,,,,,,,,,,,
Nottinghamshire County Council,1111/1001,Children and Young People,CYP,Third Party Payments,EGA,14/09/2012,06-14247,15073.97,Leahurst Road Pre-School,,,,,,,,,,,
Nottinghamshire County Council,1111/1001,Children and Young People,CYP,Third Party Payments,EGA,14/09/2012,06-14249,7647.82,Farnsfield Pre-School,,,,,,,,,,,
Nottinghamshire County Council,1111/1001,Children and Young People,CYP,Third Party Payments,EGA,14/09/2012,06-14250,2216.76,Early Years Playgroup,,,,,,,,,,,
Nottinghamshire County Council,1111/1001,Children and Young People,CYP,Third Party Payments,EGA,14/09/2012,06-14251,10862.12,Children's House Nursery School,,,,,,,,,,,
Nottinghamshire County Council,1111/1001,Children and Young People,CYP,Third Party Payments,EGA,14/09/2012,06-14252,554.19,Beeston Nursery,,,,,,,,,,,
Nottinghamshire County Council,1111/1001,Children and Young People,CYP,Third Party Payments,EGA,17/09/2012,06-16308,565.5,L Hill,,,,,,,,,,,
Nottinghamshire County Council,1111/1001,Children and Young People,CYP,Third Party Payments,EGA,18/09/2012,06-16326,26527.32,Heronridge Homes Ltd,,,,,,,,,,,
Nottinghamshire County Council,1111/1001,Children and Young People,CYP,Third Party Payments,EGA,18/09/2012,06-16327,7580.69,Heronridge Homes Ltd,,,,,,,,,,,
Nottinghamshire County Council,1111/1001,Children and Young People,CYP,Third Party Payments,EGA,18/09/2012,06-16328,16492.81,Tbr Care Ltd,,,,,,,,,,,
Nottinghamshire County Council,1111/1001,Children and Young People,CYP,Third Party Payments,EGA,19/09/2012,06-15008,1018.5,Little Kites Pre-School,,,,,,,,,,,
Nottinghamshire County Council,1111/1001,Children and Young People,CYP,Third Party Payments,EGA,19/09/2012,06-16358,1026.9,Foster Care Associates Ltd,,,,,,,,,,,
Nottinghamshire County Council,1111/1001,Children and Young People,CYP,Third Party Payments,EGA,19/09/2012,06-16362,72684.45,Foster Care Associates Ltd,,,,,,,,,,,
Nottinghamshire County Council,1111/1001,Children and Young People,CYP,Third Party Payments,EGA,19/09/2012,06-16363,845,Elise Webb,,,,,,,,,,,
Nottinghamshire County Council,1111/1001,Children and Young People,CYP,Third Party Payments,EGA,19/09/2012,06-16380,50093.02,Fostering People Ltd,,,,,,,,,,,
Nottinghamshire County Council,1111/1001,Children and Young People,CYP,Third Party Payments,EGA,20/09/2012,06-15238,2940.97,Treehouse Care Fostering Solutions,,,,,,,,,,,
Nottinghamshire County Council,1111/1001,Children and Young People,CYP,Third Party Payments,EGA,20/09/2012,06-15239,6242.78,Treehouse Care Fostering Solutions,,,,,,,,,,,
Nottinghamshire County Council,1111/1001,Children and Young People,CYP,Third Party Payments,EGA,20/09/2012,06-15240,15000,Halliwell Homes,,,,,,,,,,,
Nottinghamshire County Council,1111/1001,Children and Young People,CYP,Third Party Payments,EGA,20/09/2012,06-15241,15000,Halliwell Homes,,,,,,,,,,,
Nottinghamshire County Council,1111/1001,Children and Young People,CYP,Third Party Payments,EGA,20/09/2012,06-15242,37252,Wings Education Ltd,,,,,,,,,,,
Nottinghamshire County Council,1111/1001,Children and Young People,CYP,Third Party Payments,EGA,20/09/2012,06-15243,17379,Wings Education Ltd,,,,,,,,,,,
Nottinghamshire County Council,1111/1001,Children and Young People,CYP,Third Party Payments,EGA,20/09/2012,06-15244,17379,Wings Education Ltd,,,,,,,,,,,
Nottinghamshire County Council,1111/1001,Children and Young People,CYP,Third Party Payments,EGA,20/09/2012,06-15245,17379,Wings Education Ltd,,,,,,,,,,,
Nottinghamshire County Council,1111/1001,Children and Young People,CYP,Third Party Payments,EGA,20/09/2012,06-15246,37252,Wings Education Ltd,,,,,,,,,,,
Nottinghamshire County Council,1111/1001,Children and Young People,CYP,Third Party Payments,EGA,20/09/2012,06-15247,37252,Wings Education Ltd,,,,,,,,,,,
Nottinghamshire County Council,1111/1001,Children and Young People,CYP,Third Party Payments,EGA,20/09/2012,06-15248,17379,Wings Education Ltd,,,,,,,,,,,
Nottinghamshire County Council,1111/1001,Children and Young People,CYP,Third Party Payments,EGA,20/09/2012,06-15249,26666.67,Wilds Lodge School,,,,,,,,,,,
Nottinghamshire County Council,1111/1001,Children and Young People,CYP,Third Party Payments,EGA,20/09/2012,06-15250,17207,Wings Education Ltd,,,,,,,,,,,
Nottinghamshire County Council,1111/1001,Children and Young People,CYP,Third Party Payments,EGA,20/09/2012,06-15251,16037,Wings Education Ltd,,,,,,,,,,,
Nottinghamshire County Council,1111/1001,Children and Young People,CYP,Third Party Payments,EGA,20/09/2012,06-15252,16037,Wings Education Ltd,,,,,,,,,,,
Nottinghamshire County Council,1111/1001,Children and Young People,CYP,Third Party Payments,EGA,20/09/2012,06-15253,17379,Wings Education Ltd,,,,,,,,,,,
Nottinghamshire County Council,1111/1001,Children and Young People,CYP,Third Party Payments,EGA,20/09/2012,06-15254,36883,Wings Education Ltd,,,,,,,,,,,
Nottinghamshire County Council,1111/1001,Children and Young People,CYP,Third Party Payments,EGA,20/09/2012,06-15255,17379,Wings Education Ltd,,,,,,,,,,,
Nottinghamshire County Council,1111/1001,Children and Young People,CYP,Third Party Payments,EGA,20/09/2012,06-15256,12857.1,Bettercare Keys Ltd,,,,,,,,,,,
Nottinghamshire County Council,1111/1001,Children and Young People,CYP,Third Party Payments,EGA,20/09/2012,06-15257,37252,Wings Education Ltd,,,,,,,,,,,
Nottinghamshire County Council,1111/1001,Children and Young People,CYP,Third Party Payments,EGA,20/09/2012,06-15258,37252,Wings Education Ltd,,,,,,,,,,,
Nottinghamshire County Council,1111/1001,Children and Young People,CYP,Third Party Payments,EGA,20/09/2012,06-15259,36883,Wings Education Ltd,,,,,,,,,,,
Nottinghamshire County Council,1111/1001,Children and Young People,CYP,Third Party Payments,EGA,20/09/2012,06-15260,17207,Wings Education Ltd,,,,,,,,,,,
Nottinghamshire County Council,1111/1001,Children and Young People,CYP,Third Party Payments,EGA,20/09/2012,06-15261,36883,Wings Education Ltd,,,,,,,,,,,
Nottinghamshire County Council,1111/1001,Children and Young People,CYP,Third Party Payments,EGA,20/09/2012,06-15262,35173,Wings Education Ltd,,,,,,,,,,,
Nottinghamshire County Council,1111/1001,Children and Young People,CYP,Third Party Payments,EGA,20/09/2012,06-15263,35173,Wings Education Ltd,,,,,,,,,,,
Nottinghamshire County Council,1111/1001,Children and Young People,CYP,Third Party Payments,EGA,20/09/2012,06-15264,35173,Wings Education Ltd,,,,,,,,,,,
Nottinghamshire County Council,1111/1001,Children and Young People,CYP,Third Party Payments,EGA,20/09/2012,06-15265,16037,Wings Education Ltd,,,,,,,,,,,
Nottinghamshire County Council,1111/1001,Children and Young People,CYP,Third Party Payments,EGA,20/09/2012,06-15266,35173,Wings Education Ltd,,,,,,,,,,,
Nottinghamshire County Council,1111/1001,Children and Young People,CYP,Third Party Payments,EGA,20/09/2012,06-15267,35173,Wings Education Ltd,,,,,,,,,,,
Nottinghamshire County Council,1111/1001,Children and Young People,CYP,Third Party Payments,EGA,20/09/2012,06-15268,35173,Wings Education Ltd,,,,,,,,,,,
Nottinghamshire County Council,1111/1001,Children and Young People,CYP,Third Party Payments,EGA,20/09/2012,06-15269,16037,Wings Education Ltd,,,,,,,,,,,
Nottinghamshire County Council,1111/1001,Children and Young People,CYP,Third Party Payments,EGA,20/09/2012,06-15270,17379,Wings Education Ltd,,,,,,,,,,,
Nottinghamshire County Council,1111/1001,Children and Young People,CYP,Third Party Payments,EGA,20/09/2012,06-15271,37252,Wings Education Ltd,,,,,,,,,,,
Nottinghamshire County Council,1111/1001,Children and Young People,CYP,Third Party Payments,EGA,20/09/2012,06-15272,16037,Wings Education Ltd,,,,,,,,,,,
Nottinghamshire County Council,1111/1001,Children and Young People,CYP,Third Party Payments,EGA,20/09/2012,06-15273,17379,Wings Education Ltd,,,,,,,,,,,
Nottinghamshire County Council,1111/1001,Children and Young People,CYP,Third Party Payments,EGA,20/09/2012,06-15274,16037,Wings Education Ltd,,,,,,,,,,,
Nottinghamshire County Council,1111/1001,Children and Young People,CYP,Third Party Payments,EGA,20/09/2012,06-15275,17207,Wings Education Ltd,,,,,,,,,,,
Nottinghamshire County Council,1111/1001,Children and Young People,CYP,Third Party Payments,EGA,20/09/2012,06-15276,36883,Wings Education Ltd,,,,,,,,,,,
Nottinghamshire County Council,1111/1001,Children and Young People,CYP,Third Party Payments,EGA,20/09/2012,06-15277,17207,Wings Education Ltd,,,,,,,,,,,
Nottinghamshire County Council,1111/1001,Children and Young People,CYP,Third Party Payments,EGA,20/09/2012,06-15278,37252,Wings Education Ltd,,,,,,,,,,,
Nottinghamshire County Council,1111/1001,Children and Young People,CYP,Third Party Payments,EGA,20/09/2012,06-15279,36883,Wings Education Ltd,,,,,,,,,,,
Nottinghamshire County Council,1111/1001,Children and Young People,CYP,Third Party Payments,EGA,20/09/2012,06-15280,35173,Wings Education Ltd,,,,,,,,,,,
Nottinghamshire County Council,1111/1001,Children and Young People,CYP,Third Party Payments,EGA,20/09/2012,06-15282,16037,Wings Education Ltd,,,,,,,,,,,
Nottinghamshire County Council,1111/1001,Children and Young People,CYP,Third Party Payments,EGA,20/09/2012,06-15283,35173,Wings Education Ltd,,,,,,,,,,,
Nottinghamshire County Council,1111/1001,Children and Young People,CYP,Third Party Payments,EGA,20/09/2012,06-15284,11071.34,Care Today,,,,,,,,,,,
Nottinghamshire County Council,1111/1001,Children and Young People,CYP,Third Party Payments,EGA,20/09/2012,06-15285,11071.34,Care Today,,,,,,,,,,,
Nottinghamshire County Council,1111/1001,Children and Young People,CYP,Third Party Payments,EGA,20/09/2012,06-15289,13650,Total Care Matters Ltd,,,,,,,,,,,
Nottinghamshire County Council,1111/1001,Children and Young People,CYP,Third Party Payments,EGA,20/09/2012,06-15290,10285.71,Northerncare,,,,,,,,,,,
Nottinghamshire County Council,1111/1001,Children and Young People,CYP,Third Party Payments,EGA,21/09/2012,06-14213,2940,Abronah Care,,,,,,,,,,,
Nottinghamshire County Council,1111/1001,Children and Young People,CYP,Third Party Payments,EGA,25/09/2012,06-14303,14990.76,Nottinghamshire County Teaching Pct,,,,,,,,,,,
Nottinghamshire County Council,1111/1001,Children and Young People,CYP,Third Party Payments,EGA,25/09/2012,06-15480,12857.1,Bettercare Keys Ltd,,,,,,,,,,,
Nottinghamshire County Council,1111/1001,Children and Young People,CYP,Third Party Payments,EGA,25/09/2012,06-15481,14083.33,Total Care Matters Ltd,,,,,,,,,,,
Nottinghamshire County Council,1111/1001,Children and Young People,CYP,Third Party Payments,EGA,25/09/2012,06-15577,294.29,Bramwell,,,,,,,,,,,
Nottinghamshire County Council,1111/1001,Children and Young People,CYP,Third Party Payments,EGA,25/09/2012,06-15663,509.25,Little Nippers Pre-School,,,,,,,,,,,
Nottinghamshire County Council,1111/1001,Children and Young People,CYP,Third Party Payments,EGA,25/09/2012,06-15664,509.25,Mansfield Childrens Community,,,,,,,,,,,
Nottinghamshire County Council,1111/1001,Children and Young People,CYP,Third Party Payments,EGA,25/09/2012,06-15666,2546.25,Kidzgrove,,,,,,,,,,,
Nottinghamshire County Council,1111/1001,Children and Young People,CYP,Third Party Payments,EGA,25/09/2012,06-15667,509.25,Whitehouse Day Nursery,,,,,,,,,,,
Nottinghamshire County Council,1111/1001,Children and Young People,CYP,Third Party Payments,EGA,25/09/2012,06-15668,509.25,Catherine Sansone,,,,,,,,,,,
Nottinghamshire County Council,1111/1001,Children and Young People,CYP,Third Party Payments,EGA,25/09/2012,06-15669,1891.5,Little Nippers Pre-School,,,,,,,,,,,
Nottinghamshire County Council,1111/1001,Children and Young People,CYP,Third Party Payments,EGA,25/09/2012,06-15670,1527.75,Homestead Day Nursery,,,,,,,,,,,
Nottinghamshire County Council,1111/1001,Children and Young People,CYP,Third Party Payments,EGA,25/09/2012,06-15671,509.25,Wellin Lane Pre School,,,,,,,,,,,
Nottinghamshire County Council,1111/1001,Children and Young People,CYP,Third Party Payments,EGA,26/09/2012,06-14253,43443.89,Pathway Care Solutions Ltd,,,,,,,,,,,
Nottinghamshire County Council,1111/1001,Children and Young People,CYP,Third Party Payments,EGA,26/09/2012,06-14254,58690.5,Pathway Care Solutions II Ltd,,,,,,,,,,,
Nottinghamshire County Council,1111/1001,Children and Young People,CYP,Third Party Payments,EGA,26/09/2012,06-14255,8404.68,Pathway Care Solutions II Ltd,,,,,,,,,,,
Nottinghamshire County Council,1111/1001,Children and Young People,CYP,Third Party Payments,EGA,26/09/2012,06-14256,58690.5,Pathway Care Solutions II Ltd,,,,,,,,,,,
Nottinghamshire County Council,1111/1001,Children and Young People,CYP,Third Party Payments,EGA,26/09/2012,06-14257,67293.89,Pathway Care Solutions II Ltd,,,,,,,,,,,
Nottinghamshire County Council,1111/1001,Children and Young People,CYP,Third Party Payments,EGA,26/09/2012,06-14258,7322.07,Pathway Care Solutions II Ltd,,,,,,,,,,,
Nottinghamshire County Council,1111/1001,Children and Young People,CYP,Third Party Payments,EGA,26/09/2012,06-14259,14056.28,Pathway Care Solutions Ltd,,,,,,,,,,,
Nottinghamshire County Council,1111/1001,Children and Young People,CYP,Third Party Payments,EGA,26/09/2012,06-14260,67293.89,Pathway Care Solutions II Ltd,,,,,,,,,,,
Nottinghamshire County Council,1111/1001,Children and Young People,CYP,Third Party Payments,EGA,26/09/2012,06-14261,12245,Pathway Care Solutions Ltd,,,,,,,,,,,
Nottinghamshire County Council,1111/1001,Children and Young People,CYP,Third Party Payments,EGA,26/09/2012,06-14262,12245,Pathway Care Solutions Ltd,,,,,,,,,,,
Nottinghamshire County Council,1111/1001,Children and Young People,CYP,Third Party Payments,EGA,26/09/2012,06-14263,58690.5,Pathway Care Solutions II Ltd,,,,,,,,,,,
Nottinghamshire County Council,1111/1001,Children and Young People,CYP,Third Party Payments,EGA,26/09/2012,06-14264,58690.49,Pathway Care Solutions II Ltd,,,,,,,,,,,
Nottinghamshire County Council,1111/1001,Children and Young People,CYP,Third Party Payments,EGA,26/09/2012,06-14302,54073.64,Pathway Care Solutions II Ltd,,,,,,,,,,,
Nottinghamshire County Council,1111/1001,Children and Young People,CYP,Third Party Payments,EGA,26/09/2012,06-15486,10457.14,Pathway Care Solutions Ltd,,,,,,,,,,,
Nottinghamshire County Council,1111/1001,Children and Young People,CYP,Third Party Payments,EGA,26/09/2012,06-15820,509.25,Stapleford Day Nursery,,,,,,,,,,,
Nottinghamshire County Council,1111/1001,Children and Young People,CYP,Third Party Payments,EGA,26/09/2012,06-15821,509.25,Butterflies Nursery (West Notts Col,,,,,,,,,,,
Nottinghamshire County Council,1111/1001,Children and Young People,CYP,Third Party Payments,EGA,26/09/2012,06-15822,2037,The Learning Tree Nursery,,,,,,,,,,,
Nottinghamshire County Council,1111/1001,Children and Young People,CYP,Third Party Payments,EGA,26/09/2012,06-15823,509.25,Speckled Frogs Pre-School,,,,,,,,,,,
Nottinghamshire County Council,1111/1001,Children and Young People,CYP,Third Party Payments,EGA,26/09/2012,06-15824,3055.5,Safe Haven Day Nursery,,,,,,,,,,,
Nottinghamshire County Council,1111/1001,Children and Young People,CYP,Third Party Payments,EGA,26/09/2012,06-15825,2037,Little Bears Day Nursery,,,,,,,,,,,
Nottinghamshire County Council,1111/1001,Children and Young People,CYP,Third Party Payments,EGA,26/09/2012,06-15826,509.25,Brooklyn Day Nursery,,,,,,,,,,,
Nottinghamshire County Council,1111/1001,Children and Young People,CYP,Third Party Payments,EGA,27/09/2012,06-14223,1170.73,Fostering Solutions Ltd,,,,,,,,,,,
Nottinghamshire County Council,1111/1001,Children and Young People,CYP,Third Party Payments,EGA,27/09/2012,06-14245,1016.02,The Enhanted Garden Day Nursery,,,,,,,,,,,
Nottinghamshire County Council,1111/1001,Children and Young People,CYP,Third Party Payments,EGA,28/09/2012,06-14210,1086.75,Quayside Care Ltd,,,,,,,,,,,
Nottinghamshire County Council,1111/1001,Children and Young People,CYP,Third Party Payments,EGA,28/09/2012,06-14225,13175,G4S Care & Justice Services (UK) Li,,,,,,,,,,,
Nottinghamshire County Council,1111/1001,Children and Young People,CYP,Third Party Payments,EGA,28/09/2012,06-14232,1466.25,Quayside Care Ltd,,,,,,,,,,,
Nottinghamshire County Council,1111/1001,Children and Young People,CYP,Third Party Payments,EGA,28/09/2012,06-15286,3932.95,Northumberland County Council,,,,,,,,,,,
Nottinghamshire County Council,1111/1001,Children and Young People,CYP,Third Party Payments,EGA,28/09/2012,06-15287,657.14,Active8 Care Ltd,,,,,,,,,,,
Nottinghamshire County Council,1111/1001,Children and Young People,CYP,Third Party Payments,EGA,28/09/2012,06-15827,509.25,Appleton Day Nursery,,,,,,,,,,,
Nottinghamshire County Council,1111/1001,Children and Young People,CYP,Third Party Payments,EGA,28/09/2012,06-15995,3055.5,The Learning Tree Day Nursery 2,,,,,,,,,,,
Nottinghamshire County Council,1111/1001,Children and Young People,CYP,Third Party Payments,EGA,28/09/2012,06-15996,1018.5,The Rocking Horse Child Car Centres,,,,,,,,,,,
Nottinghamshire County Council,1111/1001,Children and Young People,CYP,Third Party Payments,EGA,28/09/2012,06-15997,2512.3,Rocking Horse Nursery Butlers Hill,,,,,,,,,,,
Nottinghamshire County Council,1111/1001,Children and Young People,CYP,Third Party Payments,EGA,28/09/2012,06-15998,509.25,Keyworth Primary School,,,,,,,,,,,
Nottinghamshire County Council,1111/1001,Children and Young People,CYP,Third Party Payments,EGA,28/09/2012,06-15999,509.25,Elston Pre-school Playgroup Newark,,,,,,,,,,,
Nottinghamshire County Council,1111/1001,Children and Young People,CYP,Third Party Payments,EGA,28/09/2012,06-16000,509.25,Carnarvon Pre-School,,,,,,,,,,,
Nottinghamshire County Council,1111/1001,Children and Young People,CYP,Third Party Payments,EGA,28/09/2012,06-16001,882.7,Church House Day Nursery,,,,,,,,,,,
Nottinghamshire County Council,1111/1001,Children and Young People,CYP,Third Party Payments,EGA,28/09/2012,06-16002,1799.35,Bircotes Pre-School,,,,,,,,,,,
Nottinghamshire County Council,1111/1001,Children and Young People,CYP,Third Party Payments,EGA,28/09/2012,06-16003,509.25,Kimberley Pre-School Playgroup,,,,,,,,,,,
Nottinghamshire County Council,1111/1001,Children and Young People,CYP,Third Party Payments,EGA,28/09/2012,06-16004,1018.5,Rainbows Day Nursery,,,,,,,,,,,
Nottinghamshire County Council,1111/1001,Children and Young People,CYP,Third Party Payments,EGA,28/09/2012,06-16005,2953.65,Tiny World Mansfield,,,,,,,,,,,
Nottinghamshire County Council,1111/1001,Children and Young People,CYP,Third Party Payments,EGA,28/09/2012,06-16006,1935.15,Cherubs Childrens Centre Wynndale,,,,,,,,,,,
Nottinghamshire County Council,1111/1001,Children and Young People,CYP,Third Party Payments,EGA,28/09/2012,06-16053,2940,Abronah Care,,,,,,,,,,,
Nottinghamshire County Council,1111/1001,Children and Young People,CYP,Third Party Payments,EGA,28/09/2012,06-16054,1880,Bettercare Keys Ltd,,,,,,,,,,,
Nottinghamshire County Council,1111/1001,Children and Young People,CYP,Third Party Payments,EGA,28/09/2012,06-16055,13285.67,Bettercare Keys Ltd,,,,,,,,,,,
Nottinghamshire County Council,1111/1001,Children and Young People,CYP,Third Party Payments,EGA,28/09/2012,06-16056,13444,Fairview Only Total Care Matters Lt,,,,,,,,,,,
Nottinghamshire County Council,1111/1001,Children and Young People,CYP,Third Party Payments,EGA,28/09/2012,06-16057,12675,Total Care Matters Ltd,,,,,,,,,,,
Nottinghamshire County Council,1111/1001,Children and Young People,CYP,Third Party Payments,EGA,28/09/2012,06-16058,2602.8,Support 4 Futures,,,,,,,,,,,
Nottinghamshire County Council,1111/1001,Children and Young People,CYP,Third Party Payments,EHA,03/09/2012,06-10028,860,Dfw Adoption,,,,,,,,,,,
Nottinghamshire County Council,1111/1001,Children and Young People,CYP,Third Party Payments,EHA,03/09/2012,06-10029,1194,Faith In Families,,,,,,,,,,,
Nottinghamshire County Council,1111/1001,Children and Young People,CYP,Third Party Payments,EHA,24/09/2012,06-15387,1194,Faith In Families,,,,,,,,,,,
Nottinghamshire County Council,1111/1001,Children and Young People,CYP,Support Services,HAA,04/09/2012,06-10264,617.28,University Of Nottingham,,,,,,,,,,,
Nottinghamshire County Council,1111/1001,Children and Young People,CYP,Support Services,HAA,05/09/2012,06-10319,20495.26,Premiere Travel Ltd,,,,,,,,,,,
Nottinghamshire County Council,1111/1001,Children and Young People,CYP,Support Services,HAA,05/09/2012,06-10324,2590,K & H Doyle Coaches Ltd,,,,,,,,,,,
Nottinghamshire County Council,1111/1001,Children and Young People,CYP,Support Services,HAA,05/09/2012,06-10327,10522.28,K & H Doyle Coaches Ltd,,,,,,,,,,,
Nottinghamshire County Council,1111/1001,Children and Young People,CYP,Support Services,HAA,11/09/2012,06-12062,1447.45,Travel Wright Ltd,,,,,,,,,,,
Nottinghamshire County Council,1111/1001,Children and Young People,CYP,Support Services,HAA,11/09/2012,06-12063,1470.56,Travel Wright Ltd,,,,,,,,,,,
Nottinghamshire County Council,1111/1001,Children and Young People,CYP,Support Services,HAA,11/09/2012,06-12064,120,Travel Wright Ltd,,,,,,,,,,,
Nottinghamshire County Council,1111/1001,Children and Young People,CYP,Support Services,HAA,13/09/2012,06-14008,3304.03,Stagecoach Services Ltd,,,,,,,,,,,
Nottinghamshire County Council,1111/1001,Children and Young People,CYP,Support Services,HAA,17/09/2012,06-14329,2950.65,Silverdale Tours Nottm Ltd,,,,,,,,,,,
Nottinghamshire County Council,1111/1001,Children and Young People,CYP,Support Services,HAA,18/09/2012,06-14927,2631.2,Browne Jacobson Llp,,,,,,,,,,,
Nottinghamshire County Council,1111/1001,Children and Young People,CYP,Support Services,HAA,18/09/2012,06-14929,2900,Kendal's Garage Services,,,,,,,,,,,
Nottinghamshire County Council,1111/1001,Children and Young People,CYP,Support Services,HAA,19/09/2012,06-15037,752,Stone King LLP,,,,,,,,,,,
Nottinghamshire County Council,1111/1001,Children and Young People,CYP,Support Services,HAA,25/09/2012,06-15620,3128.76,Premiere Travel Ltd,,,,,,,,,,,
Nottinghamshire County Council,1111/1001,Children and Young People,CYP,Support Services,HAA,25/09/2012,06-15621,738.68,Premiere Travel Ltd,,,,,,,,,,,
Nottinghamshire County Council,1111/1001,Children and Young People,CYP,Support Services,HAA,25/09/2012,06-15625,2681.8,Premiere Travel Ltd,,,,,,,,,,,
Nottinghamshire County Council,1111/1001,Children and Young People,CYP,Support Services,HAA,25/09/2012,06-15626,633.15,Premiere Travel Ltd,,,,,,,,,,,
Nottinghamshire County Council,1111/1001,Children and Young People,CYP,Support Services,HAA,25/09/2012,06-15630,2681.8,Premiere Travel Ltd,,,,,,,,,,,
Nottinghamshire County Council,1111/1001,Children and Young People,CYP,Support Services,HAA,25/09/2012,06-15631,633.15,Premiere Travel Ltd,,,,,,,,,,,
Nottinghamshire County Council,1111/1001,Children and Young People,CYP,Support Services,HAA,28/09/2012,06-15055,6260,Browne Jacobson Llp,,,,,,,,,,,
Nottinghamshire County Council,1111/1001,Children and Young People,CYP,Support Services,HAA,28/09/2012,06-16012,5403.95,Premiere Travel Ltd,,,,,,,,,,,
Nottinghamshire County Council,1111/1001,Children and Young People,CYP,Support Services,HAA,28/09/2012,06-16013,4587.17,Premiere Travel Ltd,,,,,,,,,,,
Nottinghamshire County Council,1111/1001,Children and Young People,CYP,Support Services,HAA,28/09/2012,06-16014,4587.17,Premiere Travel Ltd,,,,,,,,,,,
Nottinghamshire County Council,1111/1001,Children and Young People,CYP,Capital Financing,IDA,17/09/2012,06-14375,1046,Phs Group Plc,,,,,,,,,,,
Nottinghamshire County Council,1111/1001,Adult Social Care and Health,ASCH,Premises Related,BAA,05/09/2012,06-10308,2293.86,Dorma Uk Limited,,,,,,,,,,,
Nottinghamshire County Council,1111/1001,Adult Social Care and Health,ASCH,Premises Related,BAA,06/09/2012,06-10416,808,Elf Property Care,,,,,,,,,,,
Nottinghamshire County Council,1111/1001,Adult Social Care and Health,ASCH,Premises Related,BAA,06/09/2012,06-10531,522.5,Ashfield Glazing,,,,,,,,,,,
Nottinghamshire County Council,1111/1001,Adult Social Care and Health,ASCH,Premises Related,BAA,12/09/2012,06-13867,595,Harold Potter & Company Ltd,,,,,,,,,,,
Nottinghamshire County Council,1111/1001,Adult Social Care and Health,ASCH,Premises Related,BAA,18/09/2012,06-14971,542.5,Elf Property Care,,,,,,,,,,,
Nottinghamshire County Council,1111/1001,Adult Social Care and Health,ASCH,Premises Related,BAA,18/09/2012,06-14972,808,Elf Property Care,,,,,,,,,,,
Nottinghamshire County Council,1111/1001,Adult Social Care and Health,ASCH,Premises Related,BAA,21/09/2012,06-15295,565,Coventry Turned Parts Limited,,,,,,,,,,,
Nottinghamshire County Council,1111/1001,Adult Social Care and Health,ASCH,Premises Related,BCA,14/09/2012,06-14030,520.13,British Gas Business,,,,,,,,,,,
Nottinghamshire County Council,1111/1001,Adult Social Care and Health,ASCH,Premises Related,BCA,21/09/2012,06-15296,532.43,British Gas Business,,,,,,,,,,,
Nottinghamshire County Council,1111/1001,Adult Social Care and Health,ASCH,Premises Related,BDA,06/09/2012,06-10439,2336.88,Renaissance Social Housing,,,,,,,,,,,
Nottinghamshire County Council,1111/1001,Adult Social Care and Health,ASCH,Premises Related,BDA,06/09/2012,06-10440,1112.1,Progress Care Housing Assoc Ltd,,,,,,,,,,,
Nottinghamshire County Council,1111/1001,Adult Social Care and Health,ASCH,Premises Related,BDA,10/09/2012,06-10648,1205.1,Making It! Enterprises Ltd,,,,,,,,,,,
Nottinghamshire County Council,1111/1001,Adult Social Care and Health,ASCH,Premises Related,BDA,10/09/2012,06-10697,1254.4,Making It! Enterprises Ltd,,,,,,,,,,,
Nottinghamshire County Council,1111/1001,Adult Social Care and Health,ASCH,Premises Related,BDA,13/09/2012,06-14060,860.04,Progress Care Housing Assoc Ltd,,,,,,,,,,,
Nottinghamshire County Council,1111/1001,Adult Social Care and Health,ASCH,Premises Related,BDA,17/09/2012,06-14364,995.8,Progress Care Housing Assoc Ltd,,,,,,,,,,,
Nottinghamshire County Council,1111/1001,Adult Social Care and Health,ASCH,Premises Related,BDA,17/09/2012,06-14365,741.4,Progress Care Housing Assoc Ltd,,,,,,,,,,,
Nottinghamshire County Council,1111/1001,Adult Social Care and Health,ASCH,Premises Related,BDA,17/09/2012,06-14366,757.6,Progress Care Housing Assoc Ltd,,,,,,,,,,,
Nottinghamshire County Council,1111/1001,Adult Social Care and Health,ASCH,Premises Related,BFA,04/09/2012,06-10266,1220.07,Severn Trent Water Ltd,,,,,,,,,,,
Nottinghamshire County Council,1111/1001,Adult Social Care and Health,ASCH,Premises Related,BFA,17/09/2012,06-14381,2295.94,Severn Trent Water Ltd,,,,,,,,,,,
Nottinghamshire County Council,1111/1001,Adult Social Care and Health,ASCH,Premises Related,BFA,17/09/2012,06-14397,976.49,Severn Trent Water Ltd,,,,,,,,,,,
Nottinghamshire County Council,1111/1001,Adult Social Care and Health,ASCH,Premises Related,BFA,28/09/2012,06-15237,1076.32,Adsm Ltd,,,,,,,,,,,
Nottinghamshire County Council,1111/1001,Adult Social Care and Health,ASCH,Premises Related,BJA,26/09/2012,06-13823,630.88,Phs Group Plc,,,,,,,,,,,
Nottinghamshire County Council,1111/1001,Adult Social Care and Health,ASCH,Transport Related,CAA,12/09/2012,06-16209,2215,Motor Body Repairs,,,,,,,,,,,
Nottinghamshire County Council,1111/1001,Adult Social Care and Health,ASCH,Transport Related,CBA,05/09/2012,06-10320,2131.14,Trevor Bailey Travel Ltd,,,,,,,,,,,
Nottinghamshire County Council,1111/1001,Adult Social Care and Health,ASCH,Transport Related,CBA,05/09/2012,06-10321,2567.02,Trevor Bailey Travel Ltd,,,,,,,,,,,
Nottinghamshire County Council,1111/1001,Adult Social Care and Health,ASCH,Transport Related,CBA,05/09/2012,06-10322,694.56,Trevor Bailey Travel Ltd,,,,,,,,,,,
Nottinghamshire County Council,1111/1001,Adult Social Care and Health,ASCH,Transport Related,CBA,05/09/2012,06-10323,581.22,Trevor Bailey Travel Ltd,,,,,,,,,,,
Nottinghamshire County Council,1111/1001,Adult Social Care and Health,ASCH,Transport Related,CBA,06/09/2012,06-10433,3158.49,F & J Marriott T/A Unity Coaches,,,,,,,,,,,
Nottinghamshire County Council,1111/1001,Adult Social Care and Health,ASCH,Transport Related,CBA,06/09/2012,06-10434,2596.98,F & J Marriott T/A Unity Coaches,,,,,,,,,,,
Nottinghamshire County Council,1111/1001,Adult Social Care and Health,ASCH,Transport Related,CBA,06/09/2012,06-10435,3244.12,F & J Marriott T/A Unity Coaches,,,,,,,,,,,
Nottinghamshire County Council,1111/1001,Adult Social Care and Health,ASCH,Transport Related,CBA,14/09/2012,06-14175,634.03,Vallances Coaches,,,,,,,,,,,
Nottinghamshire County Council,1111/1001,Adult Social Care and Health,ASCH,Transport Related,CBA,17/09/2012,06-14325,2411.64,Ja Travel Ltd,,,,,,,,,,,
Nottinghamshire County Council,1111/1001,Adult Social Care and Health,ASCH,Transport Related,CBA,19/09/2012,06-15018,2912.5,BN Gibson Ltd,,,,,,,,,,,
Nottinghamshire County Council,1111/1001,Adult Social Care and Health,ASCH,Transport Related,CBA,19/09/2012,06-15019,2657.6,BN Gibson Ltd,,,,,,,,,,,
Nottinghamshire County Council,1111/1001,Adult Social Care and Health,ASCH,Transport Related,CBA,19/09/2012,06-15020,1405.38,Aj Travel,,,,,,,,,,,
Nottinghamshire County Council,1111/1001,Adult Social Care and Health,ASCH,Transport Related,CCA,04/09/2012,06-10248,1848,1st 4 Care Ltd,,,,,,,,,,,
Nottinghamshire County Council,1111/1001,Adult Social Care and Health,ASCH,Transport Related,CCA,06/09/2012,06-10422,723.6,Ace Of Mansfield Ltd,,,,,,,,,,,
Nottinghamshire County Council,1111/1001,Adult Social Care and Health,ASCH,Transport Related,CCA,06/09/2012,06-10423,1200,Bridges Transport Services,,,,,,,,,,,
Nottinghamshire County Council,1111/1001,Adult Social Care and Health,ASCH,Transport Related,CCA,06/09/2012,06-10424,1250,Bridges Transport Services,,,,,,,,,,,
Nottinghamshire County Council,1111/1001,Adult Social Care and Health,ASCH,Transport Related,CCA,06/09/2012,06-10425,3471.38,Bridges Transport Services,,,,,,,,,,,
Nottinghamshire County Council,1111/1001,Adult Social Care and Health,ASCH,Transport Related,CCA,06/09/2012,06-10426,2144.78,Bridges Transport Services,,,,,,,,,,,
Nottinghamshire County Council,1111/1001,Adult Social Care and Health,ASCH,Transport Related,CCA,06/09/2012,06-10427,950,Bridges Transport Services,,,,,,,,,,,
Nottinghamshire County Council,1111/1001,Adult Social Care and Health,ASCH,Transport Related,CCA,06/09/2012,06-10428,1235,Bridges Transport Services,,,,,,,,,,,
Nottinghamshire County Council,1111/1001,Adult Social Care and Health,ASCH,Transport Related,CCA,06/09/2012,06-10429,672.75,Bridges Transport Services,,,,,,,,,,,
Nottinghamshire County Council,1111/1001,Adult Social Care and Health,ASCH,Transport Related,CCA,06/09/2012,06-10430,560,Bridges Transport Services,,,,,,,,,,,
Nottinghamshire County Council,1111/1001,Adult Social Care and Health,ASCH,Transport Related,CCA,06/09/2012,06-10431,2924.24,Sprays Transport Ltd,,,,,,,,,,,
Nottinghamshire County Council,1111/1001,Adult Social Care and Health,ASCH,Transport Related,CCA,06/09/2012,06-10432,2165.68,Sprays Transport Ltd,,,,,,,,,,,
Nottinghamshire County Council,1111/1001,Adult Social Care and Health,ASCH,Transport Related,CCA,11/09/2012,06-12066,880,Town Taxis Ltd,,,,,,,,,,,
Nottinghamshire County Council,1111/1001,Adult Social Care and Health,ASCH,Transport Related,CCA,11/09/2012,06-12067,1881,Town Taxis Ltd,,,,,,,,,,,
Nottinghamshire County Council,1111/1001,Adult Social Care and Health,ASCH,Transport Related,CCA,13/09/2012,06-14158,660,Norsaca Society Office,,,,,,,,,,,
Nottinghamshire County Council,1111/1001,Adult Social Care and Health,ASCH,Transport Related,CCA,14/09/2012,06-14177,504,D G Private Hire Ltd,,,,,,,,,,,
Nottinghamshire County Council,1111/1001,Adult Social Care and Health,ASCH,Transport Related,CCA,14/09/2012,06-14178,504,D G Private Hire Ltd,,,,,,,,,,,
Nottinghamshire County Council,1111/1001,Adult Social Care and Health,ASCH,Transport Related,CCA,17/09/2012,06-14306,2750,1st 4 Care Ltd,,,,,,,,,,,
Nottinghamshire County Council,1111/1001,Adult Social Care and Health,ASCH,Transport Related,CCA,17/09/2012,06-14307,1243,1st 4 Care Ltd,,,,,,,,,,,
Nottinghamshire County Council,1111/1001,Adult Social Care and Health,ASCH,Transport Related,CCA,17/09/2012,06-14308,1787.5,1st 4 Care Ltd,,,,,,,,,,,
Nottinghamshire County Council,1111/1001,Adult Social Care and Health,ASCH,Transport Related,CCA,17/09/2012,06-14309,1238.6,1st 4 Care Ltd,,,,,,,,,,,
Nottinghamshire County Council,1111/1001,Adult Social Care and Health,ASCH,Transport Related,CCA,17/09/2012,06-14310,2970,1st 4 Care Ltd,,,,,,,,,,,
Nottinghamshire County Council,1111/1001,Adult Social Care and Health,ASCH,Transport Related,CCA,17/09/2012,06-14311,1019.96,1st 4 Care Ltd,,,,,,,,,,,
Nottinghamshire County Council,1111/1001,Adult Social Care and Health,ASCH,Transport Related,CCA,17/09/2012,06-14332,1034,P & P Taxis,,,,,,,,,,,
Nottinghamshire County Council,1111/1001,Adult Social Care and Health,ASCH,Transport Related,CCA,17/09/2012,06-14337,1144,1st 4 Care Ltd,,,,,,,,,,,
Nottinghamshire County Council,1111/1001,Adult Social Care and Health,ASCH,Transport Related,CCA,17/09/2012,06-14339,2215,1st 4 Care Ltd,,,,,,,,,,,
Nottinghamshire County Council,1111/1001,Adult Social Care and Health,ASCH,Transport Related,CCA,19/09/2012,06-15017,2763.86,BN Gibson Ltd,,,,,,,,,,,
Nottinghamshire County Council,1111/1001,Adult Social Care and Health,ASCH,Transport Related,CCA,19/09/2012,06-15018,407.94,BN Gibson Ltd,,,,,,,,,,,
Nottinghamshire County Council,1111/1001,Adult Social Care and Health,ASCH,Transport Related,CCA,20/09/2012,06-15058,1240.8,1st 4 Care Ltd,,,,,,,,,,,
Nottinghamshire County Council,1111/1001,Adult Social Care and Health,ASCH,Transport Related,CCA,20/09/2012,06-15098,1452,1st 4 Care Ltd,,,,,,,,,,,
Nottinghamshire County Council,1111/1001,Adult Social Care and Health,ASCH,Transport Related,CCA,20/09/2012,06-15134,1446.5,1st 4 Care Ltd,,,,,,,,,,,
Nottinghamshire County Council,1111/1001,Adult Social Care and Health,ASCH,Transport Related,CCA,21/09/2012,06-15129,1512.25,Srcl Ltd,,,,,,,,,,,
Nottinghamshire County Council,1111/1001,Adult Social Care and Health,ASCH,Transport Related,CCA,26/09/2012,06-15721,288,Leicester Housing Association Ltd,,,,,,,,,,,
Nottinghamshire County Council,1111/1001,Adult Social Care and Health,ASCH,Transport Related,CDA,06/09/2012,06-10433,378.45,F & J Marriott T/A Unity Coaches,,,,,,,,,,,
Nottinghamshire County Council,1111/1001,Adult Social Care and Health,ASCH,Transport Related,CDA,06/09/2012,06-10434,278.64,F & J Marriott T/A Unity Coaches,,,,,,,,,,,
Nottinghamshire County Council,1111/1001,Adult Social Care and Health,ASCH,Transport Related,CDA,19/09/2012,06-15018,374.68,BN Gibson Ltd,,,,,,,,,,,
Nottinghamshire County Council,1111/1001,Adult Social Care and Health,ASCH,Transport Related,CDA,19/09/2012,06-15020,212.78,Aj Travel,,,,,,,,,,,
Nottinghamshire County Council,1111/1001,Adult Social Care and Health,ASCH,Supplies & Services,DAA,10/09/2012,06-16177,1045.25,Dawson Rentals Portable Cold Storag,,,,,,,,,,,
Nottinghamshire County Council,1111/1001,Adult Social Care and Health,ASCH,Supplies & Services,DAA,14/09/2012,06-16076,803.06,Palletower (GB) Ltd,,,,,,,,,,,
Nottinghamshire County Council,1111/1001,Adult Social Care and Health,ASCH,Supplies & Services,DAA,14/09/2012,06-16266,1145.53,Calandine Lifts Ltd,,,,,,,,,,,
Nottinghamshire County Council,1111/1001,Adult Social Care and Health,ASCH,Supplies & Services,DAA,17/09/2012,06-16280,1422.11,Dawson Rentals Portable Cold Storag,,,,,,,,,,,
Nottinghamshire County Council,1111/1001,Adult Social Care and Health,ASCH,Supplies & Services,DAA,17/09/2012,06-16281,995.45,Dawson Rentals Portable Cold Storag,,,,,,,,,,,
Nottinghamshire County Council,1111/1001,Adult Social Care and Health,ASCH,Supplies & Services,DAA,19/09/2012,06-16367,1623.36,Nutri Pac Uk Ltd,,,,,,,,,,,
Nottinghamshire County Council,1111/1001,Adult Social Care and Health,ASCH,Supplies & Services,DAA,20/09/2012,06-15060,905,Calandine Lifts Ltd,,,,,,,,,,,
Nottinghamshire County Council,1111/1001,Adult Social Care and Health,ASCH,Supplies & Services,DBA,10/09/2012,06-10617,1342.73,Brake Bros Ltd,,,,,,,,,,,
Nottinghamshire County Council,1111/1001,Adult Social Care and Health,ASCH,Supplies & Services,DBA,10/09/2012,06-10618,242.52,Brake Bros Ltd,,,,,,,,,,,
Nottinghamshire County Council,1111/1001,Adult Social Care and Health,ASCH,Supplies & Services,DBA,10/09/2012,06-10619,2828.3,Brake Bros Ltd,,,,,,,,,,,
Nottinghamshire County Council,1111/1001,Adult Social Care and Health,ASCH,Supplies & Services,DBA,10/09/2012,06-10621,1410.01,Brake Bros Ltd,,,,,,,,,,,
Nottinghamshire County Council,1111/1001,Adult Social Care and Health,ASCH,Supplies & Services,DBA,10/09/2012,06-10622,1570.53,Brake Bros Ltd,,,,,,,,,,,
Nottinghamshire County Council,1111/1001,Adult Social Care and Health,ASCH,Supplies & Services,DBA,10/09/2012,06-10623,2964.56,Brake Bros Ltd,,,,,,,,,,,
Nottinghamshire County Council,1111/1001,Adult Social Care and Health,ASCH,Supplies & Services,DBA,10/09/2012,06-10624,1255.89,Brake Bros Ltd,,,,,,,,,,,
Nottinghamshire County Council,1111/1001,Adult Social Care and Health,ASCH,Supplies & Services,DBA,10/09/2012,06-10625,362.24,Brake Bros Ltd,,,,,,,,,,,
Nottinghamshire County Council,1111/1001,Adult Social Care and Health,ASCH,Supplies & Services,DBA,10/09/2012,06-10626,680.1,Brake Bros Ltd,,,,,,,,,,,
Nottinghamshire County Council,1111/1001,Adult Social Care and Health,ASCH,Supplies & Services,DBA,10/09/2012,06-10627,1321.74,Brake Bros Ltd,,,,,,,,,,,
Nottinghamshire County Council,1111/1001,Adult Social Care and Health,ASCH,Supplies & Services,DBA,11/09/2012,06-10698,2609.86,Hallam Country Fresh Foods Ltd,,,,,,,,,,,
Nottinghamshire County Council,1111/1001,Adult Social Care and Health,ASCH,Supplies & Services,DBA,11/09/2012,06-13795,42.64,Brake Bros Ltd,,,,,,,,,,,
Nottinghamshire County Council,1111/1001,Adult Social Care and Health,ASCH,Supplies & Services,DBA,11/09/2012,06-13797,3320.81,Hallam Country Fresh Foods Ltd,,,,,,,,,,,
Nottinghamshire County Council,1111/1001,Adult Social Care and Health,ASCH,Supplies & Services,DBA,12/09/2012,06-13828,525.28,M Maloney Country Butchers & B Ltd,,,,,,,,,,,
Nottinghamshire County Council,1111/1001,Adult Social Care and Health,ASCH,Supplies & Services,DBA,18/09/2012,06-14965,3301.19,Hallam Country Fresh Foods Ltd,,,,,,,,,,,
Nottinghamshire County Council,1111/1001,Adult Social Care and Health,ASCH,Supplies & Services,DBA,20/09/2012,06-15064,1727.65,Brake Bros Ltd,,,,,,,,,,,
Nottinghamshire County Council,1111/1001,Adult Social Care and Health,ASCH,Supplies & Services,DBA,20/09/2012,06-15067,952.35,Brake Bros Ltd,,,,,,,,,,,
Nottinghamshire County Council,1111/1001,Adult Social Care and Health,ASCH,Supplies & Services,DBA,20/09/2012,06-15068,952.84,Brake Bros Ltd,,,,,,,,,,,
Nottinghamshire County Council,1111/1001,Adult Social Care and Health,ASCH,Supplies & Services,DBA,20/09/2012,06-15069,3670.75,Brake Bros Ltd,,,,,,,,,,,
Nottinghamshire County Council,1111/1001,Adult Social Care and Health,ASCH,Supplies & Services,DBA,20/09/2012,06-15070,785.26,Brake Bros Ltd,,,,,,,,,,,
Nottinghamshire County Council,1111/1001,Adult Social Care and Health,ASCH,Supplies & Services,DBA,20/09/2012,06-15071,1362.32,Arnold Dairies Ltd,,,,,,,,,,,
Nottinghamshire County Council,1111/1001,Adult Social Care and Health,ASCH,Supplies & Services,DBA,20/09/2012,06-15072,1255.59,Arnold Dairies Ltd,,,,,,,,,,,
Nottinghamshire County Council,1111/1001,Adult Social Care and Health,ASCH,Supplies & Services,DBA,20/09/2012,06-15073,1326.26,Arnold Dairies Ltd,,,,,,,,,,,
Nottinghamshire County Council,1111/1001,Adult Social Care and Health,ASCH,Supplies & Services,DBA,20/09/2012,06-15074,5146.6,M Maloney Country Butchers & B Ltd,,,,,,,,,,,
Nottinghamshire County Council,1111/1001,Adult Social Care and Health,ASCH,Supplies & Services,DBA,20/09/2012,06-15075,7546.81,M Maloney Country Butchers & B Ltd,,,,,,,,,,,
Nottinghamshire County Council,1111/1001,Adult Social Care and Health,ASCH,Supplies & Services,DBA,20/09/2012,06-15076,6418.64,M Maloney Country Butchers & B Ltd,,,,,,,,,,,
Nottinghamshire County Council,1111/1001,Adult Social Care and Health,ASCH,Supplies & Services,DBA,21/09/2012,06-15340,1865.06,Brake Bros Ltd,,,,,,,,,,,
Nottinghamshire County Council,1111/1001,Adult Social Care and Health,ASCH,Supplies & Services,DBA,21/09/2012,06-16191,759.96,Nestle Uk Ltd,,,,,,,,,,,
Nottinghamshire County Council,1111/1001,Adult Social Care and Health,ASCH,Supplies & Services,DBA,25/09/2012,06-15482,3041.41,Hallam Country Fresh Foods Ltd,,,,,,,,,,,
Nottinghamshire County Council,1111/1001,Adult Social Care and Health,ASCH,Supplies & Services,DBA,25/09/2012,06-15678,1606.18,Brake Bros Ltd,,,,,,,,,,,
Nottinghamshire County Council,1111/1001,Adult Social Care and Health,ASCH,Supplies & Services,DBA,25/09/2012,06-15679,146.03,Brake Bros Ltd,,,,,,,,,,,
Nottinghamshire County Council,1111/1001,Adult Social Care and Health,ASCH,Supplies & Services,DBA,25/09/2012,06-15680,3102.24,Brake Bros Ltd,,,,,,,,,,,
Nottinghamshire County Council,1111/1001,Adult Social Care and Health,ASCH,Supplies & Services,DBA,25/09/2012,06-15686,1361.77,Arnold Dairies Ltd,,,,,,,,,,,
Nottinghamshire County Council,1111/1001,Adult Social Care and Health,ASCH,Supplies & Services,DBA,25/09/2012,06-15687,305.38,Brake Bros Ltd,,,,,,,,,,,
Nottinghamshire County Council,1111/1001,Adult Social Care and Health,ASCH,Supplies & Services,DCA,28/09/2012,06-16361,1482.9,Flexitog,,,,,,,,,,,
Nottinghamshire County Council,1111/1001,Adult Social Care and Health,ASCH,Supplies & Services,DEA,04/09/2012,06-10280,756.2,Eden Supported Living Ltd,,,,,,,,,,,
Nottinghamshire County Council,1111/1001,Adult Social Care and Health,ASCH,Supplies & Services,DEA,04/09/2012,06-10281,590.52,Eden Supported Living Ltd,,,,,,,,,,,
Nottinghamshire County Council,1111/1001,Adult Social Care and Health,ASCH,Supplies & Services,DEA,04/09/2012,06-10282,1655.52,Eden Supported Living Ltd,,,,,,,,,,,
Nottinghamshire County Council,1111/1001,Adult Social Care and Health,ASCH,Supplies & Services,DEA,04/09/2012,06-10283,2449.5,Eden Supported Living Ltd,,,,,,,,,,,
Nottinghamshire County Council,1111/1001,Adult Social Care and Health,ASCH,Supplies & Services,DEA,04/09/2012,06-10285,1939.52,Eden Supported Living Ltd,,,,,,,,,,,
Nottinghamshire County Council,1111/1001,Adult Social Care and Health,ASCH,Supplies & Services,DEA,05/09/2012,06-16106,2008.6,Patient & Public Involvement Soluti,,,,,,,,,,,
Nottinghamshire County Council,1111/1001,Adult Social Care and Health,ASCH,Supplies & Services,DEA,05/09/2012,06-16114,2576,P Colman,,,,,,,,,,,
Nottinghamshire County Council,1111/1001,Adult Social Care and Health,ASCH,Supplies & Services,DEA,13/09/2012,06-16243,30349.99,Kpmg Llp,,,,,,,,,,,
Nottinghamshire County Council,1111/1001,Adult Social Care and Health,ASCH,Supplies & Services,DEA,14/09/2012,06-14175,217.01,Vallances Coaches,,,,,,,,,,,
Nottinghamshire County Council,1111/1001,Adult Social Care and Health,ASCH,Supplies & Services,DEA,17/09/2012,06-16314,2008.6,Patient & Public Involvement Soluti,,,,,,,,,,,
Nottinghamshire County Council,1111/1001,Adult Social Care and Health,ASCH,Supplies & Services,DEA,18/09/2012,06-16347,618,House Clearance Uk Ltd,,,,,,,,,,,
Nottinghamshire County Council,1111/1001,Adult Social Care and Health,ASCH,Supplies & Services,DEA,19/09/2012,06-16376,680,Enlightks Ltd,,,,,,,,,,,
Nottinghamshire County Council,1111/1001,Adult Social Care and Health,ASCH,Supplies & Services,DEA,25/09/2012,06-15483,1076.92,A W Lymn,,,,,,,,,,,
Nottinghamshire County Council,1111/1001,Adult Social Care and Health,ASCH,Supplies & Services,DEA,26/09/2012,06-16132,846.4,Phs Group Plc,,,,,,,,,,,
Nottinghamshire County Council,1111/1001,Adult Social Care and Health,ASCH,Supplies & Services,DEA,26/09/2012,06-16330,981.42,Phs Group Plc,,,,,,,,,,,
Nottinghamshire County Council,1111/1001,Adult Social Care and Health,ASCH,Supplies & Services,DEA,26/09/2012,06-16399,1674.8,Phs Group Plc,,,,,,,,,,,
Nottinghamshire County Council,1111/1001,Adult Social Care and Health,ASCH,Supplies & Services,DEA,28/09/2012,06-13794,84.2,Security Plus Ltd,,,,,,,,,,,
Nottinghamshire County Council,1111/1001,Adult Social Care and Health,ASCH,Supplies & Services,DFA,17/09/2012,06-14378,536.73,British Telecommunications Plc,,,,,,,,,,,
Nottinghamshire County Council,1111/1001,Adult Social Care and Health,ASCH,Supplies & Services,DFA,20/09/2012,06-15116,2660.5,Virgin Media,,,,,,,,,,,
Nottinghamshire County Council,1111/1001,Adult Social Care and Health,ASCH,Supplies & Services,DFA,20/09/2012,06-15117,1880.13,Virgin Media,,,,,,,,,,,
Nottinghamshire County Council,1111/1001,Adult Social Care and Health,ASCH,Supplies & Services,DFA,27/09/2012,06-15960,506.78,Virgin Media,,,,,,,,,,,
Nottinghamshire County Council,1111/1001,Adult Social Care and Health,ASCH,Supplies & Services,DFA,27/09/2012,06-15962,1565.48,Virgin Media,,,,,,,,,,,
Nottinghamshire County Council,1111/1001,Adult Social Care and Health,ASCH,Supplies & Services,DHA,07/09/2012,06-10572,5493,Our Centre,,,,,,,,,,,
Nottinghamshire County Council,1111/1001,Adult Social Care and Health,ASCH,Supplies & Services,DHA,07/09/2012,06-10573,5969,Bassetlaw Action Centre,,,,,,,,,,,
Nottinghamshire County Council,1111/1001,Adult Social Care and Health,ASCH,Supplies & Services,DHA,07/09/2012,06-10574,13000,Rcvs Linkage,,,,,,,,,,,
Nottinghamshire County Council,1111/1001,Adult Social Care and Health,ASCH,Supplies & Services,DHA,07/09/2012,06-10575,5855,Mansfield Community Voluntary Serv,,,,,,,,,,,
Nottinghamshire County Council,1111/1001,Adult Social Care and Health,ASCH,Supplies & Services,DHA,07/09/2012,06-10576,7591,Bassetlaw Action Centre,,,,,,,,,,,
Nottinghamshire County Council,1111/1001,Adult Social Care and Health,ASCH,Supplies & Services,DHA,07/09/2012,06-10577,7591,Mansfield Community Voluntary Serv,,,,,,,,,,,
Nottinghamshire County Council,1111/1001,Adult Social Care and Health,ASCH,Supplies & Services,DHA,07/09/2012,06-10578,7591,Care & Comfort Community Services,,,,,,,,,,,
Nottinghamshire County Council,1111/1001,Adult Social Care and Health,ASCH,Supplies & Services,DHA,07/09/2012,06-10579,7591,Rcvs Linkage,,,,,,,,,,,
Nottinghamshire County Council,1111/1001,Adult Social Care and Health,ASCH,Supplies & Services,DHA,07/09/2012,06-10581,7591,The Helpful Bureau,,,,,,,,,,,
Nottinghamshire County Council,1111/1001,Adult Social Care and Health,ASCH,Supplies & Services,DHA,07/09/2012,06-10582,7237,Womens Royal Voluntary Service,,,,,,,,,,,
Nottinghamshire County Council,1111/1001,Adult Social Care and Health,ASCH,Supplies & Services,DHA,07/09/2012,06-10587,7591,Age Uk Nottm & Notts,,,,,,,,,,,
Nottinghamshire County Council,1111/1001,Adult Social Care and Health,ASCH,Supplies & Services,DHA,07/09/2012,06-10588,7591,Age Uk Nottm & Notts,,,,,,,,,,,
Nottinghamshire County Council,1111/1001,Adult Social Care and Health,ASCH,Supplies & Services,DHA,19/09/2012,06-15025,1819.75,Care & Comfort Community Services,,,,,,,,,,,
Nottinghamshire County Council,1111/1001,Adult Social Care and Health,ASCH,Supplies & Services,DHA,24/09/2012,06-15467,828,Alzheimers Society,,,,,,,,,,,
Nottinghamshire County Council,1111/1001,Adult Social Care and Health,ASCH,Supplies & Services,DKA,07/09/2012,06-16147,549.2,Premier Pets Hotel Ltd,,,,,,,,,,,
Nottinghamshire County Council,1111/1001,Adult Social Care and Health,ASCH,Third Party Payments,EBA,12/09/2012,06-13970,6388.48,Turning Point,,,,,,,,,,,
Nottinghamshire County Council,1111/1001,Adult Social Care and Health,ASCH,Third Party Payments,EBA,13/09/2012,06-13953,108700.93,Mansfield District Council,,,,,,,,,,,
Nottinghamshire County Council,1111/1001,Adult Social Care and Health,ASCH,Third Party Payments,EBA,13/09/2012,06-13954,42379,Ashfield District Council,,,,,,,,,,,
Nottinghamshire County Council,1111/1001,Adult Social Care and Health,ASCH,Third Party Payments,EBA,13/09/2012,06-13955,41398.33,Bassetlaw District Council,,,,,,,,,,,
Nottinghamshire County Council,1111/1001,Adult Social Care and Health,ASCH,Third Party Payments,EBA,13/09/2012,06-13956,31696.31,Broxtowe Borough Council,,,,,,,,,,,
Nottinghamshire County Council,1111/1001,Adult Social Care and Health,ASCH,Third Party Payments,EBA,13/09/2012,06-13957,30184.25,Newark & Sherwood District Council,,,,,,,,,,,
Nottinghamshire County Council,1111/1001,Adult Social Care and Health,ASCH,Third Party Payments,EBA,13/09/2012,06-13958,1770.46,Nene Housing Society Limited,,,,,,,,,,,
Nottinghamshire County Council,1111/1001,Adult Social Care and Health,ASCH,Third Party Payments,EBA,13/09/2012,06-13959,3647.4,Leicester Housing Association,,,,,,,,,,,
Nottinghamshire County Council,1111/1001,Adult Social Care and Health,ASCH,Third Party Payments,EBA,13/09/2012,06-13960,36779.87,Home Group Limited,,,,,,,,,,,
Nottinghamshire County Council,1111/1001,Adult Social Care and Health,ASCH,Third Party Payments,EBA,13/09/2012,06-13961,7764.36,The Kirkby Trust,,,,,,,,,,,
Nottinghamshire County Council,1111/1001,Adult Social Care and Health,ASCH,Third Party Payments,EBA,13/09/2012,06-13962,575.52,Newark Mind,,,,,,,,,,,
Nottinghamshire County Council,1111/1001,Adult Social Care and Health,ASCH,Third Party Payments,EBA,13/09/2012,06-13963,973.08,East Midlands Housing,,,,,,,,,,,
Nottinghamshire County Council,1111/1001,Adult Social Care and Health,ASCH,Third Party Payments,EBA,13/09/2012,06-13964,38635.63,Nottinghamshire Women'S Aid Limited,,,,,,,,,,,
Nottinghamshire County Council,1111/1001,Adult Social Care and Health,ASCH,Third Party Payments,EBA,13/09/2012,06-13965,10827.25,Jigsaw Mansfield Floating Support S,,,,,,,,,,,
Nottinghamshire County Council,1111/1001,Adult Social Care and Health,ASCH,Third Party Payments,EBA,13/09/2012,06-13966,907.11,Longhurst Housing Ltd,,,,,,,,,,,
Nottinghamshire County Council,1111/1001,Adult Social Care and Health,ASCH,Third Party Payments,EBA,13/09/2012,06-13967,10664.81,Advance Housing And Support Ltd,,,,,,,,,,,
Nottinghamshire County Council,1111/1001,Adult Social Care and Health,ASCH,Third Party Payments,EBA,13/09/2012,06-13968,1644.84,De Montfort Housing Association,,,,,,,,,,,
Nottinghamshire County Council,1111/1001,Adult Social Care and Health,ASCH,Third Party Payments,EBA,13/09/2012,06-13969,2965.17,Hlg,,,,,,,,,,,
Nottinghamshire County Council,1111/1001,Adult Social Care and Health,ASCH,Third Party Payments,EBA,13/09/2012,06-13971,15035.5,Metropolitan Support Trust,,,,,,,,,,,
Nottinghamshire County Council,1111/1001,Adult Social Care and Health,ASCH,Third Party Payments,EBA,13/09/2012,06-13972,46635.56,Royal Society Mencap,,,,,,,,,,,
Nottinghamshire County Council,1111/1001,Adult Social Care and Health,ASCH,Third Party Payments,EBA,13/09/2012,06-13973,1187.63,Housing 21,,,,,,,,,,,
Nottinghamshire County Council,1111/1001,Adult Social Care and Health,ASCH,Third Party Payments,EBA,13/09/2012,06-13974,756.14,Sanctuary Housing Association,,,,,,,,,,,
Nottinghamshire County Council,1111/1001,Adult Social Care and Health,ASCH,Third Party Payments,EBA,13/09/2012,06-13975,1208.62,Nottingham City Homes,,,,,,,,,,,
Nottinghamshire County Council,1111/1001,Adult Social Care and Health,ASCH,Third Party Payments,EBA,13/09/2012,06-13976,24765.39,Metropolitan Support Trust,,,,,,,,,,,
Nottinghamshire County Council,1111/1001,Adult Social Care and Health,ASCH,Third Party Payments,EBA,13/09/2012,06-13977,21713.96,Newark Emmaus Trust,,,,,,,,,,,
Nottinghamshire County Council,1111/1001,Adult Social Care and Health,ASCH,Third Party Payments,EBA,13/09/2012,06-13978,107382.4,Eden Supported Living Ltd,,,,,,,,,,,
Nottinghamshire County Council,1111/1001,Adult Social Care and Health,ASCH,Third Party Payments,EBA,13/09/2012,06-13979,90529.69,Nottingham Community Housing Associ,,,,,,,,,,,
Nottinghamshire County Council,1111/1001,Adult Social Care and Health,ASCH,Third Party Payments,EBA,13/09/2012,06-13980,1111.47,United Charities Of Abel Collin,,,,,,,,,,,
Nottinghamshire County Council,1111/1001,Adult Social Care and Health,ASCH,Third Party Payments,EBA,13/09/2012,06-13981,28236.97,Woman'S Aid Integrated Services,,,,,,,,,,,
Nottinghamshire County Council,1111/1001,Adult Social Care and Health,ASCH,Third Party Payments,EBA,13/09/2012,06-13982,3410.63,Catch 22,,,,,,,,,,,
Nottinghamshire County Council,1111/1001,Adult Social Care and Health,ASCH,Third Party Payments,EBA,13/09/2012,06-13983,2920,Care Solutions Ltd,,,,,,,,,,,
Nottinghamshire County Council,1111/1001,Adult Social Care and Health,ASCH,Third Party Payments,EBA,13/09/2012,06-13984,16247.92,Lifeways Community Care Ltd,,,,,,,,,,,
Nottinghamshire County Council,1111/1001,Adult Social Care and Health,ASCH,Third Party Payments,EBA,13/09/2012,06-13985,13120,United Response,,,,,,,,,,,
Nottinghamshire County Council,1111/1001,Adult Social Care and Health,ASCH,Third Party Payments,EBA,13/09/2012,06-13986,920,Heritage Care,,,,,,,,,,,
Nottinghamshire County Council,1111/1001,Adult Social Care and Health,ASCH,Third Party Payments,EBA,13/09/2012,06-13987,2000,Lha Support Services Limited,,,,,,,,,,,
Nottinghamshire County Council,1111/1001,Adult Social Care and Health,ASCH,Third Party Payments,EBA,13/09/2012,06-13988,2360,Real Life Options,,,,,,,,,,,
Nottinghamshire County Council,1111/1001,Adult Social Care and Health,ASCH,Third Party Payments,EBA,13/09/2012,06-13989,22505.13,Gedling Homes,,,,,,,,,,,
Nottinghamshire County Council,1111/1001,Adult Social Care and Health,ASCH,Third Party Payments,EBA,13/09/2012,06-13990,6180,Voyage Ltd,,,,,,,,,,,
Nottinghamshire County Council,1111/1001,Adult Social Care and Health,ASCH,Third Party Payments,EBA,13/09/2012,06-13991,5321.2,NCHA Ltd,,,,,,,,,,,
Nottinghamshire County Council,1111/1001,Adult Social Care and Health,ASCH,Third Party Payments,EBA,13/09/2012,06-14034,346587.39,Framework Housing Association,,,,,,,,,,,
Nottinghamshire County Council,1111/1001,Adult Social Care and Health,ASCH,Third Party Payments,ECA,03/09/2012,06-10031,1506.27,Beauvale Nursing Home,,,,,,,,,,,
Nottinghamshire County Council,1111/1001,Adult Social Care and Health,ASCH,Third Party Payments,ECA,03/09/2012,06-10033,1506.27,Silverwood Care Home,,,,,,,,,,,
Nottinghamshire County Council,1111/1001,Adult Social Care and Health,ASCH,Third Party Payments,ECA,03/09/2012,06-10036,481.39,Spring Water Lodge,,,,,,,,,,,
Nottinghamshire County Council,1111/1001,Adult Social Care and Health,ASCH,Third Party Payments,ECA,03/09/2012,06-10040,978.3,Little Oaks,,,,,,,,,,,
Nottinghamshire County Council,1111/1001,Adult Social Care and Health,ASCH,Third Party Payments,ECA,03/09/2012,06-10046,869.6,Stoneyford Christian Nursing Home,,,,,,,,,,,
Nottinghamshire County Council,1111/1001,Adult Social Care and Health,ASCH,Third Party Payments,ECA,03/09/2012,06-10047,807.49,Stoneyford Christian Nursing Home,,,,,,,,,,,
Nottinghamshire County Council,1111/1001,Adult Social Care and Health,ASCH,Third Party Payments,ECA,03/09/2012,06-10048,5962.97,St Augustine's Court,,,,,,,,,,,
Nottinghamshire County Council,1111/1001,Adult Social Care and Health,ASCH,Third Party Payments,ECA,03/09/2012,06-10049,621.14,Beeches Nursing Home,,,,,,,,,,,
Nottinghamshire County Council,1111/1001,Adult Social Care and Health,ASCH,Third Party Payments,ECA,03/09/2012,06-10050,3990.84,Berry Hill Park,,,,,,,,,,,
Nottinghamshire County Council,1111/1001,Adult Social Care and Health,ASCH,Third Party Payments,ECA,03/09/2012,06-10051,2142.94,Clumber Court,,,,,,,,,,,
Nottinghamshire County Council,1111/1001,Adult Social Care and Health,ASCH,Third Party Payments,ECA,03/09/2012,06-10055,1149.11,Ashley House Nursing Home,,,,,,,,,,,
Nottinghamshire County Council,1111/1001,Adult Social Care and Health,ASCH,Third Party Payments,ECA,03/09/2012,06-10056,403.74,Forest Hill Nursing Home,,,,,,,,,,,
Nottinghamshire County Council,1111/1001,Adult Social Care and Health,ASCH,Third Party Payments,ECA,03/09/2012,06-10057,621.14,Burkitt Care Home,,,,,,,,,,,
Nottinghamshire County Council,1111/1001,Adult Social Care and Health,ASCH,Third Party Payments,ECA,03/09/2012,06-10061,108.7,Wren Hall Nursing Home,,,,,,,,,,,
Nottinghamshire County Council,1111/1001,Adult Social Care and Health,ASCH,Third Party Payments,ECA,03/09/2012,06-10062,124.23,Wren Hall Nursing Home,,,,,,,,,,,
Nottinghamshire County Council,1111/1001,Adult Social Care and Health,ASCH,Third Party Payments,ECA,03/09/2012,06-10067,295.04,Beeston Lodge Nursing Home,,,,,,,,,,,
Nottinghamshire County Council,1111/1001,Adult Social Care and Health,ASCH,Third Party Payments,ECA,03/09/2012,06-10069,3307.59,Aj & Sa Verjee,,,,,,,,,,,
Nottinghamshire County Council,1111/1001,Adult Social Care and Health,ASCH,Third Party Payments,ECA,03/09/2012,06-10076,4021.9,Victoria Care Home,,,,,,,,,,,
Nottinghamshire County Council,1111/1001,Adult Social Care and Health,ASCH,Third Party Payments,ECA,03/09/2012,06-10081,1304.4,Blyth Country House Care Home,,,,,,,,,,,
Nottinghamshire County Council,1111/1001,Adult Social Care and Health,ASCH,Third Party Payments,ECA,03/09/2012,06-10083,1004.46,The Shires Care Centre,,,,,,,,,,,
Nottinghamshire County Council,1111/1001,Adult Social Care and Health,ASCH,Third Party Payments,ECA,03/09/2012,06-10084,201.87,Cherry Holt Care Home,,,,,,,,,,,
Nottinghamshire County Council,1111/1001,Adult Social Care and Health,ASCH,Third Party Payments,ECA,03/09/2012,06-10087,2453.51,Carlton House Nursing Home,,,,,,,,,,,
Nottinghamshire County Council,1111/1001,Adult Social Care and Health,ASCH,Third Party Payments,ECA,03/09/2012,06-10089,745.37,Westvilla Nursing Home,,,,,,,,,,,
Nottinghamshire County Council,1111/1001,Adult Social Care and Health,ASCH,Third Party Payments,ECA,03/09/2012,06-10090,232.93,Westvilla Nursing Home,,,,,,,,,,,
Nottinghamshire County Council,1111/1001,Adult Social Care and Health,ASCH,Third Party Payments,ECA,03/09/2012,06-10091,139.76,Westvilla Nursing Home,,,,,,,,,,,
Nottinghamshire County Council,1111/1001,Adult Social Care and Health,ASCH,Third Party Payments,ECA,11/09/2012,06-10709,434.8,Barchester Healthcare Homes-Hilton,,,,,,,,,,,
Nottinghamshire County Council,1111/1001,Adult Social Care and Health,ASCH,Third Party Payments,ECA,11/09/2012,06-10727,434.8,Bramcote Hills Care Home,,,,,,,,,,,
Nottinghamshire County Council,1111/1001,Adult Social Care and Health,ASCH,Third Party Payments,ECA,11/09/2012,06-10728,434.8,Bramcote Hills Care Home,,,,,,,,,,,
Nottinghamshire County Council,1111/1001,Adult Social Care and Health,ASCH,Third Party Payments,ECA,11/09/2012,06-10733,434.8,Bramcote Hills Care Home,,,,,,,,,,,
Nottinghamshire County Council,1111/1001,Adult Social Care and Health,ASCH,Third Party Payments,ECA,11/09/2012,06-10734,434.8,Bramcote Hills Care Home,,,,,,,,,,,
Nottinghamshire County Council,1111/1001,Adult Social Care and Health,ASCH,Third Party Payments,ECA,11/09/2012,06-10736,434.8,Bramcote Hills Care Home,,,,,,,,,,,
Nottinghamshire County Council,1111/1001,Adult Social Care and Health,ASCH,Third Party Payments,ECA,11/09/2012,06-10749,434.8,The Grange Nursing Home,,,,,,,,,,,
Nottinghamshire County Council,1111/1001,Adult Social Care and Health,ASCH,Third Party Payments,ECA,11/09/2012,06-10751,434.8,The Grange Nursing Home,,,,,,,,,,,
Nottinghamshire County Council,1111/1001,Adult Social Care and Health,ASCH,Third Party Payments,ECA,11/09/2012,06-10752,434.8,The Grange Nursing Home,,,,,,,,,,,
Nottinghamshire County Council,1111/1001,Adult Social Care and Health,ASCH,Third Party Payments,ECA,11/09/2012,06-10753,434.8,The Grange Nursing Home,,,,,,,,,,,
Nottinghamshire County Council,1111/1001,Adult Social Care and Health,ASCH,Third Party Payments,ECA,11/09/2012,06-10754,434.8,The Grange Nursing Home,,,,,,,,,,,
Nottinghamshire County Council,1111/1001,Adult Social Care and Health,ASCH,Third Party Payments,ECA,11/09/2012,06-10755,434.8,The Grange Nursing Home,,,,,,,,,,,
Nottinghamshire County Council,1111/1001,Adult Social Care and Health,ASCH,Third Party Payments,ECA,11/09/2012,06-10769,434.8,Arden Lea Nursing Home,,,,,,,,,,,
Nottinghamshire County Council,1111/1001,Adult Social Care and Health,ASCH,Third Party Payments,ECA,11/09/2012,06-10770,434.8,Arden Lea Nursing Home,,,,,,,,,,,
Nottinghamshire County Council,1111/1001,Adult Social Care and Health,ASCH,Third Party Payments,ECA,11/09/2012,06-10771,434.8,Belle Vue,,,,,,,,,,,
Nottinghamshire County Council,1111/1001,Adult Social Care and Health,ASCH,Third Party Payments,ECA,11/09/2012,06-10772,434.8,Belle Vue,,,,,,,,,,,
Nottinghamshire County Council,1111/1001,Adult Social Care and Health,ASCH,Third Party Payments,ECA,11/09/2012,06-10774,2826.2,Belle Vue,,,,,,,,,,,
Nottinghamshire County Council,1111/1001,Adult Social Care and Health,ASCH,Third Party Payments,ECA,11/09/2012,06-10775,434.8,Belle Vue,,,,,,,,,,,
Nottinghamshire County Council,1111/1001,Adult Social Care and Health,ASCH,Third Party Payments,ECA,11/09/2012,06-10777,434.8,Belle Vue,,,,,,,,,,,
Nottinghamshire County Council,1111/1001,Adult Social Care and Health,ASCH,Third Party Payments,ECA,11/09/2012,06-10779,434.8,Belle Vue,,,,,,,,,,,
Nottinghamshire County Council,1111/1001,Adult Social Care and Health,ASCH,Third Party Payments,ECA,11/09/2012,06-10780,434.8,Belle Vue,,,,,,,,,,,
Nottinghamshire County Council,1111/1001,Adult Social Care and Health,ASCH,Third Party Payments,ECA,11/09/2012,06-10781,434.8,Belle Vue,,,,,,,,,,,
Nottinghamshire County Council,1111/1001,Adult Social Care and Health,ASCH,Third Party Payments,ECA,11/09/2012,06-10785,434.8,Belle Vue,,,,,,,,,,,
Nottinghamshire County Council,1111/1001,Adult Social Care and Health,ASCH,Third Party Payments,ECA,11/09/2012,06-10790,434.8,Ashcroft,,,,,,,,,,,
Nottinghamshire County Council,1111/1001,Adult Social Care and Health,ASCH,Third Party Payments,ECA,11/09/2012,06-10792,434.8,Ashcroft,,,,,,,,,,,
Nottinghamshire County Council,1111/1001,Adult Social Care and Health,ASCH,Third Party Payments,ECA,11/09/2012,06-10793,434.8,Ashcroft,,,,,,,,,,,
Nottinghamshire County Council,1111/1001,Adult Social Care and Health,ASCH,Third Party Payments,ECA,11/09/2012,06-10796,434.8,Ashcroft,,,,,,,,,,,
Nottinghamshire County Council,1111/1001,Adult Social Care and Health,ASCH,Third Party Payments,ECA,11/09/2012,06-10799,434.8,Ashcroft,,,,,,,,,,,
Nottinghamshire County Council,1111/1001,Adult Social Care and Health,ASCH,Third Party Payments,ECA,11/09/2012,06-10800,434.8,Ashcroft,,,,,,,,,,,
Nottinghamshire County Council,1111/1001,Adult Social Care and Health,ASCH,Third Party Payments,ECA,11/09/2012,06-10809,3571.57,Ashcroft,,,,,,,,,,,
Nottinghamshire County Council,1111/1001,Adult Social Care and Health,ASCH,Third Party Payments,ECA,11/09/2012,06-10810,434.8,Ashcroft,,,,,,,,,,,
Nottinghamshire County Council,1111/1001,Adult Social Care and Health,ASCH,Third Party Payments,ECA,11/09/2012,06-10812,434.8,Ashcroft,,,,,,,,,,,
Nottinghamshire County Council,1111/1001,Adult Social Care and Health,ASCH,Third Party Payments,ECA,11/09/2012,06-10814,434.8,Kingsthorpe View Nursing Home,,,,,,,,,,,
Nottinghamshire County Council,1111/1001,Adult Social Care and Health,ASCH,Third Party Payments,ECA,11/09/2012,06-10815,434.8,Kingsthorpe View Nursing Home,,,,,,,,,,,
Nottinghamshire County Council,1111/1001,Adult Social Care and Health,ASCH,Third Party Payments,ECA,11/09/2012,06-10816,434.8,Kingsthorpe View Nursing Home,,,,,,,,,,,
Nottinghamshire County Council,1111/1001,Adult Social Care and Health,ASCH,Third Party Payments,ECA,11/09/2012,06-10817,434.8,Kingsthorpe View Nursing Home,,,,,,,,,,,
Nottinghamshire County Council,1111/1001,Adult Social Care and Health,ASCH,Third Party Payments,ECA,11/09/2012,06-10818,434.8,Kingsthorpe View Nursing Home,,,,,,,,,,,
Nottinghamshire County Council,1111/1001,Adult Social Care and Health,ASCH,Third Party Payments,ECA,11/09/2012,06-10820,434.8,Ladywood Care Home,,,,,,,,,,,
Nottinghamshire County Council,1111/1001,Adult Social Care and Health,ASCH,Third Party Payments,ECA,11/09/2012,06-10821,512.44,Beauvale Nursing Home,,,,,,,,,,,
Nottinghamshire County Council,1111/1001,Adult Social Care and Health,ASCH,Third Party Payments,ECA,11/09/2012,06-10871,434.8,Charnwood House,,,,,,,,,,,
Nottinghamshire County Council,1111/1001,Adult Social Care and Health,ASCH,Third Party Payments,ECA,11/09/2012,06-10875,434.8,Charnwood House,,,,,,,,,,,
Nottinghamshire County Council,1111/1001,Adult Social Care and Health,ASCH,Third Party Payments,ECA,11/09/2012,06-10878,434.8,Charnwood House,,,,,,,,,,,
Nottinghamshire County Council,1111/1001,Adult Social Care and Health,ASCH,Third Party Payments,ECA,11/09/2012,06-10891,434.8,Four Seasons (Evedale) Ltd Re Charn,,,,,,,,,,,
Nottinghamshire County Council,1111/1001,Adult Social Care and Health,ASCH,Third Party Payments,ECA,11/09/2012,06-10892,434.8,Four Seasons (Evedale) Ltd Re Charn,,,,,,,,,,,
Nottinghamshire County Council,1111/1001,Adult Social Care and Health,ASCH,Third Party Payments,ECA,11/09/2012,06-10894,434.8,Four Seasons (Evedale) Ltd Re Charn,,,,,,,,,,,
Nottinghamshire County Council,1111/1001,Adult Social Care and Health,ASCH,Third Party Payments,ECA,11/09/2012,06-10896,434.8,Four Seasons (Evedale) Ltd Re Charn,,,,,,,,,,,
Nottinghamshire County Council,1111/1001,Adult Social Care and Health,ASCH,Third Party Payments,ECA,11/09/2012,06-10897,434.8,Four Seasons (Evedale) Ltd Re Charn,,,,,,,,,,,
Nottinghamshire County Council,1111/1001,Adult Social Care and Health,ASCH,Third Party Payments,ECA,11/09/2012,06-10903,434.8,Four Seasons (Evedale) Ltd Re Sycam,,,,,,,,,,,
Nottinghamshire County Council,1111/1001,Adult Social Care and Health,ASCH,Third Party Payments,ECA,11/09/2012,06-10906,947.24,Four Seasons (Evedale) Ltd Re Sycam,,,,,,,,,,,
Nottinghamshire County Council,1111/1001,Adult Social Care and Health,ASCH,Third Party Payments,ECA,11/09/2012,06-10909,434.8,Four Seasons (Evedale) Ltd Re Sycam,,,,,,,,,,,
Nottinghamshire County Council,1111/1001,Adult Social Care and Health,ASCH,Third Party Payments,ECA,11/09/2012,06-10914,434.8,Four Seasons (Evedale) Ltd Re Sycam,,,,,,,,,,,
Nottinghamshire County Council,1111/1001,Adult Social Care and Health,ASCH,Third Party Payments,ECA,11/09/2012,06-10916,434.8,Four Seasons (Evedale) Ltd Re Sycam,,,,,,,,,,,
Nottinghamshire County Council,1111/1001,Adult Social Care and Health,ASCH,Third Party Payments,ECA,11/09/2012,06-10932,434.8,Howson Care Centre,,,,,,,,,,,
Nottinghamshire County Council,1111/1001,Adult Social Care and Health,ASCH,Third Party Payments,ECA,11/09/2012,06-10933,434.8,Howson Care Centre,,,,,,,,,,,
Nottinghamshire County Council,1111/1001,Adult Social Care and Health,ASCH,Third Party Payments,ECA,11/09/2012,06-10934,598.4,Howson Care Centre,,,,,,,,,,,
Nottinghamshire County Council,1111/1001,Adult Social Care and Health,ASCH,Third Party Payments,ECA,11/09/2012,06-10936,598.4,Howson Care Centre,,,,,,,,,,,
Nottinghamshire County Council,1111/1001,Adult Social Care and Health,ASCH,Third Party Payments,ECA,11/09/2012,06-10937,434.8,Howson Care Centre,,,,,,,,,,,
Nottinghamshire County Council,1111/1001,Adult Social Care and Health,ASCH,Third Party Payments,ECA,11/09/2012,06-10938,434.8,Howson Care Centre,,,,,,,,,,,
Nottinghamshire County Council,1111/1001,Adult Social Care and Health,ASCH,Third Party Payments,ECA,11/09/2012,06-10941,434.8,Churchfield Drive Care Home,,,,,,,,,,,
Nottinghamshire County Council,1111/1001,Adult Social Care and Health,ASCH,Third Party Payments,ECA,11/09/2012,06-10943,434.8,Churchfield Drive Care Home,,,,,,,,,,,
Nottinghamshire County Council,1111/1001,Adult Social Care and Health,ASCH,Third Party Payments,ECA,11/09/2012,06-10947,434.8,Churchfield Drive Care Home,,,,,,,,,,,
Nottinghamshire County Council,1111/1001,Adult Social Care and Health,ASCH,Third Party Payments,ECA,11/09/2012,06-10952,434.8,Churchfield Drive Care Home,,,,,,,,,,,
Nottinghamshire County Council,1111/1001,Adult Social Care and Health,ASCH,Third Party Payments,ECA,11/09/2012,06-10980,434.8,Churchfield Nursing Home,,,,,,,,,,,
Nottinghamshire County Council,1111/1001,Adult Social Care and Health,ASCH,Third Party Payments,ECA,11/09/2012,06-10982,636.67,Churchfield Nursing Home,,,,,,,,,,,
Nottinghamshire County Council,1111/1001,Adult Social Care and Health,ASCH,Third Party Payments,ECA,11/09/2012,06-10983,434.8,Churchfield Nursing Home,,,,,,,,,,,
Nottinghamshire County Council,1111/1001,Adult Social Care and Health,ASCH,Third Party Payments,ECA,11/09/2012,06-10984,434.8,Churchfield Nursing Home,,,,,,,,,,,
Nottinghamshire County Council,1111/1001,Adult Social Care and Health,ASCH,Third Party Payments,ECA,11/09/2012,06-10985,434.8,Churchfield Nursing Home,,,,,,,,,,,
Nottinghamshire County Council,1111/1001,Adult Social Care and Health,ASCH,Third Party Payments,ECA,11/09/2012,06-10986,434.8,Churchfield Nursing Home,,,,,,,,,,,
Nottinghamshire County Council,1111/1001,Adult Social Care and Health,ASCH,Third Party Payments,ECA,11/09/2012,06-10988,434.8,Churchfield Nursing Home,,,,,,,,,,,
Nottinghamshire County Council,1111/1001,Adult Social Care and Health,ASCH,Third Party Payments,ECA,11/09/2012,06-10989,434.8,Churchfield Nursing Home,,,,,,,,,,,
Nottinghamshire County Council,1111/1001,Adult Social Care and Health,ASCH,Third Party Payments,ECA,11/09/2012,06-10999,434.8,Eastlands Care Home,,,,,,,,,,,
Nottinghamshire County Council,1111/1001,Adult Social Care and Health,ASCH,Third Party Payments,ECA,11/09/2012,06-11012,434.8,Kirkby Manor Care Home,,,,,,,,,,,
Nottinghamshire County Council,1111/1001,Adult Social Care and Health,ASCH,Third Party Payments,ECA,11/09/2012,06-11014,434.8,Kirkby Manor Care Home,,,,,,,,,,,
Nottinghamshire County Council,1111/1001,Adult Social Care and Health,ASCH,Third Party Payments,ECA,11/09/2012,06-11015,434.8,Kirkby Manor Care Home,,,,,,,,,,,
Nottinghamshire County Council,1111/1001,Adult Social Care and Health,ASCH,Third Party Payments,ECA,11/09/2012,06-11016,434.8,Kirkby Manor Care Home,,,,,,,,,,,
Nottinghamshire County Council,1111/1001,Adult Social Care and Health,ASCH,Third Party Payments,ECA,11/09/2012,06-11017,598.4,Kirkby Manor Care Home,,,,,,,,,,,
Nottinghamshire County Council,1111/1001,Adult Social Care and Health,ASCH,Third Party Payments,ECA,11/09/2012,06-11018,598.4,Kirkby Manor Care Home,,,,,,,,,,,
Nottinghamshire County Council,1111/1001,Adult Social Care and Health,ASCH,Third Party Payments,ECA,11/09/2012,06-11020,434.8,Kirkby Manor Care Home,,,,,,,,,,,
Nottinghamshire County Council,1111/1001,Adult Social Care and Health,ASCH,Third Party Payments,ECA,11/09/2012,06-11021,434.8,Kirkby Manor Care Home,,,,,,,,,,,
Nottinghamshire County Council,1111/1001,Adult Social Care and Health,ASCH,Third Party Payments,ECA,11/09/2012,06-11022,434.8,Kirkby Manor Care Home,,,,,,,,,,,
Nottinghamshire County Council,1111/1001,Adult Social Care and Health,ASCH,Third Party Payments,ECA,11/09/2012,06-11023,434.8,Kirkby Manor Care Home,,,,,,,,,,,
Nottinghamshire County Council,1111/1001,Adult Social Care and Health,ASCH,Third Party Payments,ECA,11/09/2012,06-11027,434.8,Kirkby Manor Care Home,,,,,,,,,,,
Nottinghamshire County Council,1111/1001,Adult Social Care and Health,ASCH,Third Party Payments,ECA,11/09/2012,06-11028,434.8,Kirkby Manor Care Home,,,,,,,,,,,
Nottinghamshire County Council,1111/1001,Adult Social Care and Health,ASCH,Third Party Payments,ECA,11/09/2012,06-11029,434.8,Kirkby Manor Care Home,,,,,,,,,,,
Nottinghamshire County Council,1111/1001,Adult Social Care and Health,ASCH,Third Party Payments,ECA,11/09/2012,06-11030,434.8,Kirkby Manor Care Home,,,,,,,,,,,
Nottinghamshire County Council,1111/1001,Adult Social Care and Health,ASCH,Third Party Payments,ECA,11/09/2012,06-11031,434.8,Kirkby Manor Care Home,,,,,,,,,,,
Nottinghamshire County Council,1111/1001,Adult Social Care and Health,ASCH,Third Party Payments,ECA,11/09/2012,06-11032,434.8,Kirkby Manor Care Home,,,,,,,,,,,
Nottinghamshire County Council,1111/1001,Adult Social Care and Health,ASCH,Third Party Payments,ECA,11/09/2012,06-11033,434.8,Kirkby Manor Care Home,,,,,,,,,,,
Nottinghamshire County Council,1111/1001,Adult Social Care and Health,ASCH,Third Party Payments,ECA,11/09/2012,06-11060,434.8,St Augustine's Court,,,,,,,,,,,
Nottinghamshire County Council,1111/1001,Adult Social Care and Health,ASCH,Third Party Payments,ECA,11/09/2012,06-11061,434.8,St Augustine's Court,,,,,,,,,,,
Nottinghamshire County Council,1111/1001,Adult Social Care and Health,ASCH,Third Party Payments,ECA,11/09/2012,06-11063,434.8,St Augustine's Court,,,,,,,,,,,
Nottinghamshire County Council,1111/1001,Adult Social Care and Health,ASCH,Third Party Payments,ECA,11/09/2012,06-11064,434.8,St Augustine's Court,,,,,,,,,,,
Nottinghamshire County Council,1111/1001,Adult Social Care and Health,ASCH,Third Party Payments,ECA,11/09/2012,06-11087,434.8,Clumber Court,,,,,,,,,,,
Nottinghamshire County Council,1111/1001,Adult Social Care and Health,ASCH,Third Party Payments,ECA,11/09/2012,06-11088,434.8,Clumber Court,,,,,,,,,,,
Nottinghamshire County Council,1111/1001,Adult Social Care and Health,ASCH,Third Party Payments,ECA,11/09/2012,06-11089,434.8,Clumber Court,,,,,,,,,,,
Nottinghamshire County Council,1111/1001,Adult Social Care and Health,ASCH,Third Party Payments,ECA,11/09/2012,06-11090,434.8,Clumber Court,,,,,,,,,,,
Nottinghamshire County Council,1111/1001,Adult Social Care and Health,ASCH,Third Party Payments,ECA,11/09/2012,06-11094,434.8,Clumber Court,,,,,,,,,,,
Nottinghamshire County Council,1111/1001,Adult Social Care and Health,ASCH,Third Party Payments,ECA,11/09/2012,06-11097,434.8,Clumber Court,,,,,,,,,,,
Nottinghamshire County Council,1111/1001,Adult Social Care and Health,ASCH,Third Party Payments,ECA,11/09/2012,06-11099,434.8,Clumber Court,,,,,,,,,,,
Nottinghamshire County Council,1111/1001,Adult Social Care and Health,ASCH,Third Party Payments,ECA,11/09/2012,06-11100,434.8,Clumber Court,,,,,,,,,,,
Nottinghamshire County Council,1111/1001,Adult Social Care and Health,ASCH,Third Party Payments,ECA,11/09/2012,06-11104,598.4,Clumber Court,,,,,,,,,,,
Nottinghamshire County Council,1111/1001,Adult Social Care and Health,ASCH,Third Party Payments,ECA,11/09/2012,06-11105,434.8,Clumber Court,,,,,,,,,,,
Nottinghamshire County Council,1111/1001,Adult Social Care and Health,ASCH,Third Party Payments,ECA,11/09/2012,06-11106,598.4,Clumber Court,,,,,,,,,,,
Nottinghamshire County Council,1111/1001,Adult Social Care and Health,ASCH,Third Party Payments,ECA,11/09/2012,06-11107,434.8,Clumber Court,,,,,,,,,,,
Nottinghamshire County Council,1111/1001,Adult Social Care and Health,ASCH,Third Party Payments,ECA,11/09/2012,06-11108,1770.25,Clumber Court,,,,,,,,,,,
Nottinghamshire County Council,1111/1001,Adult Social Care and Health,ASCH,Third Party Payments,ECA,11/09/2012,06-11110,434.8,Clumber Court,,,,,,,,,,,
Nottinghamshire County Council,1111/1001,Adult Social Care and Health,ASCH,Third Party Payments,ECA,11/09/2012,06-11113,434.8,Landermeads Nursing Home,,,,,,,,,,,
Nottinghamshire County Council,1111/1001,Adult Social Care and Health,ASCH,Third Party Payments,ECA,11/09/2012,06-11114,714.31,Landermeads Nursing Home,,,,,,,,,,,
Nottinghamshire County Council,1111/1001,Adult Social Care and Health,ASCH,Third Party Payments,ECA,11/09/2012,06-11116,434.8,Landermeads Nursing Home,,,,,,,,,,,
Nottinghamshire County Council,1111/1001,Adult Social Care and Health,ASCH,Third Party Payments,ECA,11/09/2012,06-11117,434.8,Landermeads Nursing Home,,,,,,,,,,,
Nottinghamshire County Council,1111/1001,Adult Social Care and Health,ASCH,Third Party Payments,ECA,11/09/2012,06-11118,434.8,Landermeads Nursing Home,,,,,,,,,,,
Nottinghamshire County Council,1111/1001,Adult Social Care and Health,ASCH,Third Party Payments,ECA,11/09/2012,06-11119,434.8,Landermeads Nursing Home,,,,,,,,,,,
Nottinghamshire County Council,1111/1001,Adult Social Care and Health,ASCH,Third Party Payments,ECA,11/09/2012,06-11120,434.8,Landermeads Nursing Home,,,,,,,,,,,
Nottinghamshire County Council,1111/1001,Adult Social Care and Health,ASCH,Third Party Payments,ECA,11/09/2012,06-11121,434.8,Landermeads Nursing Home,,,,,,,,,,,
Nottinghamshire County Council,1111/1001,Adult Social Care and Health,ASCH,Third Party Payments,ECA,11/09/2012,06-11122,598.4,Landermeads Nursing Home,,,,,,,,,,,
Nottinghamshire County Council,1111/1001,Adult Social Care and Health,ASCH,Third Party Payments,ECA,11/09/2012,06-11123,598.4,Landermeads Nursing Home,,,,,,,,,,,
Nottinghamshire County Council,1111/1001,Adult Social Care and Health,ASCH,Third Party Payments,ECA,11/09/2012,06-11125,434.8,Landermeads Nursing Home,,,,,,,,,,,
Nottinghamshire County Council,1111/1001,Adult Social Care and Health,ASCH,Third Party Payments,ECA,11/09/2012,06-11126,434.8,Landermeads Nursing Home,,,,,,,,,,,
Nottinghamshire County Council,1111/1001,Adult Social Care and Health,ASCH,Third Party Payments,ECA,11/09/2012,06-11128,434.8,Landermeads Nursing Home,,,,,,,,,,,
Nottinghamshire County Council,1111/1001,Adult Social Care and Health,ASCH,Third Party Payments,ECA,11/09/2012,06-11129,434.8,Landermeads Nursing Home,,,,,,,,,,,
Nottinghamshire County Council,1111/1001,Adult Social Care and Health,ASCH,Third Party Payments,ECA,11/09/2012,06-11130,962.77,Landermeads Nursing Home,,,,,,,,,,,
Nottinghamshire County Council,1111/1001,Adult Social Care and Health,ASCH,Third Party Payments,ECA,11/09/2012,06-11131,434.8,Landermeads Nursing Home,,,,,,,,,,,
Nottinghamshire County Council,1111/1001,Adult Social Care and Health,ASCH,Third Party Payments,ECA,11/09/2012,06-11133,434.8,Landermeads Nursing Home,,,,,,,,,,,
Nottinghamshire County Council,1111/1001,Adult Social Care and Health,ASCH,Third Party Payments,ECA,11/09/2012,06-11136,434.8,Landermeads Nursing Home,,,,,,,,,,,
Nottinghamshire County Council,1111/1001,Adult Social Care and Health,ASCH,Third Party Payments,ECA,11/09/2012,06-11137,854.07,Landermeads Nursing Home,,,,,,,,,,,
Nottinghamshire County Council,1111/1001,Adult Social Care and Health,ASCH,Third Party Payments,ECA,11/09/2012,06-11138,434.8,Landermeads Nursing Home,,,,,,,,,,,
Nottinghamshire County Council,1111/1001,Adult Social Care and Health,ASCH,Third Party Payments,ECA,11/09/2012,06-11139,434.8,Landermeads Nursing Home,,,,,,,,,,,
Nottinghamshire County Council,1111/1001,Adult Social Care and Health,ASCH,Third Party Payments,ECA,11/09/2012,06-11140,434.8,Landermeads Nursing Home,,,,,,,,,,,
Nottinghamshire County Council,1111/1001,Adult Social Care and Health,ASCH,Third Party Payments,ECA,11/09/2012,06-11141,434.8,Landermeads Nursing Home,,,,,,,,,,,
Nottinghamshire County Council,1111/1001,Adult Social Care and Health,ASCH,Third Party Payments,ECA,11/09/2012,06-11186,434.8,Highfields Nursing Home,,,,,,,,,,,
Nottinghamshire County Council,1111/1001,Adult Social Care and Health,ASCH,Third Party Payments,ECA,11/09/2012,06-11188,434.8,Highfields Nursing Home,,,,,,,,,,,
Nottinghamshire County Council,1111/1001,Adult Social Care and Health,ASCH,Third Party Payments,ECA,11/09/2012,06-11189,434.8,Highfields Nursing Home,,,,,,,,,,,
Nottinghamshire County Council,1111/1001,Adult Social Care and Health,ASCH,Third Party Payments,ECA,11/09/2012,06-11190,434.8,Highfields Nursing Home,,,,,,,,,,,
Nottinghamshire County Council,1111/1001,Adult Social Care and Health,ASCH,Third Party Payments,ECA,11/09/2012,06-11191,434.8,Highfields Nursing Home,,,,,,,,,,,
Nottinghamshire County Council,1111/1001,Adult Social Care and Health,ASCH,Third Party Payments,ECA,11/09/2012,06-11192,434.8,Highfields Nursing Home,,,,,,,,,,,
Nottinghamshire County Council,1111/1001,Adult Social Care and Health,ASCH,Third Party Payments,ECA,11/09/2012,06-11193,434.8,Highfields Nursing Home,,,,,,,,,,,
Nottinghamshire County Council,1111/1001,Adult Social Care and Health,ASCH,Third Party Payments,ECA,11/09/2012,06-11208,1599.44,Albemarle Hall Nursing Home,,,,,,,,,,,
Nottinghamshire County Council,1111/1001,Adult Social Care and Health,ASCH,Third Party Payments,ECA,11/09/2012,06-11209,434.8,Albemarle Hall Nursing Home,,,,,,,,,,,
Nottinghamshire County Council,1111/1001,Adult Social Care and Health,ASCH,Third Party Payments,ECA,11/09/2012,06-11213,434.8,Alexandra House Nursing Home,,,,,,,,,,,
Nottinghamshire County Council,1111/1001,Adult Social Care and Health,ASCH,Third Party Payments,ECA,11/09/2012,06-11214,434.8,Alexandra House Nursing Home,,,,,,,,,,,
Nottinghamshire County Council,1111/1001,Adult Social Care and Health,ASCH,Third Party Payments,ECA,11/09/2012,06-11215,434.8,Alexandra House Nursing Home,,,,,,,,,,,
Nottinghamshire County Council,1111/1001,Adult Social Care and Health,ASCH,Third Party Payments,ECA,11/09/2012,06-11217,434.8,Alexandra House Nursing Home,,,,,,,,,,,
Nottinghamshire County Council,1111/1001,Adult Social Care and Health,ASCH,Third Party Payments,ECA,11/09/2012,06-11218,434.8,Alexandra House Nursing Home,,,,,,,,,,,
Nottinghamshire County Council,1111/1001,Adult Social Care and Health,ASCH,Third Party Payments,ECA,11/09/2012,06-11219,434.8,Alexandra House Nursing Home,,,,,,,,,,,
Nottinghamshire County Council,1111/1001,Adult Social Care and Health,ASCH,Third Party Payments,ECA,11/09/2012,06-11221,434.8,Alexandra House Nursing Home,,,,,,,,,,,
Nottinghamshire County Council,1111/1001,Adult Social Care and Health,ASCH,Third Party Payments,ECA,11/09/2012,06-11222,434.8,Alexandra House Nursing Home,,,,,,,,,,,
Nottinghamshire County Council,1111/1001,Adult Social Care and Health,ASCH,Third Party Payments,ECA,11/09/2012,06-11223,434.8,Alexandra House Nursing Home,,,,,,,,,,,
Nottinghamshire County Council,1111/1001,Adult Social Care and Health,ASCH,Third Party Payments,ECA,11/09/2012,06-11227,434.8,Lawn Park Nursing Home,,,,,,,,,,,
Nottinghamshire County Council,1111/1001,Adult Social Care and Health,ASCH,Third Party Payments,ECA,11/09/2012,06-11228,434.8,Lawn Park Nursing Home,,,,,,,,,,,
Nottinghamshire County Council,1111/1001,Adult Social Care and Health,ASCH,Third Party Payments,ECA,11/09/2012,06-11230,434.8,Lawn Park Nursing Home,,,,,,,,,,,
Nottinghamshire County Council,1111/1001,Adult Social Care and Health,ASCH,Third Party Payments,ECA,11/09/2012,06-11231,434.8,Lawn Park Nursing Home,,,,,,,,,,,
Nottinghamshire County Council,1111/1001,Adult Social Care and Health,ASCH,Third Party Payments,ECA,11/09/2012,06-11234,434.8,Lawn Park Nursing Home,,,,,,,,,,,
Nottinghamshire County Council,1111/1001,Adult Social Care and Health,ASCH,Third Party Payments,ECA,11/09/2012,06-11235,434.8,Lawn Park Nursing Home,,,,,,,,,,,
Nottinghamshire County Council,1111/1001,Adult Social Care and Health,ASCH,Third Party Payments,ECA,11/09/2012,06-11236,434.8,Lawn Park Nursing Home,,,,,,,,,,,
Nottinghamshire County Council,1111/1001,Adult Social Care and Health,ASCH,Third Party Payments,ECA,11/09/2012,06-11242,434.8,Lawn Park Nursing Home,,,,,,,,,,,
Nottinghamshire County Council,1111/1001,Adult Social Care and Health,ASCH,Third Party Payments,ECA,11/09/2012,06-11243,434.8,Lawn Park Nursing Home,,,,,,,,,,,
Nottinghamshire County Council,1111/1001,Adult Social Care and Health,ASCH,Third Party Payments,ECA,11/09/2012,06-11244,434.8,Lawn Park Nursing Home,,,,,,,,,,,
Nottinghamshire County Council,1111/1001,Adult Social Care and Health,ASCH,Third Party Payments,ECA,11/09/2012,06-11245,434.8,Lawn Park Nursing Home,,,,,,,,,,,
Nottinghamshire County Council,1111/1001,Adult Social Care and Health,ASCH,Third Party Payments,ECA,11/09/2012,06-11246,434.8,Lawn Park Nursing Home,,,,,,,,,,,
Nottinghamshire County Council,1111/1001,Adult Social Care and Health,ASCH,Third Party Payments,ECA,11/09/2012,06-11248,434.8,Lawn Park Nursing Home,,,,,,,,,,,
Nottinghamshire County Council,1111/1001,Adult Social Care and Health,ASCH,Third Party Payments,ECA,11/09/2012,06-11251,434.8,Lawn Park Nursing Home,,,,,,,,,,,
Nottinghamshire County Council,1111/1001,Adult Social Care and Health,ASCH,Third Party Payments,ECA,11/09/2012,06-11256,434.8,Eliot House,,,,,,,,,,,
Nottinghamshire County Council,1111/1001,Adult Social Care and Health,ASCH,Third Party Payments,ECA,11/09/2012,06-11257,446.28,Eliot House,,,,,,,,,,,
Nottinghamshire County Council,1111/1001,Adult Social Care and Health,ASCH,Third Party Payments,ECA,11/09/2012,06-11258,434.8,Eliot House,,,,,,,,,,,
Nottinghamshire County Council,1111/1001,Adult Social Care and Health,ASCH,Third Party Payments,ECA,11/09/2012,06-11263,434.8,Bluebell Lodge,,,,,,,,,,,
Nottinghamshire County Council,1111/1001,Adult Social Care and Health,ASCH,Third Party Payments,ECA,11/09/2012,06-11301,434.8,Ashley House Nursing Home,,,,,,,,,,,
Nottinghamshire County Council,1111/1001,Adult Social Care and Health,ASCH,Third Party Payments,ECA,11/09/2012,06-11302,434.8,Ashley House Nursing Home,,,,,,,,,,,
Nottinghamshire County Council,1111/1001,Adult Social Care and Health,ASCH,Third Party Payments,ECA,11/09/2012,06-11303,598.4,Ashley House Nursing Home,,,,,,,,,,,
Nottinghamshire County Council,1111/1001,Adult Social Care and Health,ASCH,Third Party Payments,ECA,11/09/2012,06-11304,434.8,Ashley House Nursing Home,,,,,,,,,,,
Nottinghamshire County Council,1111/1001,Adult Social Care and Health,ASCH,Third Party Payments,ECA,11/09/2012,06-11305,434.8,Ashley House Nursing Home,,,,,,,,,,,
Nottinghamshire County Council,1111/1001,Adult Social Care and Health,ASCH,Third Party Payments,ECA,11/09/2012,06-11306,434.8,Ashley House Nursing Home,,,,,,,,,,,
Nottinghamshire County Council,1111/1001,Adult Social Care and Health,ASCH,Third Party Payments,ECA,11/09/2012,06-11308,434.8,Ashley House Nursing Home,,,,,,,,,,,
Nottinghamshire County Council,1111/1001,Adult Social Care and Health,ASCH,Third Party Payments,ECA,11/09/2012,06-11309,598.4,Ashley House Nursing Home,,,,,,,,,,,
Nottinghamshire County Council,1111/1001,Adult Social Care and Health,ASCH,Third Party Payments,ECA,11/09/2012,06-11310,598.4,Ashley House Nursing Home,,,,,,,,,,,
Nottinghamshire County Council,1111/1001,Adult Social Care and Health,ASCH,Third Party Payments,ECA,11/09/2012,06-11311,434.8,Ashley House Nursing Home,,,,,,,,,,,
Nottinghamshire County Council,1111/1001,Adult Social Care and Health,ASCH,Third Party Payments,ECA,11/09/2012,06-11312,434.8,Ashley House Nursing Home,,,,,,,,,,,
Nottinghamshire County Council,1111/1001,Adult Social Care and Health,ASCH,Third Party Payments,ECA,11/09/2012,06-11313,434.8,Ashley House Nursing Home,,,,,,,,,,,
Nottinghamshire County Council,1111/1001,Adult Social Care and Health,ASCH,Third Party Payments,ECA,11/09/2012,06-11314,434.8,Ashley House Nursing Home,,,,,,,,,,,
Nottinghamshire County Council,1111/1001,Adult Social Care and Health,ASCH,Third Party Payments,ECA,11/09/2012,06-11315,1040.41,Ashley House Nursing Home,,,,,,,,,,,
Nottinghamshire County Council,1111/1001,Adult Social Care and Health,ASCH,Third Party Payments,ECA,11/09/2012,06-11316,434.8,Ashley House Nursing Home,,,,,,,,,,,
Nottinghamshire County Council,1111/1001,Adult Social Care and Health,ASCH,Third Party Payments,ECA,11/09/2012,06-11317,598.4,Ashley House Nursing Home,,,,,,,,,,,
Nottinghamshire County Council,1111/1001,Adult Social Care and Health,ASCH,Third Party Payments,ECA,11/09/2012,06-11318,434.8,Ashley House Nursing Home,,,,,,,,,,,
Nottinghamshire County Council,1111/1001,Adult Social Care and Health,ASCH,Third Party Payments,ECA,11/09/2012,06-11320,434.8,Aslockton Hall Nursing Home,,,,,,,,,,,
Nottinghamshire County Council,1111/1001,Adult Social Care and Health,ASCH,Third Party Payments,ECA,11/09/2012,06-11321,434.8,Aslockton Hall Nursing Home,,,,,,,,,,,
Nottinghamshire County Council,1111/1001,Adult Social Care and Health,ASCH,Third Party Payments,ECA,11/09/2012,06-11322,434.8,Aslockton Hall Nursing Home,,,,,,,,,,,
Nottinghamshire County Council,1111/1001,Adult Social Care and Health,ASCH,Third Party Payments,ECA,11/09/2012,06-11323,434.8,Aslockton Hall Nursing Home,,,,,,,,,,,
Nottinghamshire County Council,1111/1001,Adult Social Care and Health,ASCH,Third Party Payments,ECA,11/09/2012,06-11324,760.9,Aslockton Hall Nursing Home,,,,,,,,,,,
Nottinghamshire County Council,1111/1001,Adult Social Care and Health,ASCH,Third Party Payments,ECA,11/09/2012,06-11325,434.8,Aslockton Hall Nursing Home,,,,,,,,,,,
Nottinghamshire County Council,1111/1001,Adult Social Care and Health,ASCH,Third Party Payments,ECA,11/09/2012,06-11328,434.8,Aslockton Hall Nursing Home,,,,,,,,,,,
Nottinghamshire County Council,1111/1001,Adult Social Care and Health,ASCH,Third Party Payments,ECA,11/09/2012,06-11329,598.4,Aslockton Hall Nursing Home,,,,,,,,,,,
Nottinghamshire County Council,1111/1001,Adult Social Care and Health,ASCH,Third Party Payments,ECA,11/09/2012,06-11349,434.8,Pinxton Manor,,,,,,,,,,,
Nottinghamshire County Council,1111/1001,Adult Social Care and Health,ASCH,Third Party Payments,ECA,11/09/2012,06-11350,434.8,Parker House,,,,,,,,,,,
Nottinghamshire County Council,1111/1001,Adult Social Care and Health,ASCH,Third Party Payments,ECA,11/09/2012,06-11351,434.8,Parker House,,,,,,,,,,,
Nottinghamshire County Council,1111/1001,Adult Social Care and Health,ASCH,Third Party Payments,ECA,11/09/2012,06-11352,434.8,Parker House,,,,,,,,,,,
Nottinghamshire County Council,1111/1001,Adult Social Care and Health,ASCH,Third Party Payments,ECA,11/09/2012,06-11353,434.8,Parker House,,,,,,,,,,,
Nottinghamshire County Council,1111/1001,Adult Social Care and Health,ASCH,Third Party Payments,ECA,11/09/2012,06-11354,434.8,Parker House,,,,,,,,,,,
Nottinghamshire County Council,1111/1001,Adult Social Care and Health,ASCH,Third Party Payments,ECA,11/09/2012,06-11356,434.8,Parker House,,,,,,,,,,,
Nottinghamshire County Council,1111/1001,Adult Social Care and Health,ASCH,Third Party Payments,ECA,11/09/2012,06-11357,434.8,Parker House,,,,,,,,,,,
Nottinghamshire County Council,1111/1001,Adult Social Care and Health,ASCH,Third Party Payments,ECA,11/09/2012,06-11358,434.8,Parker House,,,,,,,,,,,
Nottinghamshire County Council,1111/1001,Adult Social Care and Health,ASCH,Third Party Payments,ECA,11/09/2012,06-11360,434.8,Parker House,,,,,,,,,,,
Nottinghamshire County Council,1111/1001,Adult Social Care and Health,ASCH,Third Party Payments,ECA,11/09/2012,06-11361,434.8,Gables Nursing Home,,,,,,,,,,,
Nottinghamshire County Council,1111/1001,Adult Social Care and Health,ASCH,Third Party Payments,ECA,11/09/2012,06-11362,598.4,Gables Nursing Home,,,,,,,,,,,
Nottinghamshire County Council,1111/1001,Adult Social Care and Health,ASCH,Third Party Payments,ECA,11/09/2012,06-11363,434.8,Gables Nursing Home,,,,,,,,,,,
Nottinghamshire County Council,1111/1001,Adult Social Care and Health,ASCH,Third Party Payments,ECA,11/09/2012,06-11364,434.8,Gables Nursing Home,,,,,,,,,,,
Nottinghamshire County Council,1111/1001,Adult Social Care and Health,ASCH,Third Party Payments,ECA,11/09/2012,06-11365,434.8,Gables Nursing Home,,,,,,,,,,,
Nottinghamshire County Council,1111/1001,Adult Social Care and Health,ASCH,Third Party Payments,ECA,11/09/2012,06-11366,434.8,Gables Nursing Home,,,,,,,,,,,
Nottinghamshire County Council,1111/1001,Adult Social Care and Health,ASCH,Third Party Payments,ECA,11/09/2012,06-11367,434.8,Gables Nursing Home,,,,,,,,,,,
Nottinghamshire County Council,1111/1001,Adult Social Care and Health,ASCH,Third Party Payments,ECA,11/09/2012,06-11368,434.8,Gables Nursing Home,,,,,,,,,,,
Nottinghamshire County Council,1111/1001,Adult Social Care and Health,ASCH,Third Party Payments,ECA,11/09/2012,06-11369,598.4,Gables Nursing Home,,,,,,,,,,,
Nottinghamshire County Council,1111/1001,Adult Social Care and Health,ASCH,Third Party Payments,ECA,11/09/2012,06-11370,434.8,Gables Nursing Home,,,,,,,,,,,
Nottinghamshire County Council,1111/1001,Adult Social Care and Health,ASCH,Third Party Payments,ECA,11/09/2012,06-11394,434.8,Forest Hill Nursing Home,,,,,,,,,,,
Nottinghamshire County Council,1111/1001,Adult Social Care and Health,ASCH,Third Party Payments,ECA,11/09/2012,06-11395,434.8,Forest Hill Nursing Home,,,,,,,,,,,
Nottinghamshire County Council,1111/1001,Adult Social Care and Health,ASCH,Third Party Payments,ECA,11/09/2012,06-11396,434.8,Forest Hill Nursing Home,,,,,,,,,,,
Nottinghamshire County Council,1111/1001,Adult Social Care and Health,ASCH,Third Party Payments,ECA,11/09/2012,06-11397,-1382.04,Forest Hill Nursing Home,,,,,,,,,,,
Nottinghamshire County Council,1111/1001,Adult Social Care and Health,ASCH,Third Party Payments,ECA,11/09/2012,06-11398,434.8,Forest Hill Nursing Home,,,,,,,,,,,
Nottinghamshire County Council,1111/1001,Adult Social Care and Health,ASCH,Third Party Payments,ECA,11/09/2012,06-11399,434.8,Forest Hill Nursing Home,,,,,,,,,,,
Nottinghamshire County Council,1111/1001,Adult Social Care and Health,ASCH,Third Party Payments,ECA,11/09/2012,06-11400,434.8,Forest Hill Nursing Home,,,,,,,,,,,
Nottinghamshire County Council,1111/1001,Adult Social Care and Health,ASCH,Third Party Payments,ECA,11/09/2012,06-11401,434.8,Forest Hill Nursing Home,,,,,,,,,,,
Nottinghamshire County Council,1111/1001,Adult Social Care and Health,ASCH,Third Party Payments,ECA,11/09/2012,06-11402,543.5,Forest Hill Nursing Home,,,,,,,,,,,
Nottinghamshire County Council,1111/1001,Adult Social Care and Health,ASCH,Third Party Payments,ECA,11/09/2012,06-11403,434.8,Forest Hill Nursing Home,,,,,,,,,,,
Nottinghamshire County Council,1111/1001,Adult Social Care and Health,ASCH,Third Party Payments,ECA,11/09/2012,06-11404,434.8,Forest Hill Nursing Home,,,,,,,,,,,
Nottinghamshire County Council,1111/1001,Adult Social Care and Health,ASCH,Third Party Payments,ECA,11/09/2012,06-11405,434.8,Forest Hill Nursing Home,,,,,,,,,,,
Nottinghamshire County Council,1111/1001,Adult Social Care and Health,ASCH,Third Party Payments,ECA,11/09/2012,06-11406,434.8,Forest Hill Nursing Home,,,,,,,,,,,
Nottinghamshire County Council,1111/1001,Adult Social Care and Health,ASCH,Third Party Payments,ECA,11/09/2012,06-11407,434.8,Forest Hill Nursing Home,,,,,,,,,,,
Nottinghamshire County Council,1111/1001,Adult Social Care and Health,ASCH,Third Party Payments,ECA,11/09/2012,06-11408,598.4,Forest Hill Nursing Home,,,,,,,,,,,
Nottinghamshire County Council,1111/1001,Adult Social Care and Health,ASCH,Third Party Payments,ECA,11/09/2012,06-11409,434.8,Forest Hill Nursing Home,,,,,,,,,,,
Nottinghamshire County Council,1111/1001,Adult Social Care and Health,ASCH,Third Party Payments,ECA,11/09/2012,06-11410,434.8,Forest Hill Nursing Home,,,,,,,,,,,
Nottinghamshire County Council,1111/1001,Adult Social Care and Health,ASCH,Third Party Payments,ECA,11/09/2012,06-11411,434.8,Forest Hill Nursing Home,,,,,,,,,,,
Nottinghamshire County Council,1111/1001,Adult Social Care and Health,ASCH,Third Party Payments,ECA,11/09/2012,06-11412,869.6,Woodhall Park Nursing Home,,,,,,,,,,,
Nottinghamshire County Council,1111/1001,Adult Social Care and Health,ASCH,Third Party Payments,ECA,11/09/2012,06-11413,869.6,Woodhall Park Nursing Home,,,,,,,,,,,
Nottinghamshire County Council,1111/1001,Adult Social Care and Health,ASCH,Third Party Payments,ECA,11/09/2012,06-11414,434.8,Woodthorpe Manor Nursing Home,,,,,,,,,,,
Nottinghamshire County Council,1111/1001,Adult Social Care and Health,ASCH,Third Party Payments,ECA,11/09/2012,06-11415,434.8,Woodthorpe Manor Nursing Home,,,,,,,,,,,
Nottinghamshire County Council,1111/1001,Adult Social Care and Health,ASCH,Third Party Payments,ECA,11/09/2012,06-11416,434.8,Woodthorpe Manor Nursing Home,,,,,,,,,,,
Nottinghamshire County Council,1111/1001,Adult Social Care and Health,ASCH,Third Party Payments,ECA,11/09/2012,06-11417,434.8,Woodthorpe Manor Nursing Home,,,,,,,,,,,
Nottinghamshire County Council,1111/1001,Adult Social Care and Health,ASCH,Third Party Payments,ECA,11/09/2012,06-11418,434.8,Woodthorpe Manor Nursing Home,,,,,,,,,,,
Nottinghamshire County Council,1111/1001,Adult Social Care and Health,ASCH,Third Party Payments,ECA,11/09/2012,06-11419,590.09,Woodthorpe Manor Nursing Home,,,,,,,,,,,
Nottinghamshire County Council,1111/1001,Adult Social Care and Health,ASCH,Third Party Payments,ECA,11/09/2012,06-11420,434.8,Woodthorpe Manor Nursing Home,,,,,,,,,,,
Nottinghamshire County Council,1111/1001,Adult Social Care and Health,ASCH,Third Party Payments,ECA,11/09/2012,06-11435,434.8,The Moorlands Nursing Home,,,,,,,,,,,
Nottinghamshire County Council,1111/1001,Adult Social Care and Health,ASCH,Third Party Payments,ECA,11/09/2012,06-11436,2391.4,The Moorlands Nursing Home,,,,,,,,,,,
Nottinghamshire County Council,1111/1001,Adult Social Care and Health,ASCH,Third Party Payments,ECA,11/09/2012,06-11437,434.8,The Moorlands Nursing Home,,,,,,,,,,,
Nottinghamshire County Council,1111/1001,Adult Social Care and Health,ASCH,Third Party Payments,ECA,11/09/2012,06-11438,434.8,The Moorlands Nursing Home,,,,,,,,,,,
Nottinghamshire County Council,1111/1001,Adult Social Care and Health,ASCH,Third Party Payments,ECA,11/09/2012,06-11443,434.8,The Moorlands Nursing Home,,,,,,,,,,,
Nottinghamshire County Council,1111/1001,Adult Social Care and Health,ASCH,Third Party Payments,ECA,11/09/2012,06-11447,434.8,The Moorlands Nursing Home,,,,,,,,,,,
Nottinghamshire County Council,1111/1001,Adult Social Care and Health,ASCH,Third Party Payments,ECA,11/09/2012,06-11449,434.8,The Moorlands Nursing Home,,,,,,,,,,,
Nottinghamshire County Council,1111/1001,Adult Social Care and Health,ASCH,Third Party Payments,ECA,11/09/2012,06-11450,434.8,Burkitt Care Home,,,,,,,,,,,
Nottinghamshire County Council,1111/1001,Adult Social Care and Health,ASCH,Third Party Payments,ECA,11/09/2012,06-11451,434.8,Burkitt Care Home,,,,,,,,,,,
Nottinghamshire County Council,1111/1001,Adult Social Care and Health,ASCH,Third Party Payments,ECA,11/09/2012,06-11453,434.8,Burkitt Care Home,,,,,,,,,,,
Nottinghamshire County Council,1111/1001,Adult Social Care and Health,ASCH,Third Party Payments,ECA,11/09/2012,06-11454,434.8,Burkitt Care Home,,,,,,,,,,,
Nottinghamshire County Council,1111/1001,Adult Social Care and Health,ASCH,Third Party Payments,ECA,11/09/2012,06-11455,434.8,Burkitt Care Home,,,,,,,,,,,
Nottinghamshire County Council,1111/1001,Adult Social Care and Health,ASCH,Third Party Payments,ECA,11/09/2012,06-11456,434.8,Burkitt Care Home,,,,,,,,,,,
Nottinghamshire County Council,1111/1001,Adult Social Care and Health,ASCH,Third Party Payments,ECA,11/09/2012,06-11457,434.8,Burkitt Care Home,,,,,,,,,,,
Nottinghamshire County Council,1111/1001,Adult Social Care and Health,ASCH,Third Party Payments,ECA,11/09/2012,06-11459,434.8,Burkitt Care Home,,,,,,,,,,,
Nottinghamshire County Council,1111/1001,Adult Social Care and Health,ASCH,Third Party Payments,ECA,11/09/2012,06-11460,434.8,Burkitt Care Home,,,,,,,,,,,
Nottinghamshire County Council,1111/1001,Adult Social Care and Health,ASCH,Third Party Payments,ECA,11/09/2012,06-11461,434.8,Burkitt Care Home,,,,,,,,,,,
Nottinghamshire County Council,1111/1001,Adult Social Care and Health,ASCH,Third Party Payments,ECA,11/09/2012,06-11464,434.8,Burkitt Care Home,,,,,,,,,,,
Nottinghamshire County Council,1111/1001,Adult Social Care and Health,ASCH,Third Party Payments,ECA,11/09/2012,06-11482,434.8,Church Farm Nursing Home Ltd,,,,,,,,,,,
Nottinghamshire County Council,1111/1001,Adult Social Care and Health,ASCH,Third Party Payments,ECA,11/09/2012,06-11483,434.8,Church Farm Nursing Home Ltd,,,,,,,,,,,
Nottinghamshire County Council,1111/1001,Adult Social Care and Health,ASCH,Third Party Payments,ECA,11/09/2012,06-11484,434.8,Church Farm Nursing Home Ltd,,,,,,,,,,,
Nottinghamshire County Council,1111/1001,Adult Social Care and Health,ASCH,Third Party Payments,ECA,11/09/2012,06-11485,434.8,Church Farm Nursing Home Ltd,,,,,,,,,,,
Nottinghamshire County Council,1111/1001,Adult Social Care and Health,ASCH,Third Party Payments,ECA,11/09/2012,06-11486,434.8,Church Farm Nursing Home Ltd,,,,,,,,,,,
Nottinghamshire County Council,1111/1001,Adult Social Care and Health,ASCH,Third Party Payments,ECA,11/09/2012,06-11487,434.8,Church Farm Nursing Home Ltd,,,,,,,,,,,
Nottinghamshire County Council,1111/1001,Adult Social Care and Health,ASCH,Third Party Payments,ECA,11/09/2012,06-11488,434.8,Church Farm Nursing Home Ltd,,,,,,,,,,,
Nottinghamshire County Council,1111/1001,Adult Social Care and Health,ASCH,Third Party Payments,ECA,11/09/2012,06-11489,434.8,Church Farm Nursing Home Ltd,,,,,,,,,,,
Nottinghamshire County Council,1111/1001,Adult Social Care and Health,ASCH,Third Party Payments,ECA,11/09/2012,06-11491,1024.89,Church Farm Nursing Home Ltd,,,,,,,,,,,
Nottinghamshire County Council,1111/1001,Adult Social Care and Health,ASCH,Third Party Payments,ECA,11/09/2012,06-11492,434.8,Church Farm Nursing Home Ltd,,,,,,,,,,,
Nottinghamshire County Council,1111/1001,Adult Social Care and Health,ASCH,Third Party Payments,ECA,11/09/2012,06-11493,434.8,Church Farm Nursing Home Ltd,,,,,,,,,,,
Nottinghamshire County Council,1111/1001,Adult Social Care and Health,ASCH,Third Party Payments,ECA,11/09/2012,06-11496,598.4,Gables Care Homes Limited,,,,,,,,,,,
Nottinghamshire County Council,1111/1001,Adult Social Care and Health,ASCH,Third Party Payments,ECA,11/09/2012,06-11497,-2607.32,Gables Care Homes Limited,,,,,,,,,,,
Nottinghamshire County Council,1111/1001,Adult Social Care and Health,ASCH,Third Party Payments,ECA,11/09/2012,06-11499,434.8,Countrywide Care Homes Ltd T/A Gate,,,,,,,,,,,
Nottinghamshire County Council,1111/1001,Adult Social Care and Health,ASCH,Third Party Payments,ECA,11/09/2012,06-11504,598.4,Countrywide Care Homes Ltd T/A Gate,,,,,,,,,,,
Nottinghamshire County Council,1111/1001,Adult Social Care and Health,ASCH,Third Party Payments,ECA,11/09/2012,06-11505,434.8,Countrywide Care Homes Ltd T/A Gate,,,,,,,,,,,
Nottinghamshire County Council,1111/1001,Adult Social Care and Health,ASCH,Third Party Payments,ECA,11/09/2012,06-11507,434.8,Countrywide Care Homes Ltd T/A Gate,,,,,,,,,,,
Nottinghamshire County Council,1111/1001,Adult Social Care and Health,ASCH,Third Party Payments,ECA,11/09/2012,06-11508,434.8,Countrywide Care Homes Ltd T/A Gate,,,,,,,,,,,
Nottinghamshire County Council,1111/1001,Adult Social Care and Health,ASCH,Third Party Payments,ECA,11/09/2012,06-11512,434.8,Countrywide Care Homes Ltd T/A Gate,,,,,,,,,,,
Nottinghamshire County Council,1111/1001,Adult Social Care and Health,ASCH,Third Party Payments,ECA,11/09/2012,06-11514,434.8,Countrywide Care Homes Ltd T/A Gate,,,,,,,,,,,
Nottinghamshire County Council,1111/1001,Adult Social Care and Health,ASCH,Third Party Payments,ECA,11/09/2012,06-11515,598.4,Countrywide Care Homes Ltd T/A Gate,,,,,,,,,,,
Nottinghamshire County Council,1111/1001,Adult Social Care and Health,ASCH,Third Party Payments,ECA,11/09/2012,06-11516,434.8,Countrywide Care Homes Ltd T/A Gate,,,,,,,,,,,
Nottinghamshire County Council,1111/1001,Adult Social Care and Health,ASCH,Third Party Payments,ECA,11/09/2012,06-11518,598.4,Countrywide Care Homes Ltd T/A Gate,,,,,,,,,,,
Nottinghamshire County Council,1111/1001,Adult Social Care and Health,ASCH,Third Party Payments,ECA,11/09/2012,06-11521,434.8,Countrywide Care Homes Ltd T/A Gate,,,,,,,,,,,
Nottinghamshire County Council,1111/1001,Adult Social Care and Health,ASCH,Third Party Payments,ECA,11/09/2012,06-11524,434.8,Countrywide Care Homes Ltd T/A Gate,,,,,,,,,,,
Nottinghamshire County Council,1111/1001,Adult Social Care and Health,ASCH,Third Party Payments,ECA,11/09/2012,06-11526,434.8,Countrywide Care Homes Ltd T/A Gate,,,,,,,,,,,
Nottinghamshire County Council,1111/1001,Adult Social Care and Health,ASCH,Third Party Payments,ECA,11/09/2012,06-11529,434.8,Countrywide Care Homes Ltd T/A Gate,,,,,,,,,,,
Nottinghamshire County Council,1111/1001,Adult Social Care and Health,ASCH,Third Party Payments,ECA,11/09/2012,06-11533,434.8,Countrywide Care Homes Ltd T/A Gate,,,,,,,,,,,
Nottinghamshire County Council,1111/1001,Adult Social Care and Health,ASCH,Third Party Payments,ECA,11/09/2012,06-11535,434.8,Countrywide Care Homes Ltd T/A Gate,,,,,,,,,,,
Nottinghamshire County Council,1111/1001,Adult Social Care and Health,ASCH,Third Party Payments,ECA,11/09/2012,06-11541,2267.17,Red Rose Nursing Home,,,,,,,,,,,
Nottinghamshire County Council,1111/1001,Adult Social Care and Health,ASCH,Third Party Payments,ECA,11/09/2012,06-11544,434.8,Red Rose Nursing Home,,,,,,,,,,,
Nottinghamshire County Council,1111/1001,Adult Social Care and Health,ASCH,Third Party Payments,ECA,11/09/2012,06-11545,434.8,Red Rose Nursing Home,,,,,,,,,,,
Nottinghamshire County Council,1111/1001,Adult Social Care and Health,ASCH,Third Party Payments,ECA,11/09/2012,06-11546,434.8,Red Rose Nursing Home,,,,,,,,,,,
Nottinghamshire County Council,1111/1001,Adult Social Care and Health,ASCH,Third Party Payments,ECA,11/09/2012,06-11547,434.8,Red Rose Nursing Home,,,,,,,,,,,
Nottinghamshire County Council,1111/1001,Adult Social Care and Health,ASCH,Third Party Payments,ECA,11/09/2012,06-11548,434.8,Red Rose Nursing Home,,,,,,,,,,,
Nottinghamshire County Council,1111/1001,Adult Social Care and Health,ASCH,Third Party Payments,ECA,11/09/2012,06-11549,434.8,Red Rose Nursing Home,,,,,,,,,,,
Nottinghamshire County Council,1111/1001,Adult Social Care and Health,ASCH,Third Party Payments,ECA,11/09/2012,06-11550,434.8,Red Rose Nursing Home,,,,,,,,,,,
Nottinghamshire County Council,1111/1001,Adult Social Care and Health,ASCH,Third Party Payments,ECA,11/09/2012,06-11551,434.8,Red Rose Nursing Home,,,,,,,,,,,
Nottinghamshire County Council,1111/1001,Adult Social Care and Health,ASCH,Third Party Payments,ECA,11/09/2012,06-11553,434.8,Red Rose Nursing Home,,,,,,,,,,,
Nottinghamshire County Council,1111/1001,Adult Social Care and Health,ASCH,Third Party Payments,ECA,11/09/2012,06-11554,434.8,Red Rose Nursing Home,,,,,,,,,,,
Nottinghamshire County Council,1111/1001,Adult Social Care and Health,ASCH,Third Party Payments,ECA,11/09/2012,06-11572,108.7,Wren Hall Nursing Home,,,,,,,,,,,
Nottinghamshire County Council,1111/1001,Adult Social Care and Health,ASCH,Third Party Payments,ECA,11/09/2012,06-11573,434.8,Wren Hall Nursing Home,,,,,,,,,,,
Nottinghamshire County Council,1111/1001,Adult Social Care and Health,ASCH,Third Party Payments,ECA,11/09/2012,06-11574,434.8,Wren Hall Nursing Home,,,,,,,,,,,
Nottinghamshire County Council,1111/1001,Adult Social Care and Health,ASCH,Third Party Payments,ECA,11/09/2012,06-11575,434.8,Wren Hall Nursing Home,,,,,,,,,,,
Nottinghamshire County Council,1111/1001,Adult Social Care and Health,ASCH,Third Party Payments,ECA,11/09/2012,06-11576,1087,Wren Hall Nursing Home,,,,,,,,,,,
Nottinghamshire County Council,1111/1001,Adult Social Care and Health,ASCH,Third Party Payments,ECA,11/09/2012,06-11577,434.8,Wren Hall Nursing Home,,,,,,,,,,,
Nottinghamshire County Council,1111/1001,Adult Social Care and Health,ASCH,Third Party Payments,ECA,11/09/2012,06-11578,434.8,Wren Hall Nursing Home,,,,,,,,,,,
Nottinghamshire County Council,1111/1001,Adult Social Care and Health,ASCH,Third Party Payments,ECA,11/09/2012,06-11579,434.8,Wren Hall Nursing Home,,,,,,,,,,,
Nottinghamshire County Council,1111/1001,Adult Social Care and Health,ASCH,Third Party Payments,ECA,11/09/2012,06-11580,434.8,Wren Hall Nursing Home,,,,,,,,,,,
Nottinghamshire County Council,1111/1001,Adult Social Care and Health,ASCH,Third Party Payments,ECA,11/09/2012,06-11581,434.8,Wren Hall Nursing Home,,,,,,,,,,,
Nottinghamshire County Council,1111/1001,Adult Social Care and Health,ASCH,Third Party Payments,ECA,11/09/2012,06-11582,434.8,Wren Hall Nursing Home,,,,,,,,,,,
Nottinghamshire County Council,1111/1001,Adult Social Care and Health,ASCH,Third Party Payments,ECA,11/09/2012,06-11583,434.8,Wren Hall Nursing Home,,,,,,,,,,,
Nottinghamshire County Council,1111/1001,Adult Social Care and Health,ASCH,Third Party Payments,ECA,11/09/2012,06-11617,434.8,Sherwood Grange Care Ltd (In Admins,,,,,,,,,,,
Nottinghamshire County Council,1111/1001,Adult Social Care and Health,ASCH,Third Party Payments,ECA,11/09/2012,06-11618,434.8,Sherwood Grange Care Ltd (In Admins,,,,,,,,,,,
Nottinghamshire County Council,1111/1001,Adult Social Care and Health,ASCH,Third Party Payments,ECA,11/09/2012,06-11619,1925.54,Sherwood Grange Care Ltd (In Admins,,,,,,,,,,,
Nottinghamshire County Council,1111/1001,Adult Social Care and Health,ASCH,Third Party Payments,ECA,11/09/2012,06-11624,434.8,Sherwood Grange Care Ltd (In Admins,,,,,,,,,,,
Nottinghamshire County Council,1111/1001,Adult Social Care and Health,ASCH,Third Party Payments,ECA,11/09/2012,06-11625,326.1,Sherwood Grange Care Ltd (In Admins,,,,,,,,,,,
Nottinghamshire County Council,1111/1001,Adult Social Care and Health,ASCH,Third Party Payments,ECA,11/09/2012,06-11626,434.8,Sherwood Grange Care Ltd (In Admins,,,,,,,,,,,
Nottinghamshire County Council,1111/1001,Adult Social Care and Health,ASCH,Third Party Payments,ECA,11/09/2012,06-11627,108.7,Sherwood Grange Care Ltd (In Admins,,,,,,,,,,,
Nottinghamshire County Council,1111/1001,Adult Social Care and Health,ASCH,Third Party Payments,ECA,11/09/2012,06-11628,434.8,Sherwood Grange Care Ltd (In Admins,,,,,,,,,,,
Nottinghamshire County Council,1111/1001,Adult Social Care and Health,ASCH,Third Party Payments,ECA,11/09/2012,06-11629,434.8,Sherwood Grange Care Ltd (In Admins,,,,,,,,,,,
Nottinghamshire County Council,1111/1001,Adult Social Care and Health,ASCH,Third Party Payments,ECA,11/09/2012,06-11630,434.8,Sherwood Grange Care Ltd (In Admins,,,,,,,,,,,
Nottinghamshire County Council,1111/1001,Adult Social Care and Health,ASCH,Third Party Payments,ECA,11/09/2012,06-11631,434.8,Sherwood Grange Care Ltd (In Admins,,,,,,,,,,,
Nottinghamshire County Council,1111/1001,Adult Social Care and Health,ASCH,Third Party Payments,ECA,11/09/2012,06-11632,434.8,Sherwood Grange Care Ltd (In Admins,,,,,,,,,,,
Nottinghamshire County Council,1111/1001,Adult Social Care and Health,ASCH,Third Party Payments,ECA,11/09/2012,06-11633,434.8,Sherwood Grange Care Ltd (In Admins,,,,,,,,,,,
Nottinghamshire County Council,1111/1001,Adult Social Care and Health,ASCH,Third Party Payments,ECA,11/09/2012,06-11634,434.8,Sherwood Grange Care Ltd (In Admins,,,,,,,,,,,
Nottinghamshire County Council,1111/1001,Adult Social Care and Health,ASCH,Third Party Payments,ECA,11/09/2012,06-11636,434.8,Sherwood Grange Care Ltd (In Admins,,,,,,,,,,,
Nottinghamshire County Council,1111/1001,Adult Social Care and Health,ASCH,Third Party Payments,ECA,11/09/2012,06-11638,434.8,Sherwood Grange Care Ltd (In Admins,,,,,,,,,,,
Nottinghamshire County Council,1111/1001,Adult Social Care and Health,ASCH,Third Party Payments,ECA,11/09/2012,06-11639,434.8,Sherwood Grange Care Ltd (In Admins,,,,,,,,,,,
Nottinghamshire County Council,1111/1001,Adult Social Care and Health,ASCH,Third Party Payments,ECA,11/09/2012,06-11640,434.8,Sherwood Grange Care Ltd (In Admins,,,,,,,,,,,
Nottinghamshire County Council,1111/1001,Adult Social Care and Health,ASCH,Third Party Payments,ECA,11/09/2012,06-11642,434.8,Sherwood Grange Care Ltd (In Admins,,,,,,,,,,,
Nottinghamshire County Council,1111/1001,Adult Social Care and Health,ASCH,Third Party Payments,ECA,11/09/2012,06-11647,434.8,The Grange Nursing Home,,,,,,,,,,,
Nottinghamshire County Council,1111/1001,Adult Social Care and Health,ASCH,Third Party Payments,ECA,11/09/2012,06-11648,598.4,Haddon House,,,,,,,,,,,
Nottinghamshire County Council,1111/1001,Adult Social Care and Health,ASCH,Third Party Payments,ECA,11/09/2012,06-11773,434.8,Hawthorne Nursing Home,,,,,,,,,,,
Nottinghamshire County Council,1111/1001,Adult Social Care and Health,ASCH,Third Party Payments,ECA,11/09/2012,06-11774,434.8,Hawthorne Nursing Home,,,,,,,,,,,
Nottinghamshire County Council,1111/1001,Adult Social Care and Health,ASCH,Third Party Payments,ECA,11/09/2012,06-11775,434.8,Hawthorne Nursing Home,,,,,,,,,,,
Nottinghamshire County Council,1111/1001,Adult Social Care and Health,ASCH,Third Party Payments,ECA,11/09/2012,06-11776,434.8,Hawthorne Nursing Home,,,,,,,,,,,
Nottinghamshire County Council,1111/1001,Adult Social Care and Health,ASCH,Third Party Payments,ECA,11/09/2012,06-11777,598.4,Hawthorne Nursing Home,,,,,,,,,,,
Nottinghamshire County Council,1111/1001,Adult Social Care and Health,ASCH,Third Party Payments,ECA,11/09/2012,06-11778,434.8,Hawthorne Nursing Home,,,,,,,,,,,
Nottinghamshire County Council,1111/1001,Adult Social Care and Health,ASCH,Third Party Payments,ECA,11/09/2012,06-11779,434.8,Hawthorne Nursing Home,,,,,,,,,,,
Nottinghamshire County Council,1111/1001,Adult Social Care and Health,ASCH,Third Party Payments,ECA,11/09/2012,06-11780,434.8,Hawthorne Nursing Home,,,,,,,,,,,
Nottinghamshire County Council,1111/1001,Adult Social Care and Health,ASCH,Third Party Payments,ECA,11/09/2012,06-11781,434.8,Hawthorne Nursing Home,,,,,,,,,,,
Nottinghamshire County Council,1111/1001,Adult Social Care and Health,ASCH,Third Party Payments,ECA,11/09/2012,06-11797,434.8,Hazel Grove Nursing Home,,,,,,,,,,,
Nottinghamshire County Council,1111/1001,Adult Social Care and Health,ASCH,Third Party Payments,ECA,11/09/2012,06-11798,434.8,Hazel Grove Nursing Home,,,,,,,,,,,
Nottinghamshire County Council,1111/1001,Adult Social Care and Health,ASCH,Third Party Payments,ECA,11/09/2012,06-11799,434.8,Hazel Grove Nursing Home,,,,,,,,,,,
Nottinghamshire County Council,1111/1001,Adult Social Care and Health,ASCH,Third Party Payments,ECA,11/09/2012,06-11800,434.8,Hazel Grove Nursing Home,,,,,,,,,,,
Nottinghamshire County Council,1111/1001,Adult Social Care and Health,ASCH,Third Party Payments,ECA,11/09/2012,06-11803,598.4,Hazel Grove Nursing Home,,,,,,,,,,,
Nottinghamshire County Council,1111/1001,Adult Social Care and Health,ASCH,Third Party Payments,ECA,11/09/2012,06-11804,434.8,Hazel Grove Nursing Home,,,,,,,,,,,
Nottinghamshire County Council,1111/1001,Adult Social Care and Health,ASCH,Third Party Payments,ECA,11/09/2012,06-11806,434.8,Hazel Grove Nursing Home,,,,,,,,,,,
Nottinghamshire County Council,1111/1001,Adult Social Care and Health,ASCH,Third Party Payments,ECA,11/09/2012,06-11808,434.8,Hazel Grove Nursing Home,,,,,,,,,,,
Nottinghamshire County Council,1111/1001,Adult Social Care and Health,ASCH,Third Party Payments,ECA,11/09/2012,06-11810,434.8,Hazel Grove Nursing Home,,,,,,,,,,,
Nottinghamshire County Council,1111/1001,Adult Social Care and Health,ASCH,Third Party Payments,ECA,11/09/2012,06-11813,434.8,Hazel Grove Nursing Home,,,,,,,,,,,
Nottinghamshire County Council,1111/1001,Adult Social Care and Health,ASCH,Third Party Payments,ECA,11/09/2012,06-11818,434.8,Carisbrooke Nursing Home,,,,,,,,,,,
Nottinghamshire County Council,1111/1001,Adult Social Care and Health,ASCH,Third Party Payments,ECA,11/09/2012,06-11821,614.47,Newton House Nursing Home,,,,,,,,,,,
Nottinghamshire County Council,1111/1001,Adult Social Care and Health,ASCH,Third Party Payments,ECA,11/09/2012,06-11822,434.8,Newton House Nursing Home,,,,,,,,,,,
Nottinghamshire County Council,1111/1001,Adult Social Care and Health,ASCH,Third Party Payments,ECA,11/09/2012,06-11823,462.52,Newton House Nursing Home,,,,,,,,,,,
Nottinghamshire County Council,1111/1001,Adult Social Care and Health,ASCH,Third Party Payments,ECA,11/09/2012,06-11824,628.28,Newton House Nursing Home,,,,,,,,,,,
Nottinghamshire County Council,1111/1001,Adult Social Care and Health,ASCH,Third Party Payments,ECA,11/09/2012,06-11825,471.2,Newton House Nursing Home,,,,,,,,,,,
Nottinghamshire County Council,1111/1001,Adult Social Care and Health,ASCH,Third Party Payments,ECA,11/09/2012,06-11877,434.8,Beeston Lodge Nursing Home,,,,,,,,,,,
Nottinghamshire County Council,1111/1001,Adult Social Care and Health,ASCH,Third Party Payments,ECA,11/09/2012,06-11878,434.8,Beeston Lodge Nursing Home,,,,,,,,,,,
Nottinghamshire County Council,1111/1001,Adult Social Care and Health,ASCH,Third Party Payments,ECA,11/09/2012,06-11879,434.8,Beeston Lodge Nursing Home,,,,,,,,,,,
Nottinghamshire County Council,1111/1001,Adult Social Care and Health,ASCH,Third Party Payments,ECA,11/09/2012,06-11880,434.8,Beeston Lodge Nursing Home,,,,,,,,,,,
Nottinghamshire County Council,1111/1001,Adult Social Care and Health,ASCH,Third Party Payments,ECA,11/09/2012,06-11881,434.8,Beeston Lodge Nursing Home,,,,,,,,,,,
Nottinghamshire County Council,1111/1001,Adult Social Care and Health,ASCH,Third Party Payments,ECA,11/09/2012,06-11882,2375.87,Beeston Lodge Nursing Home,,,,,,,,,,,
Nottinghamshire County Council,1111/1001,Adult Social Care and Health,ASCH,Third Party Payments,ECA,11/09/2012,06-11883,434.8,Beeston Lodge Nursing Home,,,,,,,,,,,
Nottinghamshire County Council,1111/1001,Adult Social Care and Health,ASCH,Third Party Payments,ECA,11/09/2012,06-11884,434.8,Beeston Lodge Nursing Home,,,,,,,,,,,
Nottinghamshire County Council,1111/1001,Adult Social Care and Health,ASCH,Third Party Payments,ECA,11/09/2012,06-11886,434.8,Beeston Lodge Nursing Home,,,,,,,,,,,
Nottinghamshire County Council,1111/1001,Adult Social Care and Health,ASCH,Third Party Payments,ECA,11/09/2012,06-11887,434.8,Beeston Lodge Nursing Home,,,,,,,,,,,
Nottinghamshire County Council,1111/1001,Adult Social Care and Health,ASCH,Third Party Payments,ECA,11/09/2012,06-11889,434.8,Beeston Lodge Nursing Home,,,,,,,,,,,
Nottinghamshire County Council,1111/1001,Adult Social Care and Health,ASCH,Third Party Payments,ECA,11/09/2012,06-11890,434.8,Beeston Lodge Nursing Home,,,,,,,,,,,
Nottinghamshire County Council,1111/1001,Adult Social Care and Health,ASCH,Third Party Payments,ECA,11/09/2012,06-11891,434.8,Beeston Lodge Nursing Home,,,,,,,,,,,
Nottinghamshire County Council,1111/1001,Adult Social Care and Health,ASCH,Third Party Payments,ECA,11/09/2012,06-11892,434.8,Beeston Lodge Nursing Home,,,,,,,,,,,
Nottinghamshire County Council,1111/1001,Adult Social Care and Health,ASCH,Third Party Payments,ECA,11/09/2012,06-11927,434.8,Eton Park Nursing Home,,,,,,,,,,,
Nottinghamshire County Council,1111/1001,Adult Social Care and Health,ASCH,Third Party Payments,ECA,11/09/2012,06-11931,434.8,Eton Park Nursing Home,,,,,,,,,,,
Nottinghamshire County Council,1111/1001,Adult Social Care and Health,ASCH,Third Party Payments,ECA,11/09/2012,06-11932,434.8,Eton Park Nursing Home,,,,,,,,,,,
Nottinghamshire County Council,1111/1001,Adult Social Care and Health,ASCH,Third Party Payments,ECA,11/09/2012,06-11934,434.8,Eton Park Nursing Home,,,,,,,,,,,
Nottinghamshire County Council,1111/1001,Adult Social Care and Health,ASCH,Third Party Payments,ECA,11/09/2012,06-11935,434.8,Eton Park Nursing Home,,,,,,,,,,,
Nottinghamshire County Council,1111/1001,Adult Social Care and Health,ASCH,Third Party Payments,ECA,11/09/2012,06-11937,434.8,Eton Park Nursing Home,,,,,,,,,,,
Nottinghamshire County Council,1111/1001,Adult Social Care and Health,ASCH,Third Party Payments,ECA,11/09/2012,06-11938,434.8,Eton Park Nursing Home,,,,,,,,,,,
Nottinghamshire County Council,1111/1001,Adult Social Care and Health,ASCH,Third Party Payments,ECA,11/09/2012,06-11940,434.8, Eton Park Residential Home,,,,,,,,,,,
Nottinghamshire County Council,1111/1001,Adult Social Care and Health,ASCH,Third Party Payments,ECA,11/09/2012,06-11946,434.8, Eton Park Residential Home,,,,,,,,,,,
Nottinghamshire County Council,1111/1001,Adult Social Care and Health,ASCH,Third Party Payments,ECA,11/09/2012,06-11950,434.8,North Clifton Hall,,,,,,,,,,,
Nottinghamshire County Council,1111/1001,Adult Social Care and Health,ASCH,Third Party Payments,ECA,11/09/2012,06-11951,434.8,North Clifton Hall,,,,,,,,,,,
Nottinghamshire County Council,1111/1001,Adult Social Care and Health,ASCH,Third Party Payments,ECA,11/09/2012,06-11952,434.8,North Clifton Hall,,,,,,,,,,,
Nottinghamshire County Council,1111/1001,Adult Social Care and Health,ASCH,Third Party Payments,ECA,11/09/2012,06-11957,434.8,North Clifton Hall,,,,,,,,,,,
Nottinghamshire County Council,1111/1001,Adult Social Care and Health,ASCH,Third Party Payments,ECA,11/09/2012,06-11959,444.88,North Clifton Hall,,,,,,,,,,,
Nottinghamshire County Council,1111/1001,Adult Social Care and Health,ASCH,Third Party Payments,ECA,11/09/2012,06-11962,434.8,Thistle Hill Hall,,,,,,,,,,,
Nottinghamshire County Council,1111/1001,Adult Social Care and Health,ASCH,Third Party Payments,ECA,11/09/2012,06-11971,434.8,Aj & Sa Verjee,,,,,,,,,,,
Nottinghamshire County Council,1111/1001,Adult Social Care and Health,ASCH,Third Party Payments,ECA,11/09/2012,06-11973,434.8,Aj & Sa Verjee,,,,,,,,,,,
Nottinghamshire County Council,1111/1001,Adult Social Care and Health,ASCH,Third Party Payments,ECA,11/09/2012,06-11974,434.8,Aj & Sa Verjee,,,,,,,,,,,
Nottinghamshire County Council,1111/1001,Adult Social Care and Health,ASCH,Third Party Payments,ECA,11/09/2012,06-11975,434.8,Aj & Sa Verjee,,,,,,,,,,,
Nottinghamshire County Council,1111/1001,Adult Social Care and Health,ASCH,Third Party Payments,ECA,11/09/2012,06-11976,434.8,Aj & Sa Verjee,,,,,,,,,,,
Nottinghamshire County Council,1111/1001,Adult Social Care and Health,ASCH,Third Party Payments,ECA,11/09/2012,06-11977,434.8,Aj & Sa Verjee,,,,,,,,,,,
Nottinghamshire County Council,1111/1001,Adult Social Care and Health,ASCH,Third Party Payments,ECA,11/09/2012,06-11978,434.8,Aj & Sa Verjee,,,,,,,,,,,
Nottinghamshire County Council,1111/1001,Adult Social Care and Health,ASCH,Third Party Payments,ECA,11/09/2012,06-11979,434.8,Aj & Sa Verjee,,,,,,,,,,,
Nottinghamshire County Council,1111/1001,Adult Social Care and Health,ASCH,Third Party Payments,ECA,11/09/2012,06-12003,434.8,Highfields Care Home,,,,,,,,,,,
Nottinghamshire County Council,1111/1001,Adult Social Care and Health,ASCH,Third Party Payments,ECA,11/09/2012,06-12004,434.8,Highfields Care Home,,,,,,,,,,,
Nottinghamshire County Council,1111/1001,Adult Social Care and Health,ASCH,Third Party Payments,ECA,11/09/2012,06-12006,434.8,Adbolton Hall Nursing Home,,,,,,,,,,,
Nottinghamshire County Council,1111/1001,Adult Social Care and Health,ASCH,Third Party Payments,ECA,11/09/2012,06-12007,434.8,Adbolton Hall Nursing Home,,,,,,,,,,,
Nottinghamshire County Council,1111/1001,Adult Social Care and Health,ASCH,Third Party Payments,ECA,11/09/2012,06-12008,434.8,Adbolton Hall Nursing Home,,,,,,,,,,,
Nottinghamshire County Council,1111/1001,Adult Social Care and Health,ASCH,Third Party Payments,ECA,11/09/2012,06-12009,434.8,Adbolton Hall Nursing Home,,,,,,,,,,,
Nottinghamshire County Council,1111/1001,Adult Social Care and Health,ASCH,Third Party Payments,ECA,11/09/2012,06-12010,434.8,Adbolton Hall Nursing Home,,,,,,,,,,,
Nottinghamshire County Council,1111/1001,Adult Social Care and Health,ASCH,Third Party Payments,ECA,11/09/2012,06-12011,434.8,Adbolton Hall Nursing Home,,,,,,,,,,,
Nottinghamshire County Council,1111/1001,Adult Social Care and Health,ASCH,Third Party Payments,ECA,11/09/2012,06-12012,434.8,Adbolton Hall Nursing Home,,,,,,,,,,,
Nottinghamshire County Council,1111/1001,Adult Social Care and Health,ASCH,Third Party Payments,ECA,11/09/2012,06-12013,434.8,Adbolton Hall Nursing Home,,,,,,,,,,,
Nottinghamshire County Council,1111/1001,Adult Social Care and Health,ASCH,Third Party Payments,ECA,11/09/2012,06-12014,434.8,Adbolton Hall Nursing Home,,,,,,,,,,,
Nottinghamshire County Council,1111/1001,Adult Social Care and Health,ASCH,Third Party Payments,ECA,11/09/2012,06-12015,434.8,Adbolton Hall Nursing Home,,,,,,,,,,,
Nottinghamshire County Council,1111/1001,Adult Social Care and Health,ASCH,Third Party Payments,ECA,11/09/2012,06-12016,434.8,Adbolton Hall Nursing Home,,,,,,,,,,,
Nottinghamshire County Council,1111/1001,Adult Social Care and Health,ASCH,Third Party Payments,ECA,11/09/2012,06-12017,434.8,Adbolton Hall Nursing Home,,,,,,,,,,,
Nottinghamshire County Council,1111/1001,Adult Social Care and Health,ASCH,Third Party Payments,ECA,11/09/2012,06-12019,434.8,Adbolton Hall Nursing Home,,,,,,,,,,,
Nottinghamshire County Council,1111/1001,Adult Social Care and Health,ASCH,Third Party Payments,ECA,11/09/2012,06-12020,434.8,Adbolton Hall Nursing Home,,,,,,,,,,,
Nottinghamshire County Council,1111/1001,Adult Social Care and Health,ASCH,Third Party Payments,ECA,11/09/2012,06-12021,434.8,Adbolton Hall Nursing Home,,,,,,,,,,,
Nottinghamshire County Council,1111/1001,Adult Social Care and Health,ASCH,Third Party Payments,ECA,11/09/2012,06-12104,434.8,Elmbank Nursing Home,,,,,,,,,,,
Nottinghamshire County Council,1111/1001,Adult Social Care and Health,ASCH,Third Party Payments,ECA,11/09/2012,06-12105,434.8,Elmbank Nursing Home,,,,,,,,,,,
Nottinghamshire County Council,1111/1001,Adult Social Care and Health,ASCH,Third Party Payments,ECA,11/09/2012,06-12106,434.8,Elmbank Nursing Home,,,,,,,,,,,
Nottinghamshire County Council,1111/1001,Adult Social Care and Health,ASCH,Third Party Payments,ECA,11/09/2012,06-12107,434.8,Elmbank Nursing Home,,,,,,,,,,,
Nottinghamshire County Council,1111/1001,Adult Social Care and Health,ASCH,Third Party Payments,ECA,11/09/2012,06-12108,434.8,Elmbank Nursing Home,,,,,,,,,,,
Nottinghamshire County Council,1111/1001,Adult Social Care and Health,ASCH,Third Party Payments,ECA,11/09/2012,06-12109,434.8,Elmbank Nursing Home,,,,,,,,,,,
Nottinghamshire County Council,1111/1001,Adult Social Care and Health,ASCH,Third Party Payments,ECA,11/09/2012,06-12121,434.8,Park House Nursing Home,,,,,,,,,,,
Nottinghamshire County Council,1111/1001,Adult Social Care and Health,ASCH,Third Party Payments,ECA,11/09/2012,06-12122,434.8,Park House Nursing Home,,,,,,,,,,,
Nottinghamshire County Council,1111/1001,Adult Social Care and Health,ASCH,Third Party Payments,ECA,11/09/2012,06-12124,1335.46,Park House Nursing Home,,,,,,,,,,,
Nottinghamshire County Council,1111/1001,Adult Social Care and Health,ASCH,Third Party Payments,ECA,11/09/2012,06-12125,590.09,Park House Nursing Home,,,,,,,,,,,
Nottinghamshire County Council,1111/1001,Adult Social Care and Health,ASCH,Third Party Payments,ECA,11/09/2012,06-12144,434.8,Rutland Manor Nursing Home,,,,,,,,,,,
Nottinghamshire County Council,1111/1001,Adult Social Care and Health,ASCH,Third Party Payments,ECA,11/09/2012,06-12145,434.8,Rutland Manor Nursing Home,,,,,,,,,,,
Nottinghamshire County Council,1111/1001,Adult Social Care and Health,ASCH,Third Party Payments,ECA,11/09/2012,06-12146,434.8,Rutland Manor Nursing Home,,,,,,,,,,,
Nottinghamshire County Council,1111/1001,Adult Social Care and Health,ASCH,Third Party Payments,ECA,11/09/2012,06-12147,434.8,Rutland Manor Nursing Home,,,,,,,,,,,
Nottinghamshire County Council,1111/1001,Adult Social Care and Health,ASCH,Third Party Payments,ECA,11/09/2012,06-12148,434.8,Rutland Manor Nursing Home,,,,,,,,,,,
Nottinghamshire County Council,1111/1001,Adult Social Care and Health,ASCH,Third Party Payments,ECA,11/09/2012,06-12172,434.8,Mansfield Manor Care Home,,,,,,,,,,,
Nottinghamshire County Council,1111/1001,Adult Social Care and Health,ASCH,Third Party Payments,ECA,11/09/2012,06-12173,434.8,Mansfield Manor Care Home,,,,,,,,,,,
Nottinghamshire County Council,1111/1001,Adult Social Care and Health,ASCH,Third Party Payments,ECA,11/09/2012,06-12174,434.8,Mansfield Manor Care Home,,,,,,,,,,,
Nottinghamshire County Council,1111/1001,Adult Social Care and Health,ASCH,Third Party Payments,ECA,11/09/2012,06-12176,434.8,Mansfield Manor Care Home,,,,,,,,,,,
Nottinghamshire County Council,1111/1001,Adult Social Care and Health,ASCH,Third Party Payments,ECA,11/09/2012,06-12178,434.8,Mansfield Manor Care Home,,,,,,,,,,,
Nottinghamshire County Council,1111/1001,Adult Social Care and Health,ASCH,Third Party Payments,ECA,11/09/2012,06-12180,434.8,Mansfield Manor Care Home,,,,,,,,,,,
Nottinghamshire County Council,1111/1001,Adult Social Care and Health,ASCH,Third Party Payments,ECA,11/09/2012,06-12181,434.8,Mansfield Manor Care Home,,,,,,,,,,,
Nottinghamshire County Council,1111/1001,Adult Social Care and Health,ASCH,Third Party Payments,ECA,11/09/2012,06-12183,434.8,Mansfield Manor Care Home,,,,,,,,,,,
Nottinghamshire County Council,1111/1001,Adult Social Care and Health,ASCH,Third Party Payments,ECA,11/09/2012,06-12184,434.8,Mansfield Manor Care Home,,,,,,,,,,,
Nottinghamshire County Council,1111/1001,Adult Social Care and Health,ASCH,Third Party Payments,ECA,11/09/2012,06-12186,434.8,Mansfield Manor Care Home,,,,,,,,,,,
Nottinghamshire County Council,1111/1001,Adult Social Care and Health,ASCH,Third Party Payments,ECA,11/09/2012,06-12187,434.8,Mansfield Manor Care Home,,,,,,,,,,,
Nottinghamshire County Council,1111/1001,Adult Social Care and Health,ASCH,Third Party Payments,ECA,11/09/2012,06-12214,434.8,Balmore Country House,,,,,,,,,,,
Nottinghamshire County Council,1111/1001,Adult Social Care and Health,ASCH,Third Party Payments,ECA,11/09/2012,06-12215,1087,Balmore Country House,,,,,,,,,,,
Nottinghamshire County Council,1111/1001,Adult Social Care and Health,ASCH,Third Party Payments,ECA,11/09/2012,06-12216,434.8,Balmore Country House,,,,,,,,,,,
Nottinghamshire County Council,1111/1001,Adult Social Care and Health,ASCH,Third Party Payments,ECA,11/09/2012,06-12217,434.8,Balmore Country House,,,,,,,,,,,
Nottinghamshire County Council,1111/1001,Adult Social Care and Health,ASCH,Third Party Payments,ECA,11/09/2012,06-12219,-869.6,Balmore Country House,,,,,,,,,,,
Nottinghamshire County Council,1111/1001,Adult Social Care and Health,ASCH,Third Party Payments,ECA,11/09/2012,06-12221,434.8,Balmore Country House,,,,,,,,,,,
Nottinghamshire County Council,1111/1001,Adult Social Care and Health,ASCH,Third Party Payments,ECA,11/09/2012,06-12224,434.8,Balmore Country House,,,,,,,,,,,
Nottinghamshire County Council,1111/1001,Adult Social Care and Health,ASCH,Third Party Payments,ECA,11/09/2012,06-12238,434.8,Sycamore Lodge Nursing Home,,,,,,,,,,,
Nottinghamshire County Council,1111/1001,Adult Social Care and Health,ASCH,Third Party Payments,ECA,11/09/2012,06-12246,434.8,Field House Nursing Home,,,,,,,,,,,
Nottinghamshire County Council,1111/1001,Adult Social Care and Health,ASCH,Third Party Payments,ECA,11/09/2012,06-12247,962.77,Field House Nursing Home,,,,,,,,,,,
Nottinghamshire County Council,1111/1001,Adult Social Care and Health,ASCH,Third Party Payments,ECA,11/09/2012,06-12248,434.8,Field House Nursing Home,,,,,,,,,,,
Nottinghamshire County Council,1111/1001,Adult Social Care and Health,ASCH,Third Party Payments,ECA,11/09/2012,06-12249,217.4,Field House Nursing Home,,,,,,,,,,,
Nottinghamshire County Council,1111/1001,Adult Social Care and Health,ASCH,Third Party Payments,ECA,11/09/2012,06-12250,434.8,Field House Nursing Home,,,,,,,,,,,
Nottinghamshire County Council,1111/1001,Adult Social Care and Health,ASCH,Third Party Payments,ECA,11/09/2012,06-12252,434.8,Field House Nursing Home,,,,,,,,,,,
Nottinghamshire County Council,1111/1001,Adult Social Care and Health,ASCH,Third Party Payments,ECA,11/09/2012,06-12279,434.8,Giltbrook Carehomes Ltd,,,,,,,,,,,
Nottinghamshire County Council,1111/1001,Adult Social Care and Health,ASCH,Third Party Payments,ECA,11/09/2012,06-12281,434.8,Giltbrook Carehomes Ltd,,,,,,,,,,,
Nottinghamshire County Council,1111/1001,Adult Social Care and Health,ASCH,Third Party Payments,ECA,11/09/2012,06-12282,434.8,Giltbrook Carehomes Ltd,,,,,,,,,,,
Nottinghamshire County Council,1111/1001,Adult Social Care and Health,ASCH,Third Party Payments,ECA,11/09/2012,06-12284,434.8,Giltbrook Carehomes Ltd,,,,,,,,,,,
Nottinghamshire County Council,1111/1001,Adult Social Care and Health,ASCH,Third Party Payments,ECA,11/09/2012,06-12286,434.8,Giltbrook Carehomes Ltd,,,,,,,,,,,
Nottinghamshire County Council,1111/1001,Adult Social Care and Health,ASCH,Third Party Payments,ECA,11/09/2012,06-12290,434.8,Giltbrook Carehomes Ltd,,,,,,,,,,,
Nottinghamshire County Council,1111/1001,Adult Social Care and Health,ASCH,Third Party Payments,ECA,11/09/2012,06-12291,434.8,Giltbrook Carehomes Ltd,,,,,,,,,,,
Nottinghamshire County Council,1111/1001,Adult Social Care and Health,ASCH,Third Party Payments,ECA,11/09/2012,06-12292,434.8,Giltbrook Carehomes Ltd,,,,,,,,,,,
Nottinghamshire County Council,1111/1001,Adult Social Care and Health,ASCH,Third Party Payments,ECA,11/09/2012,06-12295,434.8,The Firs,,,,,,,,,,,
Nottinghamshire County Council,1111/1001,Adult Social Care and Health,ASCH,Third Party Payments,ECA,11/09/2012,06-12296,434.8,The Firs,,,,,,,,,,,
Nottinghamshire County Council,1111/1001,Adult Social Care and Health,ASCH,Third Party Payments,ECA,11/09/2012,06-12300,155.29,Blenheim Lodge Care Centre,,,,,,,,,,,
Nottinghamshire County Council,1111/1001,Adult Social Care and Health,ASCH,Third Party Payments,ECA,11/09/2012,06-12301,869.6,Blenheim Lodge Care Centre,,,,,,,,,,,
Nottinghamshire County Council,1111/1001,Adult Social Care and Health,ASCH,Third Party Payments,ECA,11/09/2012,06-12302,-698.79,Blenheim Lodge Care Centre,,,,,,,,,,,
Nottinghamshire County Council,1111/1001,Adult Social Care and Health,ASCH,Third Party Payments,ECA,11/09/2012,06-12330,434.8,Lowmoor Nursing Home,,,,,,,,,,,
Nottinghamshire County Council,1111/1001,Adult Social Care and Health,ASCH,Third Party Payments,ECA,11/09/2012,06-12331,598.4,Lowmoor Nursing Home,,,,,,,,,,,
Nottinghamshire County Council,1111/1001,Adult Social Care and Health,ASCH,Third Party Payments,ECA,11/09/2012,06-12333,434.8,Lowmoor Nursing Home,,,,,,,,,,,
Nottinghamshire County Council,1111/1001,Adult Social Care and Health,ASCH,Third Party Payments,ECA,11/09/2012,06-12335,434.8,Lowmoor Nursing Home,,,,,,,,,,,
Nottinghamshire County Council,1111/1001,Adult Social Care and Health,ASCH,Third Party Payments,ECA,11/09/2012,06-12336,434.8,Lowmoor Nursing Home,,,,,,,,,,,
Nottinghamshire County Council,1111/1001,Adult Social Care and Health,ASCH,Third Party Payments,ECA,11/09/2012,06-12338,434.8,Lowmoor Nursing Home,,,,,,,,,,,
Nottinghamshire County Council,1111/1001,Adult Social Care and Health,ASCH,Third Party Payments,ECA,11/09/2012,06-12339,598.4,Lowmoor Nursing Home,,,,,,,,,,,
Nottinghamshire County Council,1111/1001,Adult Social Care and Health,ASCH,Third Party Payments,ECA,11/09/2012,06-12342,434.8,Lowmoor Nursing Home,,,,,,,,,,,
Nottinghamshire County Council,1111/1001,Adult Social Care and Health,ASCH,Third Party Payments,ECA,11/09/2012,06-12390,434.8,Abelard Nursing Home,,,,,,,,,,,
Nottinghamshire County Council,1111/1001,Adult Social Care and Health,ASCH,Third Party Payments,ECA,11/09/2012,06-12391,807.49,Abelard Nursing Home,,,,,,,,,,,
Nottinghamshire County Council,1111/1001,Adult Social Care and Health,ASCH,Third Party Payments,ECA,11/09/2012,06-12392,434.8,Abelard Nursing Home,,,,,,,,,,,
Nottinghamshire County Council,1111/1001,Adult Social Care and Health,ASCH,Third Party Payments,ECA,11/09/2012,06-12394,434.8,Abelard Nursing Home,,,,,,,,,,,
Nottinghamshire County Council,1111/1001,Adult Social Care and Health,ASCH,Third Party Payments,ECA,11/09/2012,06-12396,434.8,Abelard Nursing Home,,,,,,,,,,,
Nottinghamshire County Council,1111/1001,Adult Social Care and Health,ASCH,Third Party Payments,ECA,11/09/2012,06-12398,434.8,Abelard Nursing Home,,,,,,,,,,,
Nottinghamshire County Council,1111/1001,Adult Social Care and Health,ASCH,Third Party Payments,ECA,11/09/2012,06-12430,434.8,Bramcote House Nursing Home,,,,,,,,,,,
Nottinghamshire County Council,1111/1001,Adult Social Care and Health,ASCH,Third Party Payments,ECA,11/09/2012,06-12431,434.8,Bramcote House Nursing Home,,,,,,,,,,,
Nottinghamshire County Council,1111/1001,Adult Social Care and Health,ASCH,Third Party Payments,ECA,11/09/2012,06-12432,434.8,Bramcote House Nursing Home,,,,,,,,,,,
Nottinghamshire County Council,1111/1001,Adult Social Care and Health,ASCH,Third Party Payments,ECA,11/09/2012,06-12433,434.8,Bramcote House Nursing Home,,,,,,,,,,,
Nottinghamshire County Council,1111/1001,Adult Social Care and Health,ASCH,Third Party Payments,ECA,11/09/2012,06-12434,434.8,Bramcote House Nursing Home,,,,,,,,,,,
Nottinghamshire County Council,1111/1001,Adult Social Care and Health,ASCH,Third Party Payments,ECA,11/09/2012,06-12435,434.8,Bramcote House Nursing Home,,,,,,,,,,,
Nottinghamshire County Council,1111/1001,Adult Social Care and Health,ASCH,Third Party Payments,ECA,11/09/2012,06-12437,434.8,Bramcote House Nursing Home,,,,,,,,,,,
Nottinghamshire County Council,1111/1001,Adult Social Care and Health,ASCH,Third Party Payments,ECA,11/09/2012,06-12438,900.66,Bramcote House Nursing Home,,,,,,,,,,,
Nottinghamshire County Council,1111/1001,Adult Social Care and Health,ASCH,Third Party Payments,ECA,11/09/2012,06-12439,434.8,Bramcote House Nursing Home,,,,,,,,,,,
Nottinghamshire County Council,1111/1001,Adult Social Care and Health,ASCH,Third Party Payments,ECA,11/09/2012,06-12441,434.8,Bramcote House Nursing Home,,,,,,,,,,,
Nottinghamshire County Council,1111/1001,Adult Social Care and Health,ASCH,Third Party Payments,ECA,11/09/2012,06-12442,434.8,Bramcote House Nursing Home,,,,,,,,,,,
Nottinghamshire County Council,1111/1001,Adult Social Care and Health,ASCH,Third Party Payments,ECA,11/09/2012,06-12482,434.8,Royal British Legion,,,,,,,,,,,
Nottinghamshire County Council,1111/1001,Adult Social Care and Health,ASCH,Third Party Payments,ECA,11/09/2012,06-12483,434.8,Foxby Hill N/R Home,,,,,,,,,,,
Nottinghamshire County Council,1111/1001,Adult Social Care and Health,ASCH,Third Party Payments,ECA,11/09/2012,06-12484,434.8,Foxby Hill N/R Home,,,,,,,,,,,
Nottinghamshire County Council,1111/1001,Adult Social Care and Health,ASCH,Third Party Payments,ECA,11/09/2012,06-12485,434.8,Foxby Hill N/R Home,,,,,,,,,,,
Nottinghamshire County Council,1111/1001,Adult Social Care and Health,ASCH,Third Party Payments,ECA,11/09/2012,06-12486,434.8,Foxby Hill N/R Home,,,,,,,,,,,
Nottinghamshire County Council,1111/1001,Adult Social Care and Health,ASCH,Third Party Payments,ECA,11/09/2012,06-12487,434.8,Foxby Hill N/R Home,,,,,,,,,,,
Nottinghamshire County Council,1111/1001,Adult Social Care and Health,ASCH,Third Party Payments,ECA,11/09/2012,06-12520,434.8,Broadgate Nursing Home,,,,,,,,,,,
Nottinghamshire County Council,1111/1001,Adult Social Care and Health,ASCH,Third Party Payments,ECA,11/09/2012,06-12521,434.8,Broadgate Nursing Home,,,,,,,,,,,
Nottinghamshire County Council,1111/1001,Adult Social Care and Health,ASCH,Third Party Payments,ECA,11/09/2012,06-12523,1568.39,Broadgate Nursing Home,,,,,,,,,,,
Nottinghamshire County Council,1111/1001,Adult Social Care and Health,ASCH,Third Party Payments,ECA,11/09/2012,06-12524,434.8,Broadgate Nursing Home,,,,,,,,,,,
Nottinghamshire County Council,1111/1001,Adult Social Care and Health,ASCH,Third Party Payments,ECA,11/09/2012,06-12525,434.8,Broadgate Nursing Home,,,,,,,,,,,
Nottinghamshire County Council,1111/1001,Adult Social Care and Health,ASCH,Third Party Payments,ECA,11/09/2012,06-12526,598.4,Broadgate Nursing Home,,,,,,,,,,,
Nottinghamshire County Council,1111/1001,Adult Social Care and Health,ASCH,Third Party Payments,ECA,11/09/2012,06-12527,434.8,Broadgate Nursing Home,,,,,,,,,,,
Nottinghamshire County Council,1111/1001,Adult Social Care and Health,ASCH,Third Party Payments,ECA,11/09/2012,06-12528,434.8,Broadgate Nursing Home,,,,,,,,,,,
Nottinghamshire County Council,1111/1001,Adult Social Care and Health,ASCH,Third Party Payments,ECA,11/09/2012,06-12529,434.8,Broadgate Nursing Home,,,,,,,,,,,
Nottinghamshire County Council,1111/1001,Adult Social Care and Health,ASCH,Third Party Payments,ECA,11/09/2012,06-12530,434.8,Broadgate Nursing Home,,,,,,,,,,,
Nottinghamshire County Council,1111/1001,Adult Social Care and Health,ASCH,Third Party Payments,ECA,11/09/2012,06-12531,598.4,Broadgate Nursing Home,,,,,,,,,,,
Nottinghamshire County Council,1111/1001,Adult Social Care and Health,ASCH,Third Party Payments,ECA,11/09/2012,06-12532,434.8,Byars Nursing Home,,,,,,,,,,,
Nottinghamshire County Council,1111/1001,Adult Social Care and Health,ASCH,Third Party Payments,ECA,11/09/2012,06-12533,434.8,Byars Nursing Home,,,,,,,,,,,
Nottinghamshire County Council,1111/1001,Adult Social Care and Health,ASCH,Third Party Payments,ECA,11/09/2012,06-12534,434.8,Byars Nursing Home,,,,,,,,,,,
Nottinghamshire County Council,1111/1001,Adult Social Care and Health,ASCH,Third Party Payments,ECA,11/09/2012,06-12535,434.8,Byars Nursing Home,,,,,,,,,,,
Nottinghamshire County Council,1111/1001,Adult Social Care and Health,ASCH,Third Party Payments,ECA,11/09/2012,06-12536,434.8,Byars Nursing Home,,,,,,,,,,,
Nottinghamshire County Council,1111/1001,Adult Social Care and Health,ASCH,Third Party Payments,ECA,11/09/2012,06-12537,434.8,Byars Nursing Home,,,,,,,,,,,
Nottinghamshire County Council,1111/1001,Adult Social Care and Health,ASCH,Third Party Payments,ECA,11/09/2012,06-12538,434.8,Byars Nursing Home,,,,,,,,,,,
Nottinghamshire County Council,1111/1001,Adult Social Care and Health,ASCH,Third Party Payments,ECA,11/09/2012,06-12539,434.8,Byars Nursing Home,,,,,,,,,,,
Nottinghamshire County Council,1111/1001,Adult Social Care and Health,ASCH,Third Party Payments,ECA,11/09/2012,06-12540,434.8,Byars Nursing Home,,,,,,,,,,,
Nottinghamshire County Council,1111/1001,Adult Social Care and Health,ASCH,Third Party Payments,ECA,11/09/2012,06-12541,434.8,Byars Nursing Home,,,,,,,,,,,
